Workbook

Sheet Manual Inputs
B1: Company | D1: Kentucky Power Co.
B2: State/Jurisdiction | D2: Kentucky
B3: Customer Class | D3: Municipal Waterworks
B4: Sample Year Begins | D4: 2019-04-01 | E4: =+D4+0/24 -> 2019-04-01
B5: Reporting Year Begins | D5: 2019-04-01 | E5: =+D5+0/24 -> 2019-04-01
B6: Days in Sample Year | D6: =DATE(YEAR(TYBegin)+1,MONTH(TYBegin),DAY(TYBegin))-TYBegin -> 366
A9: Test Year Inputs from Revenue Process
A10: Year | B10: Month | C10: kWh | D10: Customers | F10: SummaryID | G10: NCPTotal | H10: NCPOnPk | I10: NCPOffPk
A11: =YEAR(D5) -> 2019 | B11: =MONTH(D4) -> 4 | C11: 135718 | D11: 9 | F11: LRAPKPCMW | G11: 40.90237366 | H11: 39.28787899 | I11: 40.34701979
A12: =IF(B12=1,A11+1,A11) -> 2019 | B12: =IF(B11=12,1,B11+1) -> 5 | C12: 140566 | D12: 9
A13: =IF(B13=1,A12+1,A12) -> 2019 | B13: =IF(B12=12,1,B12+1) -> 6 | C13: 145779 | D13: 9
A14: 2019 | B14: 7 | C14: 149253 | D14: 9
A15: 2019 | B15: 8 | C15: 151953 | D15: 9
A16: 2019 | B16: 9 | C16: 157446 | D16: 9
A17: 2019 | B17: 10 | C17: 144711 | D17: 9
A18: 2019 | B18: 11 | C18: 136456 | D18: 9
A19: 2019 | B19: 12 | C19: 170968 | D19: 9
A20: 2020 | B20: 1 | C20: 183678 | D20: 9
A21: 2020 | B21: 2 | C21: 154351 | D21: 9
A22: 2020 | B22: 3 | C22: 161943 | D22: 9
C23: =SUM(C11:C22) -> 1832822 | D23: =SUM(D11:D22) -> 108
A25: Coincident Peaks
A26: Year | B26: Month | C26: Day | D26: Hour Ended | E26: Concident Peak
A27: =YEAR(TYBegin) -> 2019 | B27: =MONTH(TYBegin) -> 4 | C27: 1 | D27: 7 | E27: =DATEVALUE(B27&"/"&C27&"/"&A27)+(D27-1)/24 -> 2019-04-01T06:00:00
A28: =IF(B28=1,A27+1,A27) -> 2019 | B28: =IF(B27=12,1,B27+1) -> 5 | C28: 28 | D28: 16 | E28: =DATEVALUE(B28&"/"&C28&"/"&A28)+(D28-1)/24 -> 2019-05-28T15:00:00
A29: =IF(B29=1,A28+1,A28) -> 2019 | B29: =IF(B28=12,1,B28+1) -> 6 | C29: 27 | D29: 16 | E29: 2019-06-27T15:00:00
A30: 2019 | B30: 7 | C30: 19 | D30: 16 | E30: 2019-07-19T15:00:00
A31: 2019 | B31: 8 | C31: 19 | D31: 16 | E31: 2019-08-19T15:00:00
A32: 2019 | B32: 9 | C32: 11 | D32: 16 | E32: 2019-09-11T15:00:00
A33: 2019 | B33: 10 | C33: 1 | D33: 16 | E33: 2019-10-01T15:00:00
A34: 2019 | B34: 11 | C34: 13 | D34: 8 | E34: 2019-11-13T07:00:00
A35: 2019 | B35: 12 | C35: 19 | D35: 8 | E35: 2019-12-19T07:00:00
A36: 2020 | B36: 1 | C36: 22 | D36: 8 | E36: 2020-01-22T07:00:00
A37: 2020 | B37: 2 | C37: 15 | D37: 8 | E37: 2020-02-15T07:00:00
A38: 2020 | B38: 3 | C38: 1 | D38: 8 | E38: 2020-03-01T07:00:00

Sheet TOD Inputs
A1: Peak Times for TOD Tariffs | F1: Holidays
B2: Hour | C2: Formatted | F2: Description | G2: Date
A3: Peak Start Hour | B3: 7 | C3: =TEXT(B3/24,"h:mm AM/PM") -> 7:00 AM | F3: New Year's Day
A4: Peak End Hour | B4: 21 | C4: =TEXT(B4/24,"h:mm AM/PM") -> 9:00 PM | F4: President's Day
F5: Memorial Day
F6: Independence Day
A7: Daylight Savings Time | F7: Labor Day
A8: Starts | B8: 2020-03-08 | F8: Thanksgiving Day
A9: Ends | B9: 2019-11-03 | F9: Christmas Day
A19: DST Dates
B20: 2011 | C20: 2012 | D20: 2013 | E20: 2014
A21: Starts | B21: 2011-03-13 | C21: 2012-03-11 | D21: 2013-03-10 | E21: 2014-03-09
A22: Ends | B22: 2011-11-06 | C22: 2012-11-04 | D22: 2013-11-03 | E22: 2014-11-02
B24: 2015 | C24: 2016
B25: 2015-03-08 | C25: 2016-03-13
B26: 2015-11-01 | C26: 2016-11-06

Sheet LR Monthly
A1: STATISTICID | B1: CNAME | C1: YEAR | D1: MONTH | E1: ENERGY_MPU | F1: NCP | G1: NCP_ON | H1: NCP_OFF | I1: ClassPeak_Mont | J1: CLASS_PEAK_ON | K1: CLASS_PEAK_OFF
A2: LRKPCMW | B2: KPC MW CLASS RLW | C2: 2019 | D2: 4 | E2: 15295.8799 | F2: 33.61485733 | G2: 32.3163211 | H2: 32.6935815 | I2: 28.23784453 | J2: 28.23784453 | K2: 26.90591885
A3: LRKPCMW | B3: KPC MW CLASS RLW | C3: 2019 | D3: 5 | E3: 15980.83453 | F3: 34.60041289 | G3: 34.38944942 | H3: 32.14300924 | I3: 28.43444319 | J3: 28.43444319 | K3: 26.60349927
A4: LRKPCMW | B4: KPC MW CLASS RLW | C4: 2019 | D4: 6 | E4: 16620.53191 | F4: 36.59732178 | G4: 34.56565316 | H4: 36.06109435 | I4: 30.4628215 | J4: 30.4628215 | K4: 29.17297059
A5: LRKPCMW | B5: KPC MW CLASS RLW | C5: 2019 | D5: 7 | E5: 17490.33437 | F5: 33.5053098 | G5: 32.58354721 | H5: 33.06185132 | I5: 31.57970479 | J5: 28.75887997 | K5: 31.57970479
A6: LRKPCMW | B6: KPC MW CLASS RLW | C6: 2019 | D6: 8 | E6: 17845.54443 | F6: 33.3947315 | G6: 32.3588402 | H6: 33.28443953 | I6: 29.92103686 | J6: 29.58827158 | K6: 29.92103686
A7: LRKPCMW | B7: KPC MW CLASS RLW | C7: 2019 | D7: 9 | E7: 17243.7574 | F7: 31.72844084 | G7: 31.53545852 | H7: 30.94680518 | I7: 29.01631414 | J7: 29.01631414 | K7: 28.76418255
A8: LRKPCMW | B8: KPC MW CLASS RLW | C8: 2019 | D8: 10 | E8: 16773.56414 | F8: 32.90354282 | G8: 32.11798453 | H8: 32.09370426 | I8: 29.4095691 | J8: 29.4095691 | K8: 27.47712701
A9: LRKPCMW | B9: KPC MW CLASS RLW | C9: 2019 | D9: 11 | E9: 17261.55891 | F9: 33.62679704 | G9: 33.09632472 | H9: 33.12343959 | I9: 29.77942357 | J9: 29.63161435 | K9: 29.77942357
A10: LRKPCMW | B10: KPC MW CLASS RLW | C10: 2019 | D10: 12 | E10: 18699.39081 | F10: 35.57714966 | G10: 35.09343404 | H10: 35.02740774 | I10: 32.02748403 | J10: 32.02748403 | K10: 30.01965319
A11: LRKPCMW | B11: KPC MW CLASS RLW | C11: 2020 | D11: 1 | E11: 17067.60047 | F11: 34.51706399 | G11: 33.53399946 | H11: 34.51706399 | I11: 29.62391985 | J11: 29.18346046 | K11: 29.62391985
A12: LRKPCMW | B12: KPC MW CLASS RLW | C12: 2020 | D12: 2 | E12: 17586.80474 | F12: 35.78310246 | G12: 35.43484668 | H12: 35.46528291 | I12: 31.68471879 | J12: 31.68471879 | K12: 30.70025574
A13: LRKPCMW | B13: KPC MW CLASS RLW | C13: 2020 | D13: 3 | E13: 16997.53172 | F13: 33.12060499 | G13: 31.97141531 | H13: 32.86483183 | I13: 29.17663052 | J13: 28.22712411 | K13: 29.17663052

Sheet LR 8760 Loads
A1: ClassID | B1: Date | E1: IN | F1: UM | G1: CH | H1: TYP | I1: 01:00:00 | J1: 02:00:00 | K1: 03:00:00 | L1: 04:00:00 | M1: 05:00:00 | N1: 06:00:00 | O1: 07:00:00 | P1: 08:00:00 | Q1: 09:00:00 | R1: 10:00:00 | S1: 11:00:00 | T1: 12:00:00 | U1: 13:00:00 | V1: 14:00:00 | W1: 15:00:00 | X1: 16:00:00 | Y1: 17:00:00 | Z1: 18:00:00 | AA1: 19:00:00 | AB1: 20:00:00 | AC1: 21:00:00 | AD1: 22:00:00 | AE1: 23:00:00 | AF1: 1
A2: LRKPCMW | B2: 040119 | C2: 1 | D2: 2400 | E2: 60 | F2: 1 | G2: 1 | H2: KW | I2: 22.59331308 | J2: 21.69784104 | K2: 22.43365951 | L2: 22.64331288 | M2: 22.50187251 | N2: 23.0020723 | O2: 23.38014 | P2: 25.14661731 | Q2: 25.52667347 | R2: 24.98039317 | S2: 22.70651148 | T2: 22.32680114 | U2: 22.12538982 | V2: 21.63588162 | W2: 21.12107094 | X2: 22.06245058 | Y2: 22.68749138 | Z2: 21.02418371 | AA2: 21.34634384 | AB2: 22.00608192 | AC2: 21.50931151 | AD2: 22.40409191 | AE2: 24.28198089 | AF2: 19.2825478
A3: LRKPCMW | B3: 040219 | C3: 1 | D3: 2400 | E3: 60 | F3: 1 | G3: 1 | H3: KW | I3: 12.02906004 | J3: 12.15142268 | K3: 11.5269006 | L3: 11.58857183 | M3: 12.369808 | N3: 22.5752728 | O3: 22.58613731 | P3: 24.01186666 | Q3: 25.33307192 | R3: 24.28523736 | S3: 23.14581814 | T3: 23.10599121 | U3: 22.87092007 | V3: 22.64801027 | W3: 23.70230013 | X3: 25.16670369 | Y3: 23.26717214 | Z3: 21.92204766 | AA3: 20.72069785 | AB3: 18.68275185 | AC3: 19.59156678 | AD3: 21.67968549 | AE3: 21.80795589 | AF3: 19.41243202
A4: LRKPCMW | B4: 040319 | C4: 1 | D4: 2400 | E4: 60 | F4: 1 | G4: 1 | H4: KW | I4: 19.37289327 | J4: 19.05012795 | K4: 19.58116336 | L4: 19.56222971 | M4: 19.07940738 | N4: 20.18038294 | O4: 20.9462013 | P4: 23.62696901 | Q4: 23.851118 | R4: 21.76792722 | S4: 22.43697362 | T4: 22.30610958 | U4: 21.4369775 | V4: 21.99204739 | W4: 23.99593012 | X4: 24.19664981 | Y4: 20.08963401 | Z4: 18.88004215 | AA4: 18.59151301 | AB4: 18.39001523 | AC4: 19.46485257 | AD4: 21.24640187 | AE4: 20.37199603 | AF4: 19.69534159
A5: LRKPCMW | B5: 040419 | C5: 1 | D5: 2400 | E5: 60 | F5: 1 | G5: 1 | H5: KW | I5: 19.80139305 | J5: 20.12366846 | K5: 18.1469326 | L5: 11.66485396 | M5: 11.17404894 | N5: 11.70946474 | O5: 12.46087393 | P5: 16.85849379 | Q5: 23.49745943 | R5: 21.742106 | S5: 22.16417929 | T5: 22.15279605 | U5: 22.36285287 | V5: 23.4897073 | W5: 24.41806105 | X5: 21.96089478 | Y5: 19.85557152 | Z5: 20.10418727 | AA5: 20.18995063 | AB5: 19.62499604 | AC5: 21.05023548 | AD5: 21.88069336 | AE5: 20.82579831 | AF5: 18.94822633
A6: LRKPCMW | B6: 040519 | C6: 1 | D6: 2400 | E6: 60 | F6: 1 | G6: 1 | H6: KW | I6: 19.28851319 | J6: 18.69577774 | K6: 19.56741701 | L6: 19.19957982 | M6: 18.86724681 | N6: 11.7090901 | O6: 13.01689483 | P6: 14.21331671 | Q6: 22.1415569 | R6: 20.49703877 | S6: 20.68190837 | T6: 20.61193746 | U6: 20.55484835 | V6: 22.95878716 | W6: 22.91380175 | X6: 20.3348492 | Y6: 19.53292147 | Z6: 18.79986955 | AA6: 18.87214593 | AB6: 20.98196485 | AC6: 23.46273334 | AD6: 24.00621827 | AE6: 22.57976846 | AF6: 21.08937077
A7: LRKPCMW | B7: 040619 | C7: 1 | D7: 2400 | E7: 60 | F7: 1 | G7: 1 | H7: KW | I7: 20.17173744 | J7: 19.3969854 | K7: 19.12955127 | L7: 19.84090299 | M7: 19.46949232 | N7: 19.40724472 | O7: 12.2858602 | P7: 14.05962855 | Q7: 15.25867289 | R7: 15.93541379 | S7: 20.61427175 | T7: 20.66649057 | U7: 20.56669268 | V7: 24.54068305 | W7: 25.29676082 | X7: 22.91515621 | Y7: 22.51973987 | Z7: 21.66184694 | AA7: 20.35695286 | AB7: 21.80314322 | AC7: 21.62527648 | AD7: 20.76406944 | AE7: 19.32341219 | AF7: 18.88024388
A8: LRKPCMW | B8: 040719 | C8: 1 | D8: 2400 | E8: 60 | F8: 1 | G8: 1 | H8: KW | I8: 19.92162313 | J8: 19.21496881 | K8: 18.77606561 | L8: 19.40393061 | M8: 21.22493221 | N8: 22.63841377 | O8: 19.71511097 | P8: 19.06344202 | Q8: 19.50591869 | R8: 20.75775822 | S8: 22.22657098 | T8: 23.35437641 | U8: 22.57855809 | V8: 20.12240045 | W8: 19.92949054 | X8: 19.86424583 | Y8: 20.32095876 | Z8: 22.99250461 | AA8: 22.85463771 | AB8: 20.95527907 | AC8: 19.12519971 | AD8: 18.99842786 | AE8: 20.25441723 | AF8: 20.82032282
A9: LRKPCMW | B9: 040819 | C9: 1 | D9: 2400 | E9: 60 | F9: 1 | G9: 1 | H9: KW | I9: 13.85677631 | J9: 11.89551589 | K9: 15.72506878 | L9: 19.86787694 | M9: 20.29231334 | N9: 20.6044447 | O9: 20.62153397 | P9: 22.59654073 | Q9: 22.41803998 | R9: 20.86902581 | S9: 20.4216212 | T9: 19.33831127 | U9: 23.19155283 | V9: 17.39728133 | W9: 24.41909851 | X9: 24.34734086 | Y9: 22.57705954 | Z9: 22.83530061 | AA9: 22.94567482 | AB9: 23.00985325 | AC9: 23.10328228 | AD9: 23.94812051 | AE9: 14.63922284 | AF9: 11.87759089
A10: LRKPCMW | B10: 040919 | C10: 1 | D10: 2400 | E10: 60 | F10: 1 | G10: 1 | H10: KW | I10: 13.44994791 | J10: 21.79046316 | K10: 21.94501587 | L10: 21.33890871 | M10: 22.46112339 | N10: 21.00481779 | O10: 21.90366157 | P10: 14.48905051 | Q10: 14.81798296 | R10: 22.92792273 | S10: 23.66339539 | T10: 23.26941997 | U10: 23.08408927 | V10: 23.25754681 | W10: 25.73113954 | X10: 25.9028968 | Y10: 22.88400359 | Z10: 23.13933402 | AA10: 21.43545012 | AB10: 12.2273878 | AC10: 12.36415961 | AD10: 13.64617193 | AE10: 18.94764996 | AF10: 21.33671852
A11: LRKPCMW | B11: 041019 | C11: 1 | D11: 2400 | E11: 60 | F11: 1 | G11: 1 | H11: KW | I11: 20.6545886 | J11: 20.9078441 | K11: 21.10530731 | L11: 21.01184946 | M11: 21.48305801 | N11: 21.66786997 | O11: 22.6280968 | P11: 23.53371289 | Q11: 22.57875982 | R11: 21.65663082 | S11: 22.21824248 | T11: 22.3688759 | U11: 22.04628349 | V11: 22.52876001 | W11: 19.18957986 | X11: 14.88461094 | Y11: 10.67693271 | Z11: 10.93404987 | AA11: 10.83099552 | AB11: 10.93572134 | AC11: 13.47409767 | AD11: 13.94968661 | AE11: 18.63085004 | AF11: 21.55003181
A12: LRKPCMW | B12: 041119 | C12: 1 | D12: 2400 | E12: 60 | F12: 1 | G12: 1 | H12: KW | I12: 19.58246018 | J12: 19.42787865 | K12: 19.69672487 | L12: 19.85335251 | M12: 19.28153916 | N12: 20.6942138 | O12: 22.83299514 | P12: 22.43492752 | Q12: 21.56230842 | R12: 21.65562218 | S12: 22.01236432 | T12: 20.90885274 | U12: 21.23928374 | V12: 23.31120655 | W12: 23.62843875 | X12: 22.13899207 | Y12: 19.06586276 | Z12: 19.08586268 | AA12: 19.28269189 | AB12: 19.66960682 | AC12: 22.11850223 | AD12: 22.36285287 | AE12: 21.80083776 | AF12: 20.7163751
A13: LRKPCMW | B13: 041219 | C13: 1 | D13: 2400 | E13: 60 | F13: 1 | G13: 1 | H13: KW | I13: 20.50643355 | J13: 20.64369527 | K13: 20.3130049 | L13: 20.13663671 | M13: 20.2553106 | N13: 19.78764671 | O13: 22.68639629 | P13: 23.06826801 | Q13: 21.46112726 | R13: 21.54648716 | S13: 21.46521946 | T13: 22.10449652 | U13: 22.92014178 | V13: 24.5769077 | W13: 24.52664853 | X13: 22.08979918 | Y13: 21.72354699 | Z13: 21.88668757 | AA13: 14.81337202 | AB13: 20.02787633 | AC13: 25.14039255 | AD13: 25.26627102 | AE13: 22.2787898 | AF13: 22.48181495
A14: LRKPCMW | B14: 041319 | C14: 1 | D14: 2400 | E14: 60 | F14: 1 | G14: 1 | H14: KW | I14: 20.38574237 | J14: 20.54602994 | K14: 20.70225412 | L14: 20.27444598 | M14: 20.65565487 | N14: 20.66824848 | O14: 15.39345623 | P14: 14.20259629 | Q14: 13.4477289 | R14: 13.43623038 | S14: 13.45078364 | T14: 17.31684936 | U14: 26.59001229 | V14: 26.70145278 | W14: 24.37215345 | X14: 21.84700473 | Y14: 21.84737936 | Z14: 21.81498756 | AA14: 23.46152297 | AB14: 22.91861441 | AC14: 22.51559003 | AD14: 20.40934459 | AE14: 20.46620316 | AF14: 20.45502164
A15: LRKPCMW | B15: 041419 | C15: 1 | D15: 2400 | E15: 60 | F15: 1 | G15: 1 | H15: KW | I15: 20.38136199 | J15: 20.45827812 | K15: 21.77786955 | L15: 22.95904653 | M15: 21.35006141 | N15: 20.71683619 | O15: 21.45478723 | P15: 22.05697509 | Q15: 21.56818736 | R15: 23.80085883 | S15: 25.52661584 | T15: 25.22739509 | U15: 22.44005718 | V15: 22.27593678 | W15: 22.30409229 | X15: 24.26434407 | Y15: 26.50471003 | Z15: 26.35073368 | AA15: 22.87815347 | AB15: 21.29063801 | AC15: 20.93836271 | AD15: 21.24694941 | AE15: 23.90768839 | AF15: 22.96408974
A16: LRKPCMW | B16: 041519 | C16: 1 | D16: 2400 | E16: 60 | F16: 1 | G16: 1 | H16: KW | I16: 19.56995303 | J16: 20.4066933 | K16: 20.40836476 | L16: 20.58677906 | M16: 20.59565511 | N16: 20.42343675 | O16: 19.16179899 | P16: 15.80336819 | Q16: 16.01111955 | R16: 14.40703354 | S16: 15.03633946 | T16: 22.17247897 | U16: 23.31760422 | V16: 23.47385722 | W16: 26.09439462 | X16: 25.98116739 | Y16: 23.5411192 | Z16: 24.28290307 | AA16: 23.92477766 | AB16: 22.23605221 | AC16: 24.12618898 | AD16: 25.05834676 | AE16: 23.80365421 | AF16: 22.19864602
A17: LRKPCMW | B17: 041619 | C17: 1 | D17: 2400 | E17: 60 | F17: 1 | G17: 1 | H17: KW | I17: 22.30334302 | J17: 22.46953834 | K17: 22.24732018 | L17: 22.00864675 | M17: 22.43584971 | N17: 22.32651296 | O17: 24.04993568 | P17: 26.0693803 | Q17: 23.93970556 | R17: 23.77143531 | S17: 23.66621958 | T17: 23.89451841 | U17: 23.5571422 | V17: 23.6621562 | W17: 25.94670066 | X17: 25.40990159 | Y17: 16.41420156 | Z17: 13.34029416 | AA17: 12.8802383 | AB17: 19.15185666 | AC17: 21.72824438 | AD17: 23.52673886 | AE17: 23.30950627 | AF17: 20.90455881
A18: LRKPCMW | B18: 041719 | C18: 1 | D18: 2400 | E18: 60 | F18: 1 | G18: 1 | H18: KW | I18: 20.7434067 | J18: 19.36891634 | K18: 19.86343892 | L18: 19.68675373 | M18: 19.40796518 | N18: 20.02381294 | O18: 20.63216793 | P18: 25.58407959 | Q18: 15.17809684 | R18: 14.43516023 | S18: 13.51003413 | T18: 13.81634419 | U18: 13.65326124 | V18: 13.74997557 | W18: 15.71385845 | X18: 16.18705547 | Y18: 15.53336924 | Z18: 19.23061716 | AA18: 20.52251418 | AB18: 20.57640446 | AC18: 22.04049101 | AD18: 22.70852877 | AE18: 22.71331261 | AF18: 20.45268736
A19: LRKPCMW | B19: 041819 | C19: 1 | D19: 2400 | E19: 60 | F19: 1 | G19: 1 | H19: KW | I19: 19.63001043 | J19: 19.44658175 | K19: 19.89240135 | L19: 19.31903181 | M19: 19.81000973 | N19: 19.54001078 | O19: 20.43983438 | P19: 23.04587616 | Q19: 23.36918903 | R19: 21.41608421 | S19: 21.85847442 | T19: 21.73599651 | U19: 22.19167198 | V19: 22.99697145 | W19: 24.99909627 | X19: 24.69422713 | Y19: 21.82910854 | Z19: 21.59055039 | AA19: 21.67616965 | AB19: 21.03294448 | AC19: 22.06129784 | AD19: 23.34454936 | AE19: 22.81596351 | AF19: 20.71006388
A20: LRKPCMW | B20: 041919 | C20: 1 | D20: 2400 | E20: 60 | F20: 1 | G20: 1 | H20: KW | I20: 20.89014964 | J20: 20.67836372 | K20: 20.2207286 | L20: 20.45692365 | M20: 20.5943871 | N20: 20.72087076 | O20: 21.79201935 | P20: 24.98964385 | Q20: 24.88365003 | R20: 22.49089272 | S20: 21.79011734 | T20: 21.76478602 | U20: 21.60311518 | V20: 22.50769381 | W20: 24.69754124 | X20: 23.93045487 | Y20: 22.26089361 | Z20: 20.75450175 | AA20: 20.45836457 | AB20: 20.73617329 | AC20: 22.34158494 | AD20: 23.40794969 | AE20: 22.50031632 | AF20: 20.83709509
A21: LRKPCMW | B21: 042019 | C21: 1 | D21: 2400 | E21: 60 | F21: 1 | G21: 1 | H21: KW | I21: 20.59689429 | J21: 20.68089973 | K21: 21.0702354 | L21: 20.94712349 | M21: 20.28294738 | N21: 20.26320683 | O21: 22.8766261 | P21: 25.38857602 | Q21: 24.77249772 | R21: 22.92135215 | S21: 23.03950731 | T21: 24.22252867 | U21: 26.62802367 | V21: 26.19015793 | W21: 25.19704939 | X21: 24.21930101 | Y21: 22.67103612 | Z21: 12.35825185 | AA21: 15.15296725 | AB21: 19.77306463 | AC21: 23.20826747 | AD21: 21.25288599 | AE21: 21.08879441 | AF21: 21.24945661
A22: LRKPCMW | B22: 042119 | C22: 1 | D22: 2400 | E22: 60 | F22: 1 | G22: 1 | H22: KW | I22: 22.00556319 | J22: 23.61273276 | K22: 22.56884631 | L22: 21.12403923 | M22: 20.81098568 | N22: 21.03029319 | O22: 21.97809932 | P22: 22.19838665 | Q22: 25.62367598 | R22: 26.23361598 | S22: 26.04511527 | T22: 23.68515323 | U22: 23.9996765 | V22: 23.89051266 | W22: 25.39837426 | X22: 26.44038751 | Y22: 23.73330866 | Z22: 13.77680543 | AA22: 12.4054851 | AB22: 12.31836728 | AC22: 20.00531157 | AD22: 24.08616032 | AE22: 23.54964943 | AF22: 21.50847578
A23: LRKPCMW | B23: 042219 | C23: 1 | D23: 2400 | E23: 60 | F23: 1 | G23: 1 | H23: KW | I23: 21.26890898 | J23: 21.12914007 | K23: 21.56037759 | L23: 21.18568164 | M23: 21.28758326 | N23: 20.94006299 | O23: 21.00133077 | P23: 23.40106211 | Q23: 23.84460506 | R23: 22.19181607 | S23: 22.44628194 | T23: 22.30910668 | U23: 22.23982741 | V23: 21.93366145 | W23: 23.62114771 | X23: 26.64401785 | Y23: 24.42702355 | Z23: 21.74403683 | AA23: 21.61939754 | AB23: 21.55104045 | AC23: 22.84074728 | AD23: 24.15823497 | AE23: 23.78532575 | AF23: 19.32257646
A24: LRKPCMW | B24: 042319 | C24: 1 | D24: 2400 | E24: 60 | F24: 1 | G24: 1 | H24: KW | I24: 19.5262068 | J24: 19.24084767 | K24: 19.12367233 | L24: 19.5689732 | M24: 19.14234661 | N24: 15.83161016 | O24: 13.16415651 | P24: 14.52271033 | Q24: 14.97680079 | R24: 13.43931395 | S24: 17.96857594 | T24: 23.71123382 | U24: 23.75071493 | V24: 23.68843852 | W24: 26.10854442 | X24: 25.54044864 | Y24: 23.17942032 | Z24: 22.34677224 | AA24: 21.92717733 | AB24: 21.67282673 | AC24: 24.52633153 | AD24: 25.29828819 | AE24: 23.93886982 | AF24: 21.21089768
A25: LRKPCMW | B25: 042419 | C25: 1 | D25: 2400 | E25: 60 | F25: 1 | G25: 1 | H25: KW | I25: 21.03588395 | J25: 20.82314702 | K25: 21.08839095 | L25: 20.44003611 | M25: 19.56580319 | N25: 19.90542723 | O25: 21.76037682 | P25: 23.22440573 | Q25: 23.21080348 | R25: 22.14850212 | S25: 22.97374388 | T25: 23.03622202 | U25: 22.48463914 | V25: 25.11385086 | W25: 25.58791243 | X25: 22.67060384 | Y25: 21.4171793 | Z25: 21.15121491 | AA25: 21.00193595 | AB25: 22.53181475 | AC25: 24.23644792 | AD25: 24.15728396 | AE25: 21.93662974 | AF25: 21.50792823
A26: LRKPCMW | B26: 042519 | C26: 1 | D26: 2400 | E26: 60 | F26: 1 | G26: 1 | H26: KW | I26: 21.0788809 | J26: 20.92355009 | K26: 21.33317386 | L26: 21.11213726 | M26: 21.13890949 | N26: 21.81034781 | O26: 24.13731286 | P26: 24.71661897 | Q26: 23.13063088 | R26: 23.44855472 | S26: 23.89558469 | T26: 25.98785324 | U26: 25.59531874 | V26: 17.20996217 | W26: 15.27391779 | X26: 17.93681814 | Y26: 23.7536544 | Z26: 23.62232926 | AA26: 24.58549556 | AB26: 25.3429566 | AC26: 24.84001907 | AD26: 23.06567436 | AE26: 22.96472374 | AF26: 23.15005443
A27: LRKPCMW | B27: 042619 | C27: 1 | D27: 2400 | E27: 60 | F27: 1 | G27: 1 | H27: KW | I27: 22.94189962 | J27: 23.42172485 | K27: 24.51198 | L27: 25.60027549 | M27: 24.26878209 | N27: 23.328901 | O27: 23.09809498 | P27: 22.26210398 | Q27: 24.23056898 | R27: 26.86430518 | S27: 28.23784453 | T27: 26.64462303 | U27: 25.52047753 | V27: 25.38214954 | W27: 25.31506046 | X27: 24.82751192 | Y27: 23.27146607 | Z27: 17.421287 | AA27: 16.98293135 | AB27: 19.55407413 | AC27: 22.6879813 | AD27: 21.59444086 | AE27: 21.9246125 | AF27: 23.16120713
A28: LRKPCMW | B28: 042719 | C28: 1 | D28: 2400 | E28: 60 | F28: 1 | G28: 1 | H28: KW | I28: 24.39561157 | J28: 20.07188192 | K28: 18.3819461 | L28: 21.51493108 | M28: 21.51861983 | N28: 21.27121445 | O28: 21.17545113 | P28: 14.34444012 | Q28: 14.96662792 | R28: 21.5592825 | S28: 26.18252108 | T28: 24.01443149 | U28: 23.79907209 | V28: 24.77641701 | W28: 24.35806128 | X28: 25.84696042 | Y28: 26.90591885 | Z28: 25.99335754 | AA28: 23.07795097 | AB28: 22.76489743 | AC28: 22.71535871 | AD28: 22.65060392 | AE28: 24.24278796 | AF28: 25.20070932
A29: LRKPCMW | B29: 042819 | C29: 1 | D29: 2400 | E29: 60 | F29: 1 | G29: 1 | H29: KW | I29: 23.01504055 | J29: 22.54538819 | K29: 22.42115236 | L29: 21.99951134 | M29: 21.84712 | N29: 21.70867673 | O29: 21.59176076 | P29: 13.69902476 | Q29: 21.46945576 | R29: 25.06814499 | S29: 25.5449443 | T29: 23.98961891 | U29: 24.08394131 | V29: 23.60192588 | W29: 24.10252913 | X29: 26.35439361 | Y29: 26.20609447 | Z29: 23.87033983 | AA29: 22.20371804 | AB29: 21.52207803 | AC29: 22.82826894 | AD29: 24.71460169 | AE29: 24.68909747 | AF29: 22.50994164
A30: LRKPCMW | B30: 042919 | C30: 1 | D30: 2400 | E30: 60 | F30: 1 | G30: 1 | H30: KW | I30: 22.05008751 | J30: 21.87138504 | K30: 22.08671561 | L30: 21.90628404 | M30: 21.92092375 | N30: 22.13827161 | O30: 22.87806702 | P30: 24.35388263 | Q30: 17.08895399 | R30: 16.53420109 | S30: 23.6880927 | T30: 23.25446325 | U30: 22.12123998 | V30: 23.62745893 | W30: 26.71779278 | X30: 24.97978798 | Y30: 20.68625994 | Z30: 19.6005581 | AA30: 20.16237148 | AB30: 19.84499519 | AC30: 21.80409423 | AD30: 22.81625169 | AE30: 21.67527628 | AF30: 19.22776415
A31: LRKPCMW | B31: 043019 | C31: 1 | D31: 2400 | E31: 60 | F31: 1 | G31: 1 | H31: KW | I31: 19.3941612 | J31: 19.22920507 | K31: 19.17102085 | L31: 19.28877256 | M31: 19.34214411 | N31: 18.67672882 | O31: 20.56505004 | P31: 22.23342974 | Q31: 22.77708758 | R31: 23.0780086 | S31: 23.09829671 | T31: 22.9899686 | U31: 22.9250409 | V31: 23.48457764 | W31: 25.12627157 | X31: 24.03434496 | Y31: 19.93035509 | Z31: 20.03363999 | AA31: 20.18211204 | AB31: 20.18951835 | AC31: 22.44584967 | AD31: 22.48233368 | AE31: 21.13156081 | AF31: 19.46701394
A32: LRKPCMW | B32: 050119 | C32: 1 | D32: 2400 | E32: 60 | F32: 1 | G32: 1 | H32: KW | I32: 19.88505267 | J32: 19.47756145 | K32: 19.3958903 | L32: 19.68626382 | M32: 19.45404569 | N32: 19.52205696 | O32: 22.01665825 | P32: 14.70175862 | Q32: 16.64843696 | R32: 22.22417906 | S32: 23.23186968 | T32: 23.78647848 | U32: 23.32310852 | V32: 24.42918493 | W32: 25.51344586 | X32: 21.01965923 | Y32: 13.28032321 | Z32: 24.04820658 | AA32: 22.14922258 | AB32: 23.56789143 | AC32: 24.22878225 | AD32: 24.48710978 | AE32: 21.7205787 | AF32: 19.7156297
A33: LRKPCMW | B33: 050219 | C33: 1 | D33: 2400 | E33: 60 | F33: 1 | G33: 1 | H33: KW | I33: 20.04934598 | J33: 19.75335289 | K33: 19.54401653 | L33: 20.94974595 | M33: 22.23801186 | N33: 21.49934037 | O33: 19.81905869 | P33: 19.79951986 | Q33: 19.6764944 | R33: 21.67732239 | S33: 23.85238601 | T33: 23.76463419 | U33: 21.22772759 | V33: 20.55167833 | W33: 22.55786653 | X33: 22.63841377 | Y33: 24.40909855 | Z33: 24.40313316 | AA33: 17.10290206 | AB33: 19.22442122 | AC33: 12.44891432 | AD33: 19.09721711 | AE33: 24.14690936 | AF33: 24.77024989
A34: LRKPCMW | B34: 050319 | C34: 1 | D34: 2400 | E34: 60 | F34: 1 | G34: 1 | H34: KW | I34: 22.47244899 | J34: 21.9287047 | K34: 21.84809982 | L34: 22.23922223 | M34: 21.93115426 | N34: 21.99242203 | O34: 22.23054791 | P34: 24.32627466 | Q34: 25.85929466 | R34: 24.56866566 | S34: 22.75691475 | T34: 17.47503319 | U34: 23.81863974 | V34: 20.89458767 | W34: 24.23160644 | X34: 24.25745649 | Y34: 20.05009526 | Z34: 20.34709699 | AA34: 21.38743878 | AB34: 20.45067008 | AC34: 20.89225338 | AD34: 22.49850076 | AE34: 21.82651489 | AF34: 19.83387131
A35: LRKPCMW | B35: 050419 | C35: 1 | D35: 2400 | E35: 60 | F35: 1 | G35: 1 | H35: KW | I35: 20.40389792 | J35: 20.07611821 | K35: 20.10268872 | L35: 20.08620463 | M35: 19.74917423 | N35: 20.09781842 | O35: 20.55306161 | P35: 24.13241374 | Q35: 24.16725511 | R35: 22.74818279 | S35: 23.43771903 | T35: 23.79607499 | U35: 23.70748743 | V35: 26.35177114 | W35: 26.59580478 | X35: 24.48033747 | Y35: 23.28993862 | Z35: 14.5113559 | AA35: 14.74178729 | AB35: 16.69111691 | AC35: 25.37609769 | AD35: 25.34555025 | AE35: 22.30893377 | AF35: 22.29489925
A36: LRKPCMW | B36: 050519 | C36: 1 | D36: 2400 | E36: 60 | F36: 1 | G36: 1 | H36: KW | I36: 22.63143973 | J36: 22.22325687 | K36: 22.21547592 | L36: 22.25351612 | M36: 22.090779 | N36: 22.22749317 | O36: 23.223887 | P36: 25.75690313 | Q36: 25.48154396 | R36: 24.0384948 | S36: 24.19105905 | T36: 24.33915646 | U36: 24.95644513 | V36: 25.74027495 | W36: 26.34171354 | X36: 25.20563725 | Y36: 24.22653442 | Z36: 23.63714189 | AA36: 22.76325478 | AB36: 25.07638703 | AC36: 24.50128839 | AD36: 24.56053889 | AE36: 21.59570887 | AF36: 21.47271223
A37: LRKPCMW | B37: 050619 | C37: 1 | D37: 2400 | E37: 60 | F37: 1 | G37: 1 | H37: KW | I37: 22.27175812 | J37: 21.33790007 | K37: 21.20297264 | L37: 21.48833176 | M37: 21.25986003 | N37: 22.44069119 | O37: 25.36065106 | P37: 28.43444319 | Q37: 14.21533399 | R37: 15.24486891 | S37: 19.19260578 | T37: 23.62829466 | U37: 24.32892595 | V37: 26.64643859 | W37: 26.38133875 | X37: 24.24941617 | Y37: 23.83408637 | Z37: 23.7173433 | AA37: 22.09616803 | AB37: 24.94748263 | AC37: 24.13662122 | AD37: 23.86688163 | AE37: 21.62233701 | AF37: 21.34602684
A38: LRKPCMW | B38: 050719 | C38: 1 | D38: 2400 | E38: 60 | F38: 1 | G38: 1 | H38: KW | I38: 21.70418107 | J38: 21.2334048 | K38: 21.22764113 | L38: 21.45882179 | M38: 21.39553673 | N38: 21.68951254 | O38: 24.08486349 | P38: 24.2178601 | Q38: 22.95541542 | R38: 22.20625406 | S38: 21.9203762 | T38: 21.88063572 | U38: 23.25385807 | V38: 24.58342064 | W38: 24.05933045 | X38: 22.3306628 | Y38: 21.70274016 | Z38: 12.83914336 | AA38: 13.4390834 | AB38: 15.50858547 | AC38: 19.89706992 | AD38: 23.50616257 | AE38: 22.27207513 | AF38: 21.65104007
A39: LRKPCMW | B39: 050819 | C39: 1 | D39: 2400 | E39: 60 | F39: 1 | G39: 1 | H39: KW | I39: 20.68095737 | J39: 20.45686602 | K39: 20.56545349 | L39: 20.55334979 | M39: 20.4620245 | N39: 21.99858915 | O39: 23.1165099 | P39: 22.16706112 | Q39: 20.56943042 | R39: 20.60709598 | S39: 20.17410054 | T39: 13.6270942 | U39: 21.28478788 | V39: 23.79362543 | W39: 20.67242714 | X39: 21.00591288 | Y39: 21.05196458 | Z39: 20.94303128 | AA39: 20.86003449 | AB39: 23.01446418 | AC39: 22.47559019 | AD39: 22.020981 | AE39: 19.70064416 | AF39: 19.68332435
A40: LRKPCMW | B40: 050919 | C40: 1 | D40: 2400 | E40: 60 | F40: 1 | G40: 1 | H40: KW | I40: 19.36119303 | J40: 19.53231628 | K40: 19.62329576 | L40: 19.14926301 | M40: 19.55225857 | N40: 19.42718701 | O40: 22.11795469 | P40: 14.13591067 | Q40: 12.805253 | R40: 19.83663787 | S40: 21.14824663 | T40: 22.56020081 | U40: 22.46579196 | V40: 20.76764291 | W40: 19.98251627 | X40: 19.72424638 | Y40: 19.62871361 | Z40: 20.39660689 | AA40: 22.33126798 | AB40: 22.46400522 | AC40: 21.49302915 | AD40: 20.34314888 | AE40: 20.49882551 | AF40: 20.90294498
A41: LRKPCMW | B41: 051019 | C41: 1 | D41: 2400 | E41: 60 | F41: 1 | G41: 1 | H41: KW | I41: 20.90087006 | J41: 21.62712085 | K41: 22.87607855 | L41: 21.61256759 | M41: 20.65787389 | N41: 20.24009452 | O41: 20.28479176 | P41: 20.67989109 | Q41: 21.3811852 | R41: 23.05529976 | S41: 22.29314133 | T41: 19.35606336 | U41: 19.4031237 | V41: 19.564564 | W41: 19.56058707 | X41: 21.9985027 | Y41: 23.26016928 | Z41: 16.26702634 | AA41: 11.11788201 | AB41: 11.10664286 | AC41: 15.10440836 | AD41: 20.38605938 | AE41: 22.09245046 | AF41: 22.14389118
A42: LRKPCMW | B42: 051119 | C42: 1 | D42: 2400 | E42: 60 | F42: 1 | G42: 1 | H42: KW | I42: 19.63926112 | J42: 19.21733191 | K42: 19.64522651 | L42: 19.46813786 | M42: 19.12367233 | N42: 20.07807786 | O42: 17.39275685 | P42: 11.87643815 | Q42: 19.7763211 | R42: 21.48421074 | S42: 19.66557225 | T42: 19.27300893 | U42: 19.24266323 | V42: 21.33282804 | W42: 23.24336819 | X42: 20.43522345 | Y42: 17.80189071 | Z42: 20.32361005 | AA42: 20.14387011 | AB42: 20.85478955 | AC42: 21.32121426 | AD42: 22.20083621 | AE42: 21.61458488 | AF42: 19.80637862
A43: LRKPCMW | B43: 051219 | C43: 1 | D43: 2400 | E43: 60 | F43: 1 | G43: 1 | H43: KW | I43: 20.17897084 | J43: 19.93954814 | K43: 19.83836697 | L43: 20.43424363 | M43: 20.12312091 | N43: 20.28539694 | O43: 19.00528663 | P43: 13.96023412 | Q43: 11.72390272 | R43: 14.78282459 | S43: 20.27020968 | T43: 20.82127383 | U43: 22.16415047 | V43: 22.06392031 | W43: 20.31920085 | X43: 19.78790607 | Y43: 19.9415366 | Z43: 20.01421644 | AA43: 22.11769532 | AB43: 22.59896147 | AC43: 22.0257072 | AD43: 19.48637986 | AE43: 19.40571735 | AF43: 19.0094941
A44: LRKPCMW | B44: 051319 | C44: 1 | D44: 2400 | E44: 60 | F44: 1 | G44: 1 | H44: KW | I44: 19.24122231 | J44: 18.92891805 | K44: 19.52764771 | L44: 21.85299894 | M44: 21.06130172 | N44: 19.49718674 | O44: 19.61029869 | P44: 12.38104715 | Q44: 11.56076214 | R44: 20.57934393 | S44: 23.50838158 | T44: 22.16432338 | U44: 20.42502176 | V44: 20.54925759 | W44: 20.20470561 | X44: 20.21214074 | Y44: 20.9908409 | Z44: 22.16660003 | AA44: 22.17276715 | AB44: 19.93750204 | AC44: 19.59917482 | AD44: 19.66026968 | AE44: 19.87075878 | AF44: 21.4924816
A45: LRKPCMW | B45: 051419 | C45: 1 | D45: 2400 | E45: 60 | F45: 1 | G45: 1 | H45: KW | I45: 22.04008755 | J45: 20.29286089 | K45: 19.57061585 | L45: 19.53681194 | M45: 19.73917427 | N45: 19.65473656 | O45: 19.99418769 | P45: 20.94461629 | Q45: 14.23446937 | R45: 13.24095736 | S45: 11.73701506 | T45: 11.22373175 | U45: 12.23058664 | V45: 11.47309678 | W45: 13.35095694 | X45: 13.87337566 | Y45: 12.26318017 | Z45: 16.04694073 | AA45: 19.57594724 | AB45: 19.82366962 | AC45: 21.7067459 | AD45: 21.74106854 | AE45: 20.85136017 | AF45: 19.1948248
A46: LRKPCMW | B46: 051519 | C46: 1 | D46: 2400 | E46: 60 | F46: 1 | G46: 1 | H46: KW | I46: 19.81756014 | J46: 19.31456497 | K46: 19.95450485 | L46: 19.88173856 | M46: 19.82649382 | N46: 21.29524894 | O46: 22.62265014 | P46: 22.58645431 | Q46: 19.74646531 | R46: 20.13790472 | S46: 20.12476356 | T46: 19.58586075 | U46: 19.9723434 | V46: 21.88043399 | W46: 22.34806907 | X46: 18.99341347 | Y46: 19.02079089 | Z46: 18.94499867 | AA46: 19.33401734 | AB46: 21.74279764 | AC46: 21.39836093 | AD46: 20.45470464 | AE46: 19.27479567 | AF46: 19.13064637
A47: LRKPCMW | B47: 051619 | C47: 1 | D47: 2400 | E47: 60 | F47: 1 | G47: 1 | H47: KW | I47: 19.01257766 | J47: 19.26058823 | K47: 18.97067581 | L47: 19.08298085 | M47: 21.13340518 | N47: 21.70550672 | O47: 20.49597249 | P47: 19.36145239 | Q47: 18.96439341 | R47: 19.55790696 | S47: 19.46418975 | T47: 21.72631355 | U47: 21.80271095 | V47: 20.00260265 | W47: 18.9870158 | X47: 19.14205843 | Y47: 21.00372269 | Z47: 21.49755363 | AA47: 21.29478784 | AB47: 19.05390315 | AC47: 19.0043068 | AD47: 19.43819561 | AE47: 20.61721122 | AF47: 21.463231
A48: LRKPCMW | B48: 051719 | C48: 1 | D48: 2400 | E48: 60 | F48: 1 | G48: 1 | H48: KW | I48: 20.4071544 | J48: 19.0824333 | K48: 18.83756393 | L48: 19.91127735 | M48: 19.61217188 | N48: 19.55730178 | O48: 20.56709614 | P48: 23.31659558 | Q48: 23.56570124 | R48: 23.56584533 | S48: 22.54299627 | T48: 22.36847245 | U48: 22.3410374 | V48: 21.95144236 | W48: 24.73102814 | X48: 24.81699322 | Y48: 21.98717709 | Z48: 21.81178872 | AA48: 22.03112505 | AB48: 21.85331594 | AC48: 24.44399755 | AD48: 24.55163402 | AE48: 23.02700016 | AF48: 22.03328643
A49: LRKPCMW | B49: 051819 | C49: 1 | D49: 2400 | E49: 60 | F49: 1 | G49: 1 | H49: KW | I49: 22.63948004 | J49: 22.3261095 | K49: 22.42495638 | L49: 22.37858768 | M49: 22.22383324 | N49: 22.31397698 | O49: 24.15647705 | P49: 24.75955829 | Q49: 23.20642309 | R49: 22.24348734 | S49: 22.73973902 | T49: 23.47287739 | U49: 25.49301366 | V49: 26.26110867 | W49: 24.66310333 | X49: 23.24403102 | Y49: 23.5235112 | Z49: 23.77157941 | AA49: 24.80019214 | AB49: 24.94831836 | AC49: 23.15339736 | AD49: 21.33357732 | AE49: 21.32908166 | AF49: 21.18769892
A50: LRKPCMW | B50: 051919 | C50: 1 | D50: 2400 | E50: 60 | F50: 1 | G50: 1 | H50: KW | I50: 21.21519161 | J50: 23.46740191 | K50: 23.29529883 | L50: 21.05548041 | M50: 21.28810199 | N50: 21.07974545 | O50: 21.41628593 | P50: 21.18931275 | Q50: 22.31648418 | R50: 23.47460649 | S50: 22.36391915 | T50: 21.1287078 | U50: 20.45513692 | V50: 19.99070068 | W50: 20.80986177 | X50: 23.30492415 | Y50: 23.23884372 | Z50: 23.57109027 | AA50: 21.40807271 | AB50: 21.1742984 | AC50: 21.37648782 | AD50: 23.50060063 | AE50: 23.2892758 | AF50: 20.80435747
A51: LRKPCMW | B51: 052019 | C51: 1 | D51: 2400 | E51: 60 | F51: 1 | G51: 1 | H51: KW | I51: 20.26245755 | J51: 20.31072826 | K51: 19.81989442 | L51: 19.79245937 | M51: 19.72283428 | N51: 19.54364189 | O51: 20.65222549 | P51: 22.14827157 | Q51: 21.05660433 | R51: 19.20116483 | S51: 19.67937623 | T51: 19.77401564 | U51: 19.14825437 | V51: 20.95692172 | W51: 21.51838928 | X51: 21.45887943 | Y51: 19.96928866 | Z51: 19.65355501 | AA51: 19.77101853 | AB51: 21.85311421 | AC51: 22.33138325 | AD51: 22.34178667 | AE51: 20.94723876 | AF51: 19.54459289
A52: LRKPCMW | B52: 052119 | C52: 1 | D52: 2400 | E52: 60 | F52: 1 | G52: 1 | H52: KW | I52: 19.565198 | J52: 19.70603319 | K52: 19.48686977 | L52: 19.31456497 | M52: 19.80781954 | N52: 21.90677395 | O52: 22.31455335 | P52: 21.12032166 | Q52: 20.43352317 | R52: 21.1549613 | S52: 21.08729585 | T52: 21.71876315 | U52: 23.60544172 | V52: 19.50254695 | W52: 20.94758458 | X52: 20.89795941 | Y52: 22.40590746 | Z52: 22.92357116 | AA52: 22.48798207 | AB52: 21.69527621 | AC52: 19.59704226 | AD52: 20.80334883 | AE52: 22.5925638 | AF52: 25.70139902
A53: LRKPCMW | B53: 052219 | C53: 1 | D53: 2400 | E53: 60 | F53: 1 | G53: 1 | H53: KW | I53: 24.00382634 | J53: 22.1840063 | K53: 21.81761003 | L53: 21.51262562 | M53: 22.03472734 | N53: 21.80686079 | O53: 22.15988536 | P53: 25.45647202 | Q53: 24.75085515 | R53: 22.9159343 | S53: 22.64896127 | T53: 22.60469632 | U53: 23.4886122 | V53: 25.67177378 | W53: 25.70632696 | X53: 25.41027623 | Y53: 25.12457128 | Z53: 22.12700364 | AA53: 21.82395006 | AB53: 23.04524216 | AC53: 25.60572216 | AD53: 25.44938271 | AE53: 25.3347722 | AF53: 23.07068875
A54: LRKPCMW | B54: 052319 | C54: 1 | D54: 2400 | E54: 60 | F54: 1 | G54: 1 | H54: KW | I54: 23.12697095 | J54: 22.11141292 | K54: 21.89593825 | L54: 22.03478498 | M54: 21.87732161 | N54: 24.42751346 | O54: 24.80566762 | P54: 24.21728373 | Q54: 20.91046657 | R54: 19.65773367 | S54: 19.6112497 | T54: 19.56297899 | U54: 22.16020236 | V54: 22.12406417 | W54: 20.13764535 | X54: 19.5447658 | Y54: 14.36383486 | Z54: 19.20655386 | AA54: 22.51455257 | AB54: 24.0498204 | AC54: 25.18111285 | AD54: 23.24094745 | AE54: 23.02285032 | AF54: 23.43212827
A55: LRKPCMW | B55: 052419 | C55: 1 | D55: 2400 | E55: 60 | F55: 1 | G55: 1 | H55: KW | I55: 22.80181371 | J55: 25.38324463 | K55: 25.67817145 | L55: 22.86019965 | M55: 23.15411782 | N55: 23.23757571 | O55: 22.78443625 | P55: 22.50155551 | Q55: 24.54128824 | R55: 25.09082502 | S55: 24.6369651 | T55: 23.28947753 | U55: 23.03472347 | V55: 23.04034304 | W55: 22.53276576 | X55: 15.18824089 | Y55: 14.89008642 | Z55: 13.90925449 | AA55: 12.34917408 | AB55: 18.32116824 | AC55: 22.58233329 | AD55: 25.24581001 | AE55: 25.22093979 | AF55: 23.2639733
A56: LRKPCMW | B56: 052519 | C56: 1 | D56: 2400 | E56: 60 | F56: 1 | G56: 1 | H56: KW | I56: 22.45034533 | J56: 22.66383153 | K56: 21.5696571 | L56: 22.17262306 | M56: 21.8609528 | N56: 21.49559398 | O56: 22.8558769 | P56: 24.53376666 | Q56: 25.04630069 | R56: 24.57759934 | S56: 22.93063165 | T56: 22.81576178 | U56: 22.98953632 | V56: 25.60105359 | W56: 26.00756498 | X56: 26.60349927 | Y56: 23.56420269 | Z56: 23.28486659 | AA56: 23.00740369 | AB56: 25.19102636 | AC56: 25.86520242 | AD56: 25.96410694 | AE56: 23.05308075 | AF56: 23.08553019
A57: LRKPCMW | B57: 052619 | C57: 1 | D57: 2400 | E57: 60 | F57: 1 | G57: 1 | H57: KW | I57: 23.67869792 | J57: 22.95656815 | K57: 22.92798037 | L57: 23.11351279 | M57: 24.08287503 | N57: 24.75535081 | O57: 19.16231772 | P57: 12.87015188 | Q57: 19.60551485 | R57: 23.53031233 | S57: 25.92036071 | T57: 25.41448371 | U57: 25.26886467 | V57: 23.04930555 | W57: 22.31789627 | X57: 23.36794984 | Y57: 24.83036493 | Z57: 25.06362051 | AA57: 23.9672847 | AB57: 22.3907202 | AC57: 22.31132569 | AD57: 22.48763625 | AE57: 23.97719821 | AF57: 25.03007597
A58: LRKPCMW | B58: 052719 | C58: 1 | D58: 2400 | E58: 60 | F58: 1 | G58: 1 | H58: KW | I58: 22.87530046 | J58: 22.16945305 | K58: 22.12783937 | L58: 22.15997181 | M58: 21.94564988 | N58: 22.41899098 | O58: 22.66051743 | P58: 14.59778208 | Q58: 14.54129815 | R58: 24.67172001 | S58: 24.99696371 | T58: 23.24276301 | U58: 23.2087862 | V58: 24.2288687 | W58: 25.55379152 | X58: 25.7996119 | Y58: 24.03892707 | Z58: 22.89558856 | AA58: 22.86336967 | AB58: 24.5850921 | AC58: 25.32903735 | AD58: 25.63759523 | AE58: 24.64932817 | AF58: 23.56682516
A59: LRKPCMW | B59: 052819 | C59: 1 | D59: 2400 | E59: 60 | F59: 1 | G59: 1 | H59: KW | I59: 22.99633745 | J59: 22.82815366 | K59: 22.77945068 | L59: 22.66947993 | M59: 22.78636708 | N59: 23.45506766 | O59: 25.26658802 | P59: 14.83703188 | Q59: 12.8318235 | R59: 15.61910377 | S59: 22.63417747 | T59: 22.55293859 | U59: 24.32477611 | V59: 23.85702576 | W59: 18.92188637 | X59: 22.45731937 | Y59: 22.39665678 | Z59: 22.22827126 | AA59: 24.16273063 | AB59: 23.83103162 | AC59: 25.19955658 | AD59: 23.72290524 | AE59: 22.82607874 | AF59: 22.53167066
A60: LRKPCMW | B60: 052919 | C60: 1 | D60: 2400 | E60: 60 | F60: 1 | G60: 1 | H60: KW | I60: 22.26325672 | J60: 22.68760666 | K60: 22.5562527 | L60: 22.35484138 | M60: 25.30105475 | N60: 24.79223828 | O60: 22.2629109 | P60: 23.61103248 | Q60: 15.90930438 | R60: 13.98052222 | S60: 20.75136055 | T60: 24.9774537 | U60: 24.26192333 | V60: 22.81097794 | W60: 17.70209283 | X60: 23.11480961 | Y60: 23.10256182 | Z60: 24.47633172 | AA60: 25.62168751 | AB60: 24.70140289 | AC60: 23.10339756 | AD60: 23.22397346 | AE60: 22.80924884 | AF60: 22.91250492
A61: LRKPCMW | B61: 053019 | C61: 1 | D61: 2400 | E61: 60 | F61: 1 | G61: 1 | H61: KW | I61: 22.76400406 | J61: 23.29648038 | K61: 25.33506038 | L61: 23.86567126 | M61: 22.84780777 | N61: 22.44302547 | O61: 23.21308013 | P61: 18.26557767 | Q61: 11.98306598 | R61: 13.76369309 | S61: 15.08714618 | T61: 21.95144236 | U61: 23.91198232 | V61: 24.00457562 | W61: 24.0587829 | X61: 23.87057038 | Y61: 25.15010433 | Z61: 25.03243908 | AA61: 20.14444648 | AB61: 23.60653682 | AC61: 23.33152347 | AD61: 24.10345132 | AE61: 23.90935985 | AF61: 24.63627346
A62: LRKPCMW | B62: 053119 | C62: 1 | D62: 2400 | E62: 60 | F62: 1 | G62: 1 | H62: KW | I62: 25.91926561 | J62: 24.41734059 | K62: 23.49996662 | L62: 23.20754701 | M62: 23.14351267 | N62: 23.4194482 | O62: 23.43907349 | P62: 21.59922471 | Q62: 21.28913945 | R62: 22.10734954 | S62: 21.45729442 | T62: 21.11568191 | U62: 21.3511565 | V62: 21.90112555 | W62: 21.03401076 | X62: 21.9890791 | Y62: 21.30778491 | Z62: 20.97971702 | AA62: 19.73600426 | AB62: 16.64549749 | AC62: 22.02873313 | AD62: 22.08363205 | AE62: 19.80585989 | AF62: 19.44127917
A63: LRKPCMW | B63: 060119 | C63: 1 | D63: 2400 | E63: 60 | F63: 1 | G63: 1 | H63: KW | I63: 19.34681268 | J63: 21.21596971 | K63: 23.92526757 | L63: 24.02348045 | M63: 24.9265317 | N63: 24.85454351 | O63: 25.66621184 | P63: 27.18591777 | Q63: 27.22462079 | R63: 24.66947218 | S63: 25.19687648 | T63: 24.7710568 | U63: 25.87745021 | V63: 27.47070053 | W63: 27.71214051 | X63: 25.42808596 | Y63: 21.25323181 | Z63: 12.7568382 | AA63: 13.49643188 | AB63: 21.01225292 | AC63: 26.34652621 | AD63: 25.61275383 | AE63: 23.44573052 | AF63: 23.39970765
A64: LRKPCMW | B64: 060219 | C64: 1 | D64: 2400 | E64: 60 | F64: 1 | G64: 1 | H64: KW | I64: 22.99368616 | J64: 23.3164803 | K64: 22.75933549 | L64: 22.95437796 | M64: 23.79814991 | N64: 25.20174678 | O64: 23.53659472 | P64: 22.49469674 | Q64: 20.62020832 | R64: 21.31328921 | S64: 21.38787106 | T64: 21.60645811 | U64: 21.06767057 | V64: 26.82021313 | W64: 24.15469031 | X64: 21.74138554 | Y64: 21.06885212 | Z64: 23.58621989 | AA64: 26.01998568 | AB64: 26.74038635 | AC64: 24.45647589 | AD64: 24.79517775 | AE64: 23.93391307 | AF64: 23.86325052
A65: LRKPCMW | B65: 060319 | C65: 1 | D65: 2400 | E65: 60 | F65: 1 | G65: 1 | H65: KW | I65: 26.33796716 | J65: 26.21788117 | K65: 23.81316426 | L65: 23.68129157 | M65: 23.73774668 | N65: 23.30221523 | O65: 23.9154117 | P65: 22.49959586 | Q65: 25.99940939 | R65: 26.39594964 | S65: 24.69163348 | T65: 23.73189656 | U65: 23.81437463 | V65: 23.62019671 | W65: 25.488835 | X65: 26.12537432 | Y65: 25.56275402 | Z65: 12.17733036 | AA65: 13.00556923 | AB65: 12.37856877 | AC65: 19.84176754 | AD65: 26.02312688 | AE65: 26.49488298 | AF65: 23.38025527
A66: LRKPCMW | B66: 060419 | C66: 1 | D66: 2400 | E66: 60 | F66: 1 | G66: 1 | H66: KW | I66: 23.15336854 | J66: 22.5928808 | K66: 22.36135432 | L66: 22.62481151 | M66: 22.3889911 | N66: 22.38576345 | O66: 22.78141033 | P66: 25.61655785 | Q66: 25.23918179 | R66: 23.64982195 | S66: 23.35633606 | T66: 22.83466661 | U66: 22.52213179 | V66: 22.68063262 | W66: 24.07558399 | X66: 24.87073941 | Y66: 25.28108365 | Z66: 12.36781954 | AA66: 12.056351 | AB66: 11.93946385 | AC66: 18.71966814 | AD66: 25.21926832 | AE66: 25.57018915 | AF66: 22.67518596
A67: LRKPCMW | B67: 060519 | C67: 1 | D67: 2400 | E67: 60 | F67: 1 | G67: 1 | H67: KW | I67: 23.69232899 | J67: 22.34118149 | K67: 22.6872032 | L67: 23.01469473 | M67: 22.49423565 | N67: 22.96400328 | O67: 23.91754426 | P67: 25.11313041 | Q67: 25.27402315 | R67: 23.29584638 | S67: 20.05923067 | T67: 20.02372649 | U67: 22.79907597 | V67: 24.82341971 | W67: 26.99459286 | X67: 24.06509412 | Y67: 20.62726882 | Z67: 19.00998401 | AA67: 19.6098376 | AB67: 18.76425009 | AC67: 20.74277269 | AD67: 23.13114961 | AE67: 22.10331497 | AF67: 19.61963583
A68: LRKPCMW | B68: 060619 | C68: 1 | D68: 2400 | E68: 60 | F68: 1 | G68: 1 | H68: KW | I68: 19.13012764 | J68: 18.97690057 | K68: 19.01865833 | L68: 19.00926356 | M68: 18.82450923 | N68: 18.64615257 | O68: 19.06315384 | P68: 21.4413867 | Q68: 15.95152324 | R68: 14.89002879 | S68: 18.88453781 | T68: 20.8870949 | U68: 22.06717678 | V68: 23.1514089 | W68: 25.44641442 | X68: 25.52730748 | Y68: 23.85270301 | Z68: 22.7849838 | AA68: 22.90406115 | AB68: 22.76754871 | AC68: 25.02592613 | AD68: 25.88404961 | AE68: 24.69388131 | AF68: 23.29665329
A69: LRKPCMW | B69: 060719 | C69: 1 | D69: 2400 | E69: 60 | F69: 1 | G69: 1 | H69: KW | I69: 23.06083288 | J69: 22.95495433 | K69: 23.31907395 | L69: 22.96429147 | M69: 23.05558794 | N69: 23.13815246 | O69: 25.73186 | P69: 17.70575275 | Q69: 15.21668458 | R69: 14.82501463 | S69: 21.21380833 | T69: 23.64898622 | U69: 23.85621885 | V69: 23.48060071 | W69: 25.37491614 | X69: 23.81567145 | Y69: 20.627874 | Z69: 20.45098708 | AA69: 20.23075738 | AB69: 19.74113392 | AC69: 19.58041408 | AD69: 21.18579691 | AE69: 21.05323258 | AF69: 18.42779607
A70: LRKPCMW | B70: 060819 | C70: 1 | D70: 2400 | E70: 60 | F70: 1 | G70: 1 | H70: KW | I70: 20.70989097 | J70: 22.2666861 | K70: 21.9653328 | L70: 22.04936706 | M70: 22.09026027 | N70: 21.93677383 | O70: 21.76481484 | P70: 24.89117161 | Q70: 24.27535267 | R70: 22.41792471 | S70: 22.17181615 | T70: 21.86807093 | U70: 22.04639877 | V70: 24.00644881 | W70: 25.21644413 | X70: 24.57915553 | Y70: 22.95040103 | Z70: 16.10054283 | AA70: 11.94476642 | AB70: 18.30335851 | AC70: 25.61557803 | AD70: 25.59405073 | AE70: 24.32987695 | AF70: 22.96867185
A71: LRKPCMW | B71: 060919 | C71: 1 | D71: 2400 | E71: 60 | F71: 1 | G71: 1 | H71: KW | I71: 23.30270514 | J71: 23.45610512 | K71: 23.41492373 | L71: 23.119507 | M71: 23.50973604 | N71: 24.25114527 | O71: 14.62144193 | P71: 14.76011575 | Q71: 19.44638002 | R71: 24.10270204 | S71: 24.41906969 | T71: 24.04788957 | U71: 23.60483654 | V71: 25.48739409 | W71: 25.32618434 | X71: 23.36152336 | Y71: 23.14037148 | Z71: 22.88561742 | AA71: 22.718644 | AB71: 24.66137423 | AC71: 25.53131322 | AD71: 24.76952943 | AE71: 22.85602099 | AF71: 22.16051936
A72: LRKPCMW | B72: 061019 | C72: 1 | D72: 2400 | E72: 60 | F72: 1 | G72: 1 | H72: KW | I72: 22.08224877 | J72: 22.9681243 | K72: 22.23533175 | L72: 22.15608134 | M72: 21.65755301 | N72: 23.99607421 | O72: 15.47795158 | P72: 14.17694798 | Q72: 12.90297596 | R72: 13.1481047 | S72: 13.06562663 | T72: 13.95862029 | U72: 24.10108822 | V72: 26.63874409 | W72: 26.17165657 | X72: 23.73610404 | Y72: 23.6635683 | Z72: 23.4931655 | AA72: 23.03391656 | AB72: 23.44241642 | AC72: 23.7688993 | AD72: 23.67503799 | AE72: 22.01320005 | AF72: 22.55218932
A73: LRKPCMW | B73: 061119 | C73: 1 | D73: 2400 | E73: 60 | F73: 1 | G73: 1 | H73: KW | I73: 22.52054679 | J73: 23.345875 | K73: 23.03472347 | L73: 23.82253022 | M73: 24.07264452 | N73: 24.21529527 | O73: 26.36894687 | P73: 22.77772158 | Q73: 20.4917362 | R73: 20.81219605 | S73: 20.50176498 | T73: 20.2913047 | U73: 20.29185225 | V73: 21.8619038 | W73: 20.365973 | X73: 19.43528496 | Y73: 18.89260695 | Z73: 18.78430765 | AA73: 19.39851277 | AB73: 20.10251581 | AC73: 21.61245232 | AD73: 21.81397892 | AE73: 19.7747361 | AF73: 19.20243284
A74: LRKPCMW | B74: 061219 | C74: 1 | D74: 2400 | E74: 60 | F74: 1 | G74: 1 | H74: KW | I74: 18.79923555 | J74: 18.7521464 | K74: 18.62923621 | L74: 18.74828474 | M74: 18.91822644 | N74: 18.78943732 | O74: 21.05101357 | P74: 21.46147308 | Q74: 22.17876137 | R74: 22.50178605 | S74: 22.54752075 | T74: 22.28126817 | U74: 22.96913295 | V74: 20.79179267 | W74: 24.53319029 | X74: 22.39314094 | Y74: 17.03941528 | Z74: 21.03075429 | AA74: 24.46290238 | AB74: 24.53039491 | AC74: 26.4144222 | AD74: 26.39024362 | AE74: 23.66840978 | AF74: 23.88740028
A75: LRKPCMW | B75: 061319 | C75: 1 | D75: 2400 | E75: 60 | F75: 1 | G75: 1 | H75: KW | I75: 24.74566785 | J75: 24.12806217 | K75: 23.6230209 | L75: 23.6783521 | M75: 23.55947648 | N75: 23.46230106 | O75: 25.84445322 | P75: 26.45289467 | Q75: 24.19327806 | R75: 23.79235742 | S75: 23.73679568 | T75: 24.3411161 | U75: 24.25068418 | V75: 26.04589336 | W75: 26.38525804 | X75: 25.16872097 | Y75: 23.23359878 | Z75: 12.90216905 | AA75: 13.1231192 | AB75: 12.72972015 | AC75: 20.31372536 | AD75: 26.50785123 | AE75: 24.54442944 | AF75: 23.62535519
A76: LRKPCMW | B76: 061419 | C76: 1 | D76: 2400 | E76: 60 | F76: 1 | G76: 1 | H76: KW | I76: 23.64797758 | J76: 23.2224749 | K76: 23.25492435 | L76: 23.29809421 | M76: 23.29270518 | N76: 23.30616334 | O76: 25.16042129 | P76: 25.91635496 | Q76: 24.86249737 | R76: 23.62330909 | S76: 23.1129076 | T76: 23.25950646 | U76: 23.41348281 | V76: 25.89854523 | W76: 27.08171068 | X76: 25.79059176 | Y76: 25.46707716 | Z76: 13.4249336 | AA76: 12.92977701 | AB76: 14.61539008 | AC76: 21.69069409 | AD76: 25.39598234 | AE76: 23.47846815 | AF76: 23.8218674
A77: LRKPCMW | B77: 061519 | C77: 1 | D77: 2400 | E77: 60 | F77: 1 | G77: 1 | H77: KW | I77: 23.76722784 | J77: 23.00293685 | K77: 23.4060765 | L77: 23.03942086 | M77: 23.20238853 | N77: 25.21520494 | O77: 25.20563725 | P77: 23.32996728 | Q77: 22.85388843 | R77: 22.33368872 | S77: 22.80812492 | T77: 25.49186093 | U77: 27.01418933 | V77: 26.63338388 | W77: 24.21523763 | X77: 25.01261206 | Y77: 23.54564368 | Z77: 13.61669078 | AA77: 14.57003003 | AB77: 14.68305553 | AC77: 19.92773262 | AD77: 24.1428748 | AE77: 23.96699652 | AF77: 24.19304751
A78: LRKPCMW | B78: 061619 | C78: 1 | D78: 2400 | E78: 60 | F78: 1 | G78: 1 | H78: KW | I78: 24.25734121 | J78: 25.33471456 | K78: 26.4589177 | L78: 24.67195056 | M78: 23.88823601 | N78: 23.22792157 | O78: 23.6091881 | P78: 23.46714254 | Q78: 23.57728621 | R78: 24.93042218 | S78: 27.19513963 | T78: 27.06381449 | U78: 24.78722389 | V78: 25.11788543 | W78: 25.74335851 | X78: 26.3518576 | Y78: 27.32332357 | Z78: 16.32673792 | AA78: 13.8531452 | AB78: 12.78058451 | AC78: 20.60309024 | AD78: 26.05436595 | AE78: 27.41176704 | AF78: 27.65551249
A79: LRKPCMW | B79: 061719 | C79: 1 | D79: 2400 | E79: 60 | F79: 1 | G79: 1 | H79: KW | I79: 24.85223804 | J79: 23.9751521 | K79: 24.28408463 | L79: 24.03509423 | M79: 23.98290424 | N79: 24.11575675 | O79: 23.68676705 | P79: 25.50964184 | Q79: 28.61631569 | R79: 27.93150566 | S79: 26.35776535 | T79: 26.88482383 | U79: 26.08632548 | V79: 25.766759 | W79: 29.03910944 | X79: 23.92990732 | Y79: 26.1237605 | Z79: 14.99775171 | AA79: 14.10075231 | AB79: 14.29423859 | AC79: 20.65245604 | AD79: 27.99706736 | AE79: 27.61142044 | AF79: 25.43030497
A80: LRKPCMW | B80: 061819 | C80: 1 | D80: 2400 | E80: 60 | F80: 1 | G80: 1 | H80: KW | I80: 25.39627052 | J80: 25.83776737 | K80: 26.25203089 | L80: 26.18157007 | M80: 26.51038724 | N80: 28.15772957 | O80: 28.06856565 | P80: 30.13801008 | Q80: 29.16786975 | R80: 26.60053099 | S80: 26.46168426 | T80: 27.8840995 | U80: 26.41932131 | V80: 27.32972124 | W80: 28.97542092 | X80: 28.94305794 | Y80: 26.07969727 | Z80: 17.82880703 | AA80: 15.11423541 | AB80: 14.43478559 | AC80: 21.58227953 | AD80: 27.27692606 | AE80: 26.62251937 | AF80: 24.57731116
A81: LRKPCMW | B81: 061919 | C81: 1 | D81: 2400 | E81: 60 | F81: 1 | G81: 1 | H81: KW | I81: 24.65950104 | J81: 24.61918419 | K81: 24.69140293 | L81: 24.62710923 | M81: 24.73535089 | N81: 24.61535135 | O81: 26.13358755 | P81: 27.64701108 | Q81: 27.24591753 | R81: 26.45592059 | S81: 26.96260451 | T81: 26.35906218 | U81: 26.38168457 | V81: 28.05966078 | W81: 29.45662943 | X81: 28.56380868 | Y81: 26.7302423 | Z81: 15.97636464 | AA81: 14.64838707 | AB81: 15.20832727 | AC81: 22.33703165 | AD81: 29.17297059 | AE81: 28.48968793 | AF81: 26.51419126
A82: LRKPCMW | B82: 062019 | C82: 1 | D82: 2400 | E82: 60 | F82: 1 | G82: 1 | H82: KW | I82: 26.71874378 | J82: 26.68542979 | K82: 27.24879937 | L82: 27.12361253 | M82: 26.86217262 | N82: 27.10525526 | O82: 27.69228468 | P82: 30.28919105 | Q82: 29.73389061 | R82: 28.3077578 | S82: 27.85530999 | T82: 28.01770129 | U82: 27.55825062 | V82: 28.83086817 | W82: 30.10360099 | X82: 29.96420672 | Y82: 29.38069313 | Z82: 16.14111904 | AA82: 14.23095353 | AB82: 14.52812817 | AC82: 19.58473683 | AD82: 25.56422376 | AE82: 26.2715409 | AF82: 28.44049504
A83: LRKPCMW | B83: 062119 | C83: 1 | D83: 2400 | E83: 60 | F83: 1 | G83: 1 | H83: KW | I83: 27.73842283 | J83: 25.80387701 | K83: 25.88491416 | L83: 25.49004537 | M83: 25.70917997 | N83: 25.91344431 | O83: 25.56188947 | P83: 25.60943972 | Q83: 28.69032116 | R83: 30.4628215 | S83: 30.04265022 | T83: 27.93026647 | U83: 27.32332357 | V83: 24.95578231 | W83: 24.89607073 | X83: 24.8364456 | Y83: 27.25675323 | Z83: 18.34949666 | AA83: 12.96718321 | AB83: 12.32652287 | AC83: 17.98860468 | AD83: 23.44855472 | AE83: 24.44125981 | AF83: 26.35001322
A84: LRKPCMW | B84: 062219 | C84: 1 | D84: 2400 | E84: 60 | F84: 1 | G84: 1 | H84: KW | I84: 25.12895167 | J84: 23.33414594 | K84: 23.39573072 | L84: 23.36659538 | M84: 23.1734261 | N84: 23.64206982 | O84: 23.20867092 | P84: 23.85575775 | Q84: 27.74957553 | R84: 28.0475859 | S84: 27.54009507 | T84: 26.55272137 | U84: 26.11373172 | V84: 25.94448165 | W84: 28.72032105 | X84: 28.58063859 | Y84: 21.45487368 | Z84: 12.84490703 | AA84: 12.20623515 | AB84: 11.89687035 | AC84: 20.58366668 | AD84: 26.72309535 | AE84: 25.50255253 | AF84: 23.99734222
A85: LRKPCMW | B85: 062319 | C85: 1 | D85: 2400 | E85: 60 | F85: 1 | G85: 1 | H85: KW | I85: 24.02665046 | J85: 23.8372852 | K85: 23.81062825 | L85: 23.96103112 | M85: 24.00169379 | N85: 23.81016715 | O85: 26.38136757 | P85: 26.40687179 | Q85: 24.44636065 | R85: 24.59414106 | S85: 23.79466289 | T85: 24.92883717 | U85: 26.34825531 | V85: 26.2608493 | W85: 23.97172272 | X85: 23.7547495 | Y85: 14.49008797 | Z85: 14.43634178 | AA85: 14.51962676 | AB85: 13.21268658 | AC85: 17.65119965 | AD85: 22.70518584 | AE85: 22.68950867 | AF85: 22.12291144
A86: LRKPCMW | B86: 062419 | C86: 1 | D86: 2400 | E86: 60 | F86: 1 | G86: 1 | H86: KW | I86: 22.07121135 | J86: 23.34235917 | K86: 24.61172024 | L86: 22.85181352 | M86: 22.27858807 | N86: 22.12069243 | O86: 22.18028874 | P86: 23.30117777 | Q86: 25.18321659 | R86: 26.80773479 | S86: 28.35329077 | T86: 27.72960442 | U86: 25.31174635 | V86: 25.60001613 | W86: 24.9065606 | X86: 24.77569655 | Y86: 24.16082862 | Z86: 25.31019016 | AA86: 25.02125756 | AB86: 22.87054543 | AC86: 22.24147006 | AD86: 21.33248222 | AE86: 21.47729434 | AF86: 21.91982865
A87: LRKPCMW | B87: 062519 | C87: 1 | D87: 2400 | E87: 60 | F87: 1 | G87: 1 | H87: KW | I87: 23.70904362 | J87: 22.8423611 | K87: 21.00473133 | L87: 20.94470275 | M87: 21.04187816 | N87: 21.02427016 | O87: 20.65735516 | P87: 20.97818965 | Q87: 23.79766 | R87: 26.36851459 | S87: 26.45811079 | T87: 24.88532149 | U87: 23.80313548 | V87: 23.65411588 | W87: 24.02420091 | X87: 23.45394375 | Y87: 23.31086073 | Z87: 16.29304929 | AA87: 13.96029175 | AB87: 12.69989318 | AC87: 17.10569744 | AD87: 22.88501223 | AE87: 22.97097732 | AF87: 23.15509764
A88: LRKPCMW | B88: 062619 | C88: 1 | D88: 2400 | E88: 60 | F88: 1 | G88: 1 | H88: KW | I88: 24.83379431 | J88: 23.91152123 | K88: 21.98196098 | L88: 22.11510167 | M88: 22.06412204 | N88: 22.14017362 | O88: 21.80694724 | P88: 24.27189447 | Q88: 23.97471983 | R88: 26.71842678 | S88: 26.61269232 | T88: 24.17486315 | U88: 21.32326036 | V88: 13.49360768 | W88: 13.34891084 | X88: 15.04930771 | Y88: 24.64918408 | Z88: 24.16601592 | AA88: 21.95161527 | AB88: 22.15527443 | AC88: 22.20149903 | AD88: 22.38870292 | AE88: 24.63546655 | AF88: 24.70180635
A89: LRKPCMW | B89: 062719 | C89: 1 | D89: 2400 | E89: 60 | F89: 1 | G89: 1 | H89: KW | I89: 22.0447273 | J89: 21.55743812 | K89: 21.58905183 | L89: 21.54478688 | M89: 21.6349018 | N89: 21.66835989 | O89: 21.81533338 | P89: 22.33028816 | Q89: 26.45295231 | R89: 26.72609246 | S89: 25.29338907 | T89: 25.55373389 | U89: 24.95197829 | V89: 24.89327535 | W89: 24.80264169 | X89: 27.00591846 | Y89: 27.02312301 | Z89: 23.37855499 | AA89: 22.48233368 | AB89: 21.8364284 | AC89: 22.01916544 | AD89: 24.36189412 | AE89: 24.75598481 | AF89: 22.61754929
A90: LRKPCMW | B90: 062819 | C90: 1 | D90: 2400 | E90: 60 | F90: 1 | G90: 1 | H90: KW | I90: 18.44842999 | J90: 23.7506573 | K90: 24.03569942 | L90: 23.93688136 | M90: 24.26875327 | N90: 23.88180953 | O90: 23.92293329 | P90: 26.11828501 | Q90: 26.56862909 | R90: 26.35851463 | S90: 23.97103108 | T90: 24.28990593 | U90: 24.14503617 | V90: 24.1169383 | W90: 26.3175926 | X90: 26.57819678 | Y90: 24.60050991 | Z90: 21.91657218 | AA90: 23.10417565 | AB90: 23.26699923 | AC90: 24.38647616 | AD90: 26.04690201 | AE90: 25.92958258 | AF90: 23.40826669
A91: LRKPCMW | B91: 062919 | C91: 1 | D91: 2400 | E91: 60 | F91: 1 | G91: 1 | H91: KW | I91: 23.11916118 | J91: 23.41025516 | K91: 23.31996732 | L91: 24.12814863 | M91: 12.53450477 | N91: 17.69854817 | O91: 25.1782022 | P91: 25.20200614 | Q91: 27.87695255 | R91: 27.25257457 | S91: 25.08517662 | T91: 25.08465789 | U91: 24.18693803 | V91: 19.16139553 | W91: 22.15103813 | X91: 25.84113911 | Y91: 26.39911966 | Z91: 24.96177652 | AA91: 23.27224416 | AB91: 23.00800888 | AC91: 25.53036222 | AD91: 25.88194587 | AE91: 24.92537897 | AF91: 22.98659685
A92: LRKPCMW | B92: 063019 | C92: 1 | D92: 2400 | E92: 60 | F92: 1 | G92: 1 | H92: KW | I92: 23.12348393 | J92: 23.12362802 | K92: 22.87270681 | L92: 22.71939328 | M92: 23.27224416 | N92: 23.75607514 | O92: 25.15880746 | P92: 19.75104743 | Q92: 11.91764837 | R92: 13.73236757 | S92: 23.39999583 | T92: 27.28977904 | U92: 28.71354874 | V92: 27.92568435 | W92: 25.33909495 | X92: 24.84042253 | Y92: 25.03644482 | Z92: 24.99437006 | AA92: 27.21600411 | AB92: 21.29813077 | AC92: 23.48760356 | AD92: 22.01219141 | AE92: 21.79962739 | AF92: 21.92948279
A93: LRKPCMW | B93: 070119 | C93: 1 | D93: 2400 | E93: 60 | F93: 1 | G93: 1 | H93: KW | I93: 22.17023114 | J93: 22.50218951 | K93: 24.21895519 | L93: 22.90204387 | M93: 21.950866 | N93: 21.71288421 | O93: 21.77971392 | P93: 23.89010921 | Q93: 24.86644548 | R93: 25.69255179 | S93: 26.53433528 | T93: 27.33052816 | U93: 25.13281333 | V93: 24.75774273 | W93: 24.67388139 | X93: 24.60855023 | Y93: 25.3679421 | Z93: 26.57459449 | AA93: 23.90993622 | AB93: 19.63081734 | AC93: 20.95640299 | AD93: 20.98888125 | AE93: 21.83181747 | AF93: 23.72840954
A94: LRKPCMW | B94: 070219 | C94: 1 | D94: 2400 | E94: 60 | F94: 1 | G94: 1 | H94: KW | I94: 22.80175607 | J94: 20.82092801 | K94: 20.85677801 | L94: 20.35822087 | M94: 20.85960221 | N94: 20.93487569 | O94: 20.91968843 | P94: 22.92244725 | Q94: 26.74488201 | R94: 28.08723992 | S94: 27.02764749 | T94: 25.95935191 | U94: 26.53842748 | V94: 26.27819794 | W94: 26.19347204 | X94: 28.75887997 | Y94: 27.91773049 | Z94: 18.57004335 | AA94: 11.20387592 | AB94: 11.52992653 | AC94: 15.20380279 | AD94: 24.23408482 | AE94: 26.0929537 | AF94: 25.6788919
A95: LRKPCMW | B95: 070319 | C95: 1 | D95: 2400 | E95: 60 | F95: 1 | G95: 1 | H95: KW | I95: 23.16457887 | J95: 23.07982416 | K95: 23.10037163 | L95: 22.9080669 | M95: 22.10452534 | N95: 22.23749313 | O95: 22.19031752 | P95: 21.80980026 | Q95: 16.78843642 | R95: 15.95982292 | S95: 14.5099438 | T95: 24.54581272 | U95: 25.02800105 | V95: 24.81586931 | W95: 24.75350644 | X95: 27.83899881 | Y95: 27.01009712 | Z95: 23.55832375 | AA95: 22.07772429 | AB95: 20.78340654 | AC95: 17.39445713 | AD95: 18.44770953 | AE95: 23.88817838 | AF95: 25.12877876
A96: LRKPCMW | B96: 070419 | C96: 1 | D96: 2400 | E96: 60 | F96: 1 | G96: 1 | H96: KW | I96: 22.57141114 | J96: 22.6250997 | K96: 22.76204441 | L96: 22.22270932 | M96: 22.48103685 | N96: 22.62924954 | O96: 18.90289509 | P96: 22.97893118 | Q96: 26.35638207 | R96: 28.21072648 | S96: 27.75026717 | T96: 25.62969901 | U96: 25.57229289 | V96: 25.74462652 | W96: 26.69906086 | X96: 28.61081138 | Y96: 27.99706736 | Z96: 25.48341716 | AA96: 22.74518569 | AB96: 22.58818341 | AC96: 12.32372749 | AD96: 12.80957575 | AE96: 23.9949503 | AF96: 25.41857591
A97: LRKPCMW | B97: 070519 | C97: 1 | D97: 2400 | E97: 60 | F97: 1 | G97: 1 | H97: KW | I97: 23.379823 | J97: 22.58688659 | K97: 21.98003015 | L97: 21.78467067 | M97: 21.8837481 | N97: 22.78406162 | O97: 24.13535321 | P97: 24.64491896 | Q97: 24.84523519 | R97: 25.88500062 | S97: 25.8392371 | T97: 24.5622968 | U97: 24.36930043 | V97: 25.05339 | W97: 27.15813689 | X97: 26.80511233 | Y97: 25.25416732 | Z97: 22.70247692 | AA97: 23.12870005 | AB97: 22.98694267 | AC97: 24.29881079 | AD97: 25.69505899 | AE97: 25.7532432 | AF97: 23.00377258
A98: LRKPCMW | B98: 070619 | C98: 1 | D98: 2400 | E98: 60 | F98: 1 | G98: 1 | H98: KW | I98: 23.06676945 | J98: 22.69527233 | K98: 22.50322697 | L98: 19.00753446 | M98: 22.72924915 | N98: 23.03904622 | O98: 25.56699032 | P98: 25.73696084 | Q98: 27.73977729 | R98: 27.5920257 | S98: 25.33333128 | T98: 25.51310004 | U98: 25.81707581 | V98: 27.18205611 | W98: 30.59676911 | X98: 31.57970479 | Y98: 28.65962964 | Z98: 15.53227414 | AA98: 13.15712484 | AB98: 19.4716537 | AC98: 23.04270615 | AD98: 25.51892134 | AE98: 25.73730666 | AF98: 23.65642135
A99: LRKPCMW | B99: 070719 | C99: 1 | D99: 2400 | E99: 60 | F99: 1 | G99: 1 | H99: KW | I99: 22.8638884 | J99: 23.15780657 | K99: 22.4996535 | L99: 23.16328205 | M99: 22.13043302 | N99: 21.69446929 | O99: 24.20394084 | P99: 24.18048272 | Q99: 26.79021325 | R99: 26.9773595 | S99: 25.18526269 | T99: 25.29794237 | U99: 25.61730713 | V99: 25.42445485 | W99: 26.50139592 | X99: 27.58960496 | Y99: 27.67199658 | Z99: 23.20175452 | AA99: 23.09443505 | AB99: 22.90495452 | AC99: 23.81428817 | AD99: 25.70897824 | AE99: 25.78505864 | AF99: 23.14322449
A100: LRKPCMW | B100: 070819 | C100: 1 | D100: 2400 | E100: 60 | F100: 1 | G100: 1 | H100: KW | I100: 23.03636611 | J100: 23.032101 | K100: 22.56754949 | L100: 22.79458031 | M100: 22.55916335 | N100: 22.67285167 | O100: 23.53437571 | P100: 28.17210991 | Q100: 26.11658473 | R100: 24.5633919 | S100: 25.88794009 | T100: 27.03565898 | U100: 26.37736182 | V100: 24.79192128 | W100: 24.96532118 | X100: 24.85099886 | Y100: 24.67065373 | Z100: 22.49080627 | AA100: 14.1398876 | AB100: 14.52412242 | AC100: 13.93625727 | AD100: 21.99732115 | AE100: 21.41643003 | AF100: 21.57885015
A101: LRKPCMW | B101: 070919 | C101: 1 | D101: 2400 | E101: 60 | F101: 1 | G101: 1 | H101: KW | I101: 22.06492895 | J101: 24.18180836 | K101: 22.9857323 | L101: 21.57196256 | M101: 21.24919724 | N101: 21.84455517 | O101: 21.6757662 | P101: 22.28501456 | Q101: 20.19721284 | R101: 24.00301943 | S101: 28.40689287 | T101: 27.73133352 | U101: 26.23825573 | V101: 25.7785457 | W101: 25.05171854 | X101: 23.85869722 | Y101: 23.71137791 | Z101: 24.56016425 | AA101: 22.36066268 | AB101: 20.57375317 | AC101: 20.88366552 | AD101: 20.59669257 | AE101: 22.20149903 | AF101: 23.34573091
A102: LRKPCMW | B102: 071019 | C102: 1 | D102: 2400 | E102: 60 | F102: 1 | G102: 1 | H102: KW | I102: 22.13069239 | J102: 20.50456036 | K102: 20.7108708 | L102: 20.1109884 | M102: 20.71801774 | N102: 20.49401285 | O102: 21.8758807 | P102: 23.10656757 | Q102: 25.8555771 | R102: 23.84751571 | S102: 25.87197473 | T102: 27.00583201 | U102: 25.77788287 | V102: 19.11741876 | W102: 24.07555517 | X102: 23.81278962 | Y102: 23.03953613 | Z102: 24.37149063 | AA102: 24.76950061 | AB102: 23.76668029 | AC102: 22.13783933 | AD102: 21.9849869 | AE102: 22.09979914 | AF102: 21.92129839
A103: LRKPCMW | B103: 071119 | C103: 1 | D103: 2400 | E103: 60 | F103: 1 | G103: 1 | H103: KW | I103: 24.4341705 | J103: 23.88941757 | K103: 21.9117307 | L103: 21.78441131 | M103: 21.45602641 | N103: 21.93994385 | O103: 22.06144194 | P103: 23.61670969 | Q103: 25.61108237 | R103: 26.94021267 | S103: 26.22900505 | T103: 25.07338993 | U103: 25.09255412 | V103: 24.92209368 | W103: 25.73794067 | X103: 27.78435925 | Y103: 27.62626188 | Z103: 24.303854 | AA103: 23.41578828 | AB103: 22.73063243 | AC103: 23.07849852 | AD103: 24.29794624 | AE103: 25.97021642 | AF103: 25.00777058
A104: LRKPCMW | B104: 071219 | C104: 1 | D104: 2400 | E104: 60 | F104: 1 | G104: 1 | H104: KW | I104: 23.21282076 | J104: 23.17371429 | K104: 22.55832762 | L104: 22.87264917 | M104: 22.77731813 | N104: 19.82317971 | O104: 22.42409183 | P104: 26.65978148 | Q104: 27.88579978 | R104: 26.54638134 | S104: 23.47691196 | T104: 24.40621672 | U104: 24.3499057 | V104: 24.45702344 | W104: 24.64128785 | X104: 27.01591843 | Y104: 25.40909468 | Z104: 20.08441789 | AA104: 20.69631754 | AB104: 19.6447366 | AC104: 20.00110409 | AD104: 22.83832654 | AE104: 24.67071137 | AF104: 25.14647322
A105: LRKPCMW | B105: 071319 | C105: 1 | D105: 2400 | E105: 60 | F105: 1 | G105: 1 | H105: KW | I105: 23.18852691 | J105: 23.46604745 | K105: 23.60178179 | L105: 23.10357047 | M105: 23.35780579 | N105: 16.2938562 | O105: 24.63062507 | P105: 24.4124703 | Q105: 26.20788121 | R105: 26.70488217 | S105: 25.1844846 | T105: 25.18604079 | U105: 25.87877586 | V105: 25.04281368 | W105: 25.90773828 | X105: 28.06611609 | Y105: 28.70017703 | Z105: 17.25059601 | AA105: 13.92680485 | AB105: 11.83012709 | AC105: 18.10261001 | AD105: 24.75241134 | AE105: 24.92091213 | AF105: 24.44520792
A106: LRKPCMW | B106: 071419 | C106: 1 | D106: 2400 | E106: 60 | F106: 1 | G106: 1 | H106: KW | I106: 22.01066403 | J106: 22.50426443 | K106: 22.30691649 | L106: 21.91758082 | M106: 22.20357395 | N106: 22.25965443 | O106: 23.40708514 | P106: 24.80419788 | Q106: 26.47303868 | R106: 28.03133236 | S106: 27.94444509 | T106: 25.34171742 | U106: 24.90437041 | V106: 23.9261033 | W106: 24.5412306 | X106: 26.53266381 | Y106: 26.82836872 | Z106: 24.57716706 | AA106: 21.64602568 | AB106: 21.60841775 | AC106: 21.85553495 | AD106: 23.38550021 | AE106: 24.28924311 | AF106: 23.73120492
A107: LRKPCMW | B107: 071519 | C107: 1 | D107: 2400 | E107: 60 | F107: 1 | G107: 1 | H107: KW | I107: 21.7175816 | J107: 21.57098274 | K107: 20.40787485 | L107: 20.45775939 | M107: 20.16041183 | N107: 21.44925411 | O107: 22.64973937 | P107: 26.18246344 | Q107: 26.40635306 | R107: 24.43345004 | S107: 23.29697029 | T107: 23.14665387 | U107: 23.20299371 | V107: 23.15541464 | W107: 25.5462123 | X107: 25.53799908 | Y107: 24.8064169 | Z107: 20.76280143 | AA107: 20.56300394 | AB107: 20.69340689 | AC107: 21.24542204 | AD107: 22.92478153 | AE107: 23.37403051 | AF107: 22.59590673
A108: LRKPCMW | B108: 071619 | C108: 1 | D108: 2400 | E108: 60 | F108: 1 | G108: 1 | H108: KW | I108: 21.09029296 | J108: 20.85072616 | K108: 20.24995039 | L108: 20.8182479 | M108: 20.25946044 | N108: 22.90610725 | O108: 24.42587082 | P108: 24.61215252 | Q108: 22.82394619 | R108: 24.17569888 | S108: 24.56094234 | T108: 26.19125303 | U108: 26.90418975 | V108: 26.56877318 | W108: 24.52215287 | X108: 24.37324854 | Y108: 24.31321996 | Z108: 22.54342854 | AA108: 24.91480264 | AB108: 24.97811652 | AC108: 24.21186588 | AD108: 22.79008465 | AE108: 21.84631309 | AF108: 21.27040754
A109: LRKPCMW | B109: 071719 | C109: 1 | D109: 2400 | E109: 60 | F109: 1 | G109: 1 | H109: KW | I109: 21.78642859 | J109: 22.75576201 | K109: 24.17627524 | L109: 22.63086336 | M109: 21.4776978 | N109: 22.11602386 | O109: 24.04598756 | P109: 23.65328015 | Q109: 24.4717496 | R109: 27.03021232 | S109: 27.69499361 | T109: 26.95710021 | U109: 24.36762897 | V109: 23.74080143 | W109: 23.95103116 | X109: 23.0566254 | Y109: 21.87020348 | Z109: 23.83964831 | AA109: 24.22693787 | AB109: 23.10400274 | AC109: 22.32397694 | AD109: 22.10746481 | AE109: 21.48694848 | AF109: 22.27902034
A110: LRKPCMW | B110: 071819 | C110: 1 | D110: 2400 | E110: 60 | F110: 1 | G110: 1 | H110: KW | I110: 23.45933278 | J110: 23.33365603 | K110: 21.22265556 | L110: 21.38836097 | M110: 20.9320515 | N110: 20.92680656 | O110: 22.88740416 | P110: 23.2419561 | Q110: 22.86613623 | R110: 26.27920658 | S110: 24.73448634 | T110: 23.85267419 | U110: 23.76789066 | V110: 20.81516434 | W110: 18.91960972 | X110: 24.55468876 | Y110: 26.33197295 | Z110: 24.90117157 | AA110: 22.84126601 | AB110: 22.20345868 | AC110: 22.70371611 | AD110: 22.78460916 | AE110: 25.41886409 | AF110: 24.687109
A111: LRKPCMW | B111: 071919 | C111: 1 | D111: 2400 | E111: 60 | F111: 1 | G111: 1 | H111: KW | I111: 22.52293871 | J111: 21.93858939 | K111: 21.58409508 | L111: 21.86109689 | M111: 21.4852482 | N111: 23.38215728 | O111: 23.97422992 | P111: 26.25975421 | Q111: 27.20018284 | R111: 26.31583468 | S111: 23.64719948 | T111: 23.17267683 | U111: 25.50762456 | V111: 26.12537432 | W111: 25.65837325 | X111: 23.553684 | Y111: 15.42872987 | Z111: 11.66713061 | AA111: 11.76174119 | AB111: 14.83126821 | AC111: 14.83515868 | AD111: 22.05801255 | AE111: 22.53498477 | AF111: 22.69279396
A112: LRKPCMW | B112: 072019 | C112: 1 | D112: 2400 | E112: 60 | F112: 1 | G112: 1 | H112: KW | I112: 22.02458329 | J112: 22.0022779 | K112: 21.86314299 | L112: 22.11270975 | M112: 24.54388189 | N112: 23.21942016 | O112: 21.86101044 | P112: 22.83388851 | Q112: 23.1921292 | R112: 23.21163921 | S112: 25.14751068 | T112: 26.30399035 | U112: 26.7351126 | V112: 23.96353832 | W112: 24.8101921 | X112: 24.60030818 | Y112: 26.65770656 | Z112: 26.74831139 | AA112: 18.433358 | AB112: 22.61325536 | AC112: 22.18291121 | AD112: 22.1934299 | AE112: 23.16858462 | AF112: 24.37621683
A113: LRKPCMW | B113: 072119 | C113: 1 | D113: 2400 | E113: 60 | F113: 1 | G113: 1 | H113: KW | I113: 23.50878503 | J113: 22.12832929 | K113: 21.66977198 | L113: 21.93155771 | M113: 21.59870598 | N113: 21.97167283 | O113: 21.3214448 | P113: 23.75748724 | Q113: 26.53058889 | R113: 26.55364356 | S113: 24.47010696 | T113: 24.17010812 | U113: 25.34062232 | V113: 24.86356365 | W113: 26.77254761 | X113: 28.86781327 | Y113: 26.86306599 | Z113: 24.26555444 | AA113: 18.80439403 | AB113: 25.92811284 | AC113: 26.33491242 | AD113: 26.74623647 | AE113: 19.85104704 | AF113: 20.95023587
A114: LRKPCMW | B114: 072219 | C114: 1 | D114: 2400 | E114: 60 | F114: 1 | G114: 1 | H114: KW | I114: 21.96919445 | J114: 23.30155241 | K114: 23.47843933 | L114: 23.21011184 | M114: 24.03561296 | N114: 24.68123006 | O114: 28.12542421 | P114: 26.49128069 | Q114: 24.03999335 | R114: 23.33648023 | S114: 23.64849631 | T114: 22.48994172 | U114: 23.64166636 | V114: 27.44369775 | W114: 22.93089102 | X114: 26.26076285 | Y114: 25.03425463 | Z114: 23.80083001 | AA114: 24.56457345 | AB114: 26.45148257 | AC114: 26.85073175 | AD114: 26.49903282 | AE114: 23.50538447 | AF114: 23.63944735
A115: LRKPCMW | B115: 072319 | C115: 1 | D115: 2400 | E115: 60 | F115: 1 | G115: 1 | H115: KW | I115: 21.66089594 | J115: 20.9990253 | K115: 21.16867882 | L115: 21.60988749 | M115: 21.02133069 | N115: 21.48141536 | O115: 25.08379334 | P115: 26.9641607 | Q115: 26.14808317 | R115: 25.50350353 | S115: 25.44621269 | T115: 25.44269685 | U115: 25.37586714 | V115: 26.98073124 | W115: 27.94928657 | X115: 28.5680738 | Y115: 23.08797975 | Z115: 22.6467999 | AA115: 22.80192898 | AB115: 22.07308454 | AC115: 23.18163933 | AD115: 25.06393751 | AE115: 24.8474542 | AF115: 22.40458182
A116: LRKPCMW | B116: 072419 | C116: 1 | D116: 2400 | E116: 60 | F116: 1 | G116: 1 | H116: KW | I116: 22.17752218 | J116: 22.28763703 | K116: 22.18657113 | L116: 22.02536138 | M116: 22.30893377 | N116: 23.25365634 | O116: 25.80612484 | P116: 26.93635101 | Q116: 26.41943659 | R116: 24.2747763 | S116: 24.64831953 | T116: 23.85806322 | U116: 23.87953288 | V116: 24.31748507 | W116: 26.47084849 | X116: 26.26525851 | Y116: 23.90938867 | Z116: 22.33766565 | AA116: 22.28755057 | AB116: 22.56077718 | AC116: 23.30469361 | AD116: 25.83220543 | AE116: 25.21526257 | AF116: 23.51302133
A117: LRKPCMW | B117: 072519 | C117: 1 | D117: 2400 | E117: 60 | F117: 1 | G117: 1 | H117: KW | I117: 22.59014306 | J117: 22.81933525 | K117: 22.48527315 | L117: 22.87711601 | M117: 22.57409125 | N117: 21.79700492 | O117: 22.6337452 | P117: 26.30194425 | Q117: 26.79153889 | R117: 24.69932797 | S117: 24.09313436 | T117: 24.28235553 | U117: 24.69356431 | V117: 24.93823195 | W117: 26.9064664 | X117: 27.72386957 | Y117: 25.20572371 | Z117: 25.11318804 | AA117: 23.81270317 | AB117: 22.77754867 | AC117: 24.09892684 | AD117: 24.99353433 | AE117: 24.25016545 | AF117: 21.79732192
A118: LRKPCMW | B118: 072619 | C118: 1 | D118: 2400 | E118: 60 | F118: 1 | G118: 1 | H118: KW | I118: 22.056514 | J118: 22.21645575 | K118: 22.3913542 | L118: 21.61645807 | M118: 22.17628299 | N118: 23.588583 | O118: 27.02756103 | P118: 27.20482259 | Q118: 25.6667882 | R118: 24.76203666 | S118: 25.00996078 | T118: 27.33456272 | U118: 27.96960349 | V118: 21.21173341 | W118: 23.59653686 | X118: 23.04048714 | Y118: 21.85397876 | Z118: 20.6769228 | AA118: 23.18325315 | AB118: 23.5069983 | AC118: 22.74187158 | AD118: 20.99081208 | AE118: 21.80395014 | AF118: 21.97386302
A119: LRKPCMW | B119: 072719 | C119: 1 | D119: 2400 | E119: 60 | F119: 1 | G119: 1 | H119: KW | I119: 22.00893494 | J119: 23.46319443 | K119: 24.128725 | L119: 22.30371766 | M119: 21.5108677 | N119: 22.18657113 | O119: 24.63192189 | P119: 23.50431819 | Q119: 24.19757199 | R119: 25.64528973 | S119: 26.98813755 | T119: 27.11998142 | U119: 26.04128243 | V119: 24.50532296 | W119: 23.94434531 | X119: 26.33344268 | Y119: 24.14858083 | Z119: 22.48040285 | AA119: 22.54907694 | AB119: 21.67380655 | AC119: 23.99863904 | AD119: 23.48440473 | AE119: 23.03731712 | AF119: 22.85956565
A120: LRKPCMW | B120: 072819 | C120: 1 | D120: 2400 | E120: 60 | F120: 1 | G120: 1 | H120: KW | I120: 21.98755173 | J120: 22.12354544 | K120: 21.62490184 | L120: 22.12400654 | M120: 21.80913744 | N120: 23.71342401 | O120: 24.38987672 | P120: 24.53362256 | Q120: 24.5226716 | R120: 25.09583941 | S120: 25.74485707 | T120: 24.67344911 | U120: 24.83212285 | V120: 25.06509025 | W120: 26.03874642 | X120: 24.38391133 | Y120: 23.20264789 | Z120: 24.2678599 | AA120: 22.94619355 | AB120: 18.04246615 | AC120: 22.93697169 | AD120: 22.89362892 | AE120: 22.98345566 | AF120: 22.41267977
A121: LRKPCMW | B121: 072919 | C121: 1 | D121: 2400 | E121: 60 | F121: 1 | G121: 1 | H121: KW | I121: 22.49789558 | J121: 21.43582476 | K121: 21.76005982 | L121: 21.06980313 | M121: 21.29666104 | N121: 22.37841477 | O121: 23.94667959 | P121: 24.18304755 | Q121: 24.28924311 | R121: 25.34632835 | S121: 24.24656316 | T121: 25.73430956 | U121: 24.73849209 | V121: 24.2801077 | W121: 24.6290977 | X121: 24.98517701 | Y121: 22.19697455 | Z121: 21.67642902 | AA121: 22.95685634 | AB121: 24.11022363 | AC121: 21.13182018 | AD121: 23.39599008 | AE121: 22.37804013 | AF121: 22.62475388
A122: LRKPCMW | B122: 073019 | C122: 1 | D122: 2400 | E122: 60 | F122: 1 | G122: 1 | H122: KW | I122: 22.69904754 | J122: 22.35406328 | K122: 21.91170188 | L122: 21.08726703 | M122: 20.75761413 | N122: 22.7483557 | O122: 23.0908904 | P122: 24.58935722 | Q122: 25.19465747 | R122: 25.41638572 | S122: 24.69252685 | T122: 23.96229913 | U122: 26.26378877 | V122: 24.34149074 | W122: 25.49240848 | X122: 23.48769001 | Y122: 22.23775249 | Z122: 22.84573285 | AA122: 21.15867886 | AB122: 22.73558918 | AC122: 23.45080255 | AD122: 24.07437362 | AE122: 24.32451675 | AF122: 23.04942082
A123: LRKPCMW | B123: 073119 | C123: 1 | D123: 2400 | E123: 60 | F123: 1 | G123: 1 | H123: KW | I123: 23.68209848 | J123: 23.09515551 | K123: 22.53512886 | L123: 22.46201675 | M123: 22.62045994 | N123: 23.91244341 | O123: 25.20546434 | P123: 25.33984423 | Q123: 24.6808266 | R123: 25.68514548 | S123: 26.55398938 | T123: 25.04376468 | U123: 24.05356679 | V123: 24.33633226 | W123: 24.47422798 | X123: 24.01296176 | Y123: 22.28533156 | Z123: 22.19063452 | AA123: 23.70849608 | AB123: 24.4670234 | AC123: 24.48042392 | AD123: 22.46999943 | AE123: 22.24426544 | AF123: 13.78308783
A124: LRKPCMW | B124: 080119 | C124: 1 | D124: 2400 | E124: 60 | F124: 1 | G124: 1 | H124: KW | I124: 19.45516961 | J124: 19.81900105 | K124: 19.74024055 | L124: 24.68690727 | M124: 23.94126175 | N124: 21.80181758 | O124: 23.69549901 | P124: 24.52045259 | Q124: 24.89742519 | R124: 24.2225863 | S124: 20.0366371 | T124: 22.96688512 | U124: 24.57679243 | V124: 24.77901066 | W124: 24.89572491 | X124: 27.52479254 | Y124: 27.64363934 | Z124: 26.04721901 | AA124: 22.90547325 | AB124: 23.0104008 | AC124: 19.62179721 | AD124: 22.52662745 | AE124: 24.60901132 | AF124: 22.86365785
A125: LRKPCMW | B125: 080219 | C125: 1 | D125: 2400 | E125: 60 | F125: 1 | G125: 1 | H125: KW | I125: 21.77464189 | J125: 22.09017381 | K125: 22.18806969 | L125: 22.25956797 | M125: 22.17184497 | N125: 23.4447507 | O125: 25.92304081 | P125: 24.9735344 | Q125: 27.34343877 | R125: 24.94439907 | S125: 24.88451458 | T125: 24.86013427 | U125: 25.52186081 | V125: 27.29637843 | W125: 27.43839518 | X125: 24.64342041 | Y125: 23.5698799 | Z125: 22.35619584 | AA125: 23.09688461 | AB125: 25.08661754 | AC125: 25.01601263 | AD125: 23.46137888 | AE125: 22.63697285 | AF125: 22.35443792
A126: LRKPCMW | B126: 080319 | C126: 1 | D126: 2400 | E126: 60 | F126: 1 | G126: 1 | H126: KW | I126: 22.53694442 | J126: 22.41357314 | K126: 13.12533822 | L126: 14.42844556 | M126: 14.42245135 | N126: 17.93592477 | O126: 24.6322389 | P126: 24.50347859 | Q126: 24.90788624 | R126: 25.018808 | S126: 27.53626223 | T126: 27.35332346 | U126: 26.1074205 | V126: 24.67039437 | W126: 24.91255481 | X126: 25.08091151 | Y126: 27.2268398 | Z126: 25.53771089 | AA126: 23.56287704 | AB126: 22.65244829 | AC126: 22.61435046 | AD126: 23.30907399 | AE126: 25.20114159 | AF126: 25.13393724
A127: LRKPCMW | B127: 080419 | C127: 1 | D127: 2400 | E127: 60 | F127: 1 | G127: 1 | H127: KW | I127: 22.19051925 | J127: 22.48723279 | K127: 22.11060601 | L127: 22.69037322 | M127: 22.08092313 | N127: 22.48279477 | O127: 24.22247103 | P127: 25.25073794 | Q127: 27.3491448 | R127: 27.53709796 | S127: 25.98281003 | T127: 25.26226527 | U127: 21.81671666 | V127: 18.18722063 | W127: 27.8512466 | X127: 27.90637607 | Y127: 27.31147924 | Z127: 23.52013946 | AA127: 22.69484006 | AB127: 23.02215868 | AC127: 25.16998898 | AD127: 25.63111111 | AE127: 23.91045495 | AF127: 23.58610462
A128: LRKPCMW | B128: 080519 | C128: 1 | D128: 2400 | E128: 60 | F128: 1 | G128: 1 | H128: KW | I128: 22.94622237 | J128: 22.22608107 | K128: 22.59097879 | L128: 17.84405193 | M128: 21.25075343 | N128: 25.11419668 | O128: 26.48750549 | P128: 24.05702499 | Q128: 23.28653806 | R128: 23.38570194 | S128: 22.89192863 | T128: 25.08779909 | U128: 26.3473043 | V128: 25.31480109 | W128: 23.92198228 | X128: 23.70956235 | Y128: 23.52866968 | Z128: 23.38544257 | AA128: 23.65639253 | AB128: 23.28892998 | AC128: 20.83957347 | AD128: 20.92562501 | AE128: 21.19720897 | AF128: 21.32830357
A129: LRKPCMW | B129: 080619 | C129: 1 | D129: 2400 | E129: 60 | F129: 1 | G129: 1 | H129: KW | I129: 23.5362489 | J129: 22.4418151 | K129: 20.6863464 | L129: 20.90271444 | M129: 20.64510736 | N129: 20.28796177 | O129: 22.86437831 | P129: 24.09788938 | Q129: 25.40261055 | R129: 26.47929226 | S129: 23.3431949 | T129: 22.80397508 | U129: 21.6842676 | V129: 21.44256825 | W129: 24.19961809 | X129: 24.25811931 | Y129: 21.60870594 | Z129: 20.21044046 | AA129: 20.79487624 | AB129: 20.70758551 | AC129: 23.25645172 | AD129: 23.61238694 | AE129: 22.98711558 | AF129: 20.93833389
A130: LRKPCMW | B130: 080719 | C130: 1 | D130: 2400 | E130: 60 | F130: 1 | G130: 1 | H130: KW | I130: 21.40792862 | J130: 21.67553565 | K130: 21.81170227 | L130: 21.30668982 | M130: 21.44645873 | N130: 23.02521342 | O130: 23.67054233 | P130: 25.90609563 | Q130: 24.32768676 | R130: 24.89497563 | S130: 24.93638757 | T130: 24.83148885 | U130: 27.01574552 | V130: 26.90295056 | W130: 20.66023699 | X130: 24.83883752 | Y130: 22.46809742 | Z130: 22.29930845 | AA130: 23.20501099 | AB130: 24.80004804 | AC130: 24.92546543 | AD130: 22.23910695 | AE130: 20.70058265 | AF130: 21.0658262
A131: LRKPCMW | B131: 080819 | C131: 1 | D131: 2400 | E131: 60 | F131: 1 | G131: 1 | H131: KW | I131: 20.76219625 | J131: 20.889458 | K131: 18.20915138 | L131: 20.82375221 | M131: 22.73175634 | N131: 21.61812953 | O131: 23.06362826 | P131: 23.29086081 | Q131: 23.28993862 | R131: 23.64143582 | S131: 18.44234932 | T131: 27.55487887 | U131: 25.55315752 | V131: 24.87042241 | W131: 24.92477379 | X131: 25.59157236 | Y131: 25.16849042 | Z131: 25.26177536 | AA131: 25.27436897 | AB131: 23.09238895 | AC131: 23.33331021 | AD131: 23.35823807 | AE131: 25.98915007 | AF131: 26.16546062
A132: LRKPCMW | B132: 080919 | C132: 1 | D132: 2400 | E132: 60 | F132: 1 | G132: 1 | H132: KW | I132: 24.55575504 | J132: 22.91547321 | K132: 22.98705795 | L132: 22.64077687 | M132: 22.90642425 | N132: 24.53837759 | O132: 24.91388046 | P132: 20.79185031 | Q132: 27.20433268 | R132: 26.40355768 | S132: 24.89702173 | T132: 25.01180515 | U132: 25.17045007 | V132: 25.67142796 | W132: 27.78303361 | X132: 25.4688639 | Y132: 22.99668327 | Z132: 22.61224672 | AA132: 22.6999409 | AB132: 22.16596603 | AC132: 24.73370824 | AD132: 23.65552798 | AE132: 22.53861588 | AF132: 21.33870698
A133: LRKPCMW | B133: 081019 | C133: 1 | D133: 2400 | E133: 60 | F133: 1 | G133: 1 | H133: KW | I133: 21.42876427 | J133: 21.12403923 | K133: 21.01677739 | L133: 21.36377893 | M133: 22.23040382 | N133: 22.90803808 | O133: 25.3509681 | P133: 25.98396277 | Q133: 25.63998715 | R133: 25.60056368 | S133: 25.5984023 | T133: 26.40911962 | U133: 28.05539567 | V133: 28.17796003 | W133: 25.38226481 | X133: 24.86731003 | Y133: 24.78105676 | Z133: 25.02122874 | AA133: 27.08220059 | AB133: 27.33228608 | AC133: 24.54252743 | AD133: 22.70962386 | AE133: 22.33749274 | AF133: 22.24683027
A134: LRKPCMW | B134: 081119 | C134: 1 | D134: 2400 | E134: 60 | F134: 1 | G134: 1 | H134: KW | I134: 22.30265138 | J134: 19.00989756 | K134: 23.24417511 | L134: 21.01775722 | M134: 20.93450106 | N134: 21.01550939 | O134: 20.91908325 | P134: 21.76060737 | Q134: 23.73129138 | R134: 27.41075839 | S134: 28.20951611 | T134: 26.7094931 | U134: 26.15672867 | V134: 26.02572053 | W134: 26.3400709 | X134: 28.44856417 | Y134: 28.34513518 | Z134: 25.6872204 | AA134: 21.56539198 | AB134: 21.58008933 | AC134: 22.8310355 | AD134: 24.50961689 | AE134: 24.06036791 | AF134: 21.68824453
A135: LRKPCMW | B135: 081219 | C135: 1 | D135: 2400 | E135: 60 | F135: 1 | G135: 1 | H135: KW | I135: 21.33049376 | J135: 21.19138767 | K135: 21.42248187 | L135: 21.28735272 | M135: 21.55032 | N135: 23.87472022 | O135: 27.02142273 | P135: 26.55113636 | Q135: 24.23270154 | R135: 24.37437246 | S135: 23.51688299 | T135: 23.96258731 | U135: 24.83710842 | V135: 25.48134224 | W135: 22.52008569 | X135: 20.92441464 | Y135: 20.37035338 | Z135: 20.62726882 | AA135: 22.9395077 | AB135: 23.03944968 | AC135: 22.19377572 | AD135: 20.5186237 | AE135: 20.32381178 | AF135: 20.39000749
A136: LRKPCMW | B136: 081319 | C136: 1 | D136: 2400 | E136: 60 | F136: 1 | G136: 1 | H136: KW | I136: 20.30868215 | J136: 22.39011501 | K136: 22.61322654 | L136: 20.58994908 | M136: 20.23277467 | N136: 21.20075363 | O136: 22.39979797 | P136: 24.24745652 | Q136: 25.97842965 | R136: 25.85745029 | S136: 23.80157929 | T136: 19.97303504 | U136: 24.39633203 | V136: 21.28392333 | W136: 18.21773924 | X136: 18.58422197 | Y136: 21.53049298 | Z136: 25.44018966 | AA136: 23.74420199 | AB136: 24.6011151 | AC136: 25.30586741 | AD136: 25.77941025 | AE136: 25.81087986 | AF136: 23.37331005
A137: LRKPCMW | B137: 081419 | C137: 1 | D137: 2400 | E137: 60 | F137: 1 | G137: 1 | H137: KW | I137: 23.42042803 | J137: 23.05512685 | K137: 23.34002488 | L137: 23.11656753 | M137: 23.12178365 | N137: 25.55232179 | O137: 29.92103686 | P137: 27.83433024 | Q137: 25.70546241 | R137: 25.81981355 | S137: 27.1182235 | T137: 28.53599899 | U137: 28.0302949 | V137: 25.40030509 | W137: 24.86304492 | X137: 25.25794252 | Y137: 22.66207362 | Z137: 24.64154722 | AA137: 25.31157344 | AB137: 25.32148695 | AC137: 22.83769253 | AD137: 22.72334139 | AE137: 22.65547422 | AF137: 22.67685742
A138: LRKPCMW | B138: 081519 | C138: 1 | D138: 2400 | E138: 60 | F138: 1 | G138: 1 | H138: KW | I138: 24.77448618 | J138: 21.36297202 | K138: 12.54689665 | L138: 18.33935261 | M138: 21.24545086 | N138: 21.21715126 | O138: 22.77472448 | P138: 15.51942116 | Q138: 23.57841012 | R138: 27.59715537 | S138: 25.14278447 | T138: 25.00013373 | U138: 24.87428407 | V138: 24.50353622 | W138: 17.61442746 | X138: 27.57954737 | Y138: 26.89266242 | Z138: 23.39590363 | AA138: 22.93725987 | AB138: 22.71316852 | AC138: 19.6214802 | AD138: 22.55293859 | AE138: 25.08117088 | AF138: 22.77760631
A139: LRKPCMW | B139: 081619 | C139: 1 | D139: 2400 | E139: 60 | F139: 1 | G139: 1 | H139: KW | I139: 23.03331137 | J139: 22.94538664 | K139: 21.94622624 | L139: 22.62458097 | M139: 21.98432408 | N139: 22.45057588 | O139: 25.05399519 | P139: 26.50064665 | Q139: 26.29537367 | R139: 24.05716908 | S139: 24.48448731 | T139: 25.99223363 | U139: 25.78272435 | V139: 25.82866078 | W139: 27.67715506 | X139: 27.33450509 | Y139: 24.62474613 | Z139: 21.63432543 | AA139: 22.65017164 | AB139: 21.80870516 | AC139: 24.00457562 | AD139: 24.56520746 | AE139: 24.75607127 | AF139: 21.88792676
A140: LRKPCMW | B140: 081719 | C140: 1 | D140: 2400 | E140: 60 | F140: 1 | G140: 1 | H140: KW | I140: 22.20469787 | J140: 23.07656769 | K140: 23.00653914 | L140: 23.16040022 | M140: 16.863854 | N140: 22.29610962 | O140: 25.46030485 | P140: 26.49577635 | Q140: 23.64809285 | R140: 23.88863947 | S140: 24.55958788 | T140: 25.49673123 | U140: 27.43211278 | V140: 27.39309276 | W140: 25.11367795 | X140: 24.40627435 | Y140: 23.00668323 | Z140: 22.94207253 | AA140: 24.38601507 | AB140: 24.4880896 | AC140: 22.30711822 | AD140: 22.2597697 | AE140: 21.96740772 | AF140: 22.03732099
A141: LRKPCMW | B141: 081819 | C141: 1 | D141: 2400 | E141: 60 | F141: 1 | G141: 1 | H141: KW | I141: 22.1847844 | J141: 23.73002337 | K141: 24.47517899 | L141: 22.27582151 | M141: 21.96314261 | N141: 22.08809889 | O141: 24.11356655 | P141: 24.73707999 | Q141: 24.28313362 | R141: 25.71442491 | S141: 26.92940579 | T141: 26.8273889 | U141: 24.76359285 | V141: 24.82883756 | W141: 24.92105622 | X141: 25.89750777 | Y141: 25.75226338 | Z141: 23.41867011 | AA141: 21.83150046 | AB141: 21.56435452 | AC141: 22.20959698 | AD141: 24.33610171 | AE141: 24.52875227 | AF141: 22.56466765
A142: LRKPCMW | B142: 081919 | C142: 1 | D142: 2400 | E142: 60 | F142: 1 | G142: 1 | H142: KW | I142: 21.8350163 | J142: 21.73910889 | K142: 21.40372114 | L142: 21.64412367 | M142: 21.72957002 | N142: 22.59561854 | O142: 25.05036408 | P142: 26.36338493 | Q142: 27.20150848 | R142: 23.99088691 | S142: 24.80223824 | T142: 24.79082618 | U142: 23.90627629 | V142: 23.32947737 | W142: 24.01999343 | X142: 24.55967434 | Y142: 21.27464383 | Z142: 19.36689906 | AA142: 23.33552922 | AB142: 23.17299383 | AC142: 23.77950445 | AD142: 24.9192983 | AE142: 24.6625846 | AF142: 21.9925373
A143: LRKPCMW | B143: 082019 | C143: 1 | D143: 2400 | E143: 60 | F143: 1 | G143: 1 | H143: KW | I143: 21.6691668 | J143: 21.93642801 | K143: 21.80856107 | L143: 21.86121216 | M143: 21.56109805 | N143: 21.93383436 | O143: 22.14103817 | P143: 24.78094149 | Q143: 25.65367586 | R143: 25.60972791 | S143: 25.60093831 | T143: 27.58214102 | U143: 28.32035141 | V143: 28.17306092 | W143: 28.26873778 | X143: 26.66874398 | Y143: 24.02817784 | Z143: 23.27071679 | AA143: 23.3755867 | AB143: 25.27451307 | AC143: 26.09658481 | AD143: 25.83874719 | AE143: 23.44895818 | AF143: 23.29624983
A144: LRKPCMW | B144: 082119 | C144: 1 | D144: 2400 | E144: 60 | F144: 1 | G144: 1 | H144: KW | I144: 23.4527622 | J144: 22.94613592 | K144: 23.24238837 | L144: 22.99506944 | M144: 23.40031283 | N144: 26.02796836 | O144: 27.81891243 | P144: 20.56574168 | Q144: 26.18335681 | R144: 23.39325234 | S144: 22.85083369 | T144: 23.17449238 | U144: 26.85312367 | V144: 28.397988 | W144: 26.85248966 | X144: 26.4075058 | Y144: 23.90941749 | Z144: 23.08204317 | AA144: 23.97685239 | AB144: 26.07113822 | AC144: 25.51606833 | AD144: 24.09333608 | AE144: 22.89772112 | AF144: 23.01129417
A145: LRKPCMW | B145: 082219 | C145: 1 | D145: 2400 | E145: 60 | F145: 1 | G145: 1 | H145: KW | I145: 22.73034424 | J145: 22.50322697 | K145: 22.81962344 | L145: 22.60302485 | M145: 23.0563084 | N145: 24.97837588 | O145: 26.78808069 | P145: 26.11557609 | Q145: 25.07255419 | R145: 24.90082575 | S145: 24.97779952 | T145: 24.60978942 | U145: 26.48563229 | V145: 27.35629175 | W145: 25.97520199 | X145: 24.77927003 | Y145: 22.85166942 | Z145: 22.87766356 | AA145: 22.4715268 | AB145: 26.02914991 | AC145: 25.60791235 | AD145: 25.36330235 | AE145: 22.7974045 | AF145: 22.93158266
A146: LRKPCMW | B146: 082319 | C146: 1 | D146: 2400 | E146: 60 | F146: 1 | G146: 1 | H146: KW | I146: 23.16613506 | J146: 22.63867313 | K146: 22.76976772 | L146: 22.6861081 | M146: 22.53250639 | N146: 24.94926937 | O146: 28.43049508 | P146: 27.47364 | Q146: 26.13229072 | R146: 28.00087138 | S146: 28.52323247 | T146: 27.33315063 | U146: 27.80260126 | V146: 29.19567944 | W146: 19.58070226 | X146: 17.19866538 | Y146: 24.47961701 | Z146: 24.36370968 | AA146: 24.64480369 | AB146: 24.4417209 | AC146: 27.29418824 | AD146: 26.88349819 | AE146: 25.37529077 | AF146: 23.79469171
A147: LRKPCMW | B147: 082419 | C147: 1 | D147: 2400 | E147: 60 | F147: 1 | G147: 1 | H147: KW | I147: 17.18759914 | J147: 20.07124791 | K147: 24.07414308 | L147: 23.9641435 | M147: 24.29535259 | N147: 24.25079945 | O147: 26.2385151 | P147: 29.12429643 | Q147: 28.28772906 | R147: 26.22482639 | S147: 26.42753454 | T147: 26.4164683 | U147: 28.28931407 | V147: 29.0843254 | W147: 28.28429968 | X147: 26.40741934 | Y147: 26.33361559 | Z147: 25.32563679 | AA147: 23.89861061 | AB147: 24.88085465 | AC147: 25.21454212 | AD147: 24.48734032 | AE147: 22.90705826 | AF147: 22.70535875
A148: LRKPCMW | B148: 082519 | C148: 1 | D148: 2400 | E148: 60 | F148: 1 | G148: 1 | H148: KW | I148: 22.77616539 | J148: 22.94172671 | K148: 23.34411708 | L148: 22.945012 | M148: 23.88659337 | N148: 25.89474121 | O148: 24.18713976 | P148: 24.76782915 | Q148: 25.49500213 | R148: 25.62330134 | S148: 25.60082304 | T148: 27.77361002 | U148: 27.61594492 | V148: 25.53684634 | W148: 25.81992882 | X148: 25.19759694 | Y148: 25.09517658 | Z148: 27.25960624 | AA148: 27.12052897 | AB148: 25.77361776 | AC148: 23.66224265 | AD148: 23.56120558 | AE148: 23.5981795 | AF148: 23.4392464
A149: LRKPCMW | B149: 082619 | C149: 1 | D149: 2400 | E149: 60 | F149: 1 | G149: 1 | H149: KW | I149: 24.82059552 | J149: 25.79387705 | K149: 24.01108856 | L149: 23.41175371 | M149: 23.44714262 | N149: 23.89959044 | O149: 25.70722032 | P149: 26.02525944 | Q149: 24.80748317 | R149: 19.56908848 | S149: 15.98575941 | T149: 15.4209201 | U149: 15.48665472 | V149: 16.98984775 | W149: 14.96685846 | X149: 21.6048731 | Y149: 27.80153498 | Z149: 24.88947133 | AA149: 23.87624759 | AB149: 24.41918497 | AC149: 24.73803099 | AD149: 27.44804932 | AE149: 27.613553 | AF149: 25.32820162
A150: LRKPCMW | B150: 082719 | C150: 1 | D150: 2400 | E150: 60 | F150: 1 | G150: 1 | H150: KW | I150: 24.29131803 | J150: 23.6524156 | K150: 24.03304813 | L150: 23.73157956 | M150: 23.21867088 | N150: 22.88777879 | O150: 24.5679452 | P150: 27.50856781 | Q150: 27.70389847 | R150: 26.10151274 | S150: 25.97082161 | T150: 25.64295544 | U150: 28.08141862 | V150: 27.80931593 | W150: 26.11246371 | X150: 24.670452 | Y150: 22.5977511 | Z150: 22.89244736 | AA150: 22.35265118 | AB150: 23.76382727 | AC150: 24.59465979 | AD150: 24.18492074 | AE150: 23.31659558 | AF150: 23.82103166
A151: LRKPCMW | B151: 082819 | C151: 1 | D151: 2400 | E151: 60 | F151: 1 | G151: 1 | H151: KW | I151: 23.4475749 | J151: 23.42198422 | K151: 23.86319288 | L151: 23.14809479 | M151: 22.18743568 | N151: 23.62057134 | O151: 26.23243443 | P151: 27.54839475 | Q151: 25.44877752 | R151: 25.87569229 | S151: 26.54393178 | T151: 26.66211576 | U151: 26.47139604 | V151: 29.1932587 | W151: 28.88726564 | X151: 26.22278029 | Y151: 24.50659097 | Z151: 24.26385416 | AA151: 24.00301943 | AB151: 24.44990531 | AC151: 25.81672999 | AD151: 26.67321082 | AE151: 23.00700023 | AF151: 23.18308024
A152: LRKPCMW | B152: 082919 | C152: 1 | D152: 2400 | E152: 60 | F152: 1 | G152: 1 | H152: KW | I152: 23.12077501 | J152: 23.69561428 | K152: 23.52094637 | L152: 23.66019655 | M152: 23.43114845 | N152: 23.27345453 | O152: 27.70026736 | P152: 28.99078109 | Q152: 27.25770423 | R152: 26.19742015 | S152: 26.29537367 | T152: 26.44730391 | U152: 26.12410632 | V152: 26.60145317 | W152: 28.77098367 | X152: 28.38942896 | Y152: 24.64771434 | Z152: 24.14835028 | AA152: 23.72319343 | AB152: 24.10019485 | AC152: 26.37050306 | AD152: 26.49724608 | AE152: 20.78891084 | AF152: 23.11659635
A153: LRKPCMW | B153: 083019 | C153: 1 | D153: 2400 | E153: 60 | F153: 1 | G153: 1 | H153: KW | I153: 23.64284792 | J153: 23.75498005 | K153: 23.4222724 | L153: 23.68189676 | M153: 23.90175181 | N153: 23.86742918 | O153: 27.95928653 | P153: 29.58827158 | Q153: 27.7693449 | R153: 26.65067488 | S153: 26.47067558 | T153: 25.43431072 | U153: 24.84589801 | V153: 25.59459828 | W153: 27.71551226 | X153: 27.02511147 | Y153: 24.76362167 | Z153: 22.21634047 | AA153: 22.38999974 | AB153: 22.36435143 | AC153: 24.38976145 | AD153: 25.78658601 | AE153: 25.20693408 | AF153: 22.64244833
A154: LRKPCMW | B154: 083119 | C154: 1 | D154: 2400 | E154: 60 | F154: 1 | G154: 1 | H154: KW | I154: 22.46832797 | J154: 22.60587787 | K154: 23.02420478 | L154: 19.20234638 | M154: 16.67319191 | N154: 22.27844398 | O154: 23.26604822 | P154: 26.16528771 | Q154: 27.77640539 | R154: 25.70580823 | S154: 26.32024389 | T154: 25.70690332 | U154: 26.43545958 | V154: 28.36043771 | W154: 27.9262319 | X154: 25.94860267 | Y154: 25.34658771 | Z154: 25.67203314 | AA154: 22.92576136 | AB154: 24.56866566 | AC154: 24.90344822 | AD154: 23.86123324 | AE154: 21.78291276 | AF154: 21.9269756
A155: LRKPCMW | B155: 090119 | C155: 1 | D155: 2400 | E155: 60 | F155: 1 | G155: 1 | H155: KW | I155: 22.18285357 | J155: 22.01484269 | K155: 21.41559429 | L155: 22.09469829 | M155: 22.59158398 | N155: 24.37633211 | O155: 23.04501161 | P155: 21.86101044 | Q155: 23.99178028 | R155: 24.85877981 | S155: 25.25736616 | T155: 26.86992475 | U155: 28.12729741 | V155: 25.81883372 | W155: 25.51442568 | X155: 25.39612643 | Y155: 25.20693408 | Z155: 27.77064173 | AA155: 27.77608839 | AB155: 25.80384819 | AC155: 23.00982443 | AD155: 23.50330955 | AE155: 22.92374407 | AF155: 22.99944983
A156: LRKPCMW | B156: 090219 | C156: 1 | D156: 2400 | E156: 60 | F156: 1 | G156: 1 | H156: KW | I156: 24.68909747 | J156: 16.45224176 | K156: 22.88083358 | L156: 23.17218691 | M156: 22.76939308 | N156: 22.76135277 | O156: 22.9612079 | P156: 25.1181448 | Q156: 26.14012931 | R156: 28.3513023 | S156: 28.17199464 | T156: 26.4126931 | U156: 25.48526153 | V156: 24.98797239 | W156: 25.92661429 | X156: 27.58637731 | Y156: 27.28505283 | Z156: 24.54759945 | AA156: 24.26301842 | AB156: 24.92618588 | AC156: 24.4016346 | AD156: 24.36345031 | AE156: 25.04068112 | AF156: 21.97054892
A157: LRKPCMW | B157: 090319 | C157: 1 | D157: 2400 | E157: 60 | F157: 1 | G157: 1 | H157: KW | I157: 21.63213524 | J157: 22.28907794 | K157: 21.59305758 | L157: 19.40145224 | M157: 13.75798706 | N157: 14.45714862 | O157: 24.27186565 | P157: 26.49713081 | Q157: 21.60674629 | R157: 25.75523167 | S157: 27.48885608 | T157: 24.22287449 | U157: 23.42598997 | V157: 23.10423329 | W157: 23.16308032 | X157: 25.63001601 | Y157: 25.15249625 | Z157: 24.4825853 | AA157: 22.56691548 | AB157: 22.6505751 | AC157: 23.64711303 | AD157: 20.30242858 | AE157: 25.21615594 | AF157: 22.82276464
A158: LRKPCMW | B158: 090419 | C158: 1 | D158: 2400 | E158: 60 | F158: 1 | G158: 1 | H158: KW | I158: 22.12590855 | J158: 23.05498276 | K158: 22.09887695 | L158: 21.90965578 | M158: 21.90804195 | N158: 22.23435193 | O158: 25.77410767 | P158: 27.04963587 | Q158: 25.74258042 | R158: 24.62915533 | S158: 24.51661975 | T158: 24.62293058 | U158: 24.88238202 | V158: 25.48658717 | W158: 26.71943542 | X158: 25.871139 | Y158: 22.40316972 | Z158: 22.57348606 | AA158: 22.03985701 | AB158: 23.45287747 | AC158: 24.5734495 | AD158: 23.87157902 | AE158: 21.99968425 | AF158: 21.94392078
A159: LRKPCMW | B159: 090519 | C159: 1 | D159: 2400 | E159: 60 | F159: 1 | G159: 1 | H159: KW | I159: 20.91012075 | J159: 21.26346232 | K159: 20.75262856 | L159: 21.3653063 | M159: 20.91623023 | N159: 21.89204778 | O159: 23.9064492 | P159: 24.19336452 | Q159: 23.64446174 | R159: 23.72717036 | S159: 23.20088997 | T159: 23.90486419 | U159: 24.61091333 | V159: 26.51306735 | W159: 25.44768242 | X159: 25.49848914 | Y159: 25.01566681 | Z159: 23.84472033 | AA159: 21.86141389 | AB159: 24.97926925 | AC159: 24.21013678 | AD159: 23.60198352 | AE159: 20.99686393 | AF159: 21.12784325
A160: LRKPCMW | B160: 090619 | C160: 1 | D160: 2400 | E160: 60 | F160: 1 | G160: 1 | H160: KW | I160: 22.29452461 | J160: 20.90254153 | K160: 21.31804424 | L160: 21.06594147 | M160: 21.88838785 | N160: 23.97238554 | O160: 24.26515098 | P160: 23.13233116 | Q160: 24.25639021 | R160: 24.11301901 | S160: 25.3347722 | T160: 26.54485397 | U160: 26.57275011 | V160: 24.2582634 | W160: 24.2989837 | X160: 24.17878244 | Y160: 22.85705845 | Z160: 23.84716989 | AA160: 24.61215252 | AB160: 23.65809281 | AC160: 21.82429588 | AD160: 21.54288487 | AE160: 21.13683457 | AF160: 21.24559495
A161: LRKPCMW | B161: 090719 | C161: 1 | D161: 2400 | E161: 60 | F161: 1 | G161: 1 | H161: KW | I161: 20.55718263 | J161: 23.38270483 | K161: 22.42616675 | L161: 20.91706596 | M161: 21.72210607 | N161: 21.64112656 | O161: 21.79815765 | P161: 23.60140715 | Q161: 23.76348145 | R161: 26.04252162 | S161: 26.72727401 | T161: 26.49367261 | U161: 24.90630124 | V161: 24.56310372 | W161: 24.7814314 | X161: 27.04646586 | Y161: 25.61791231 | Z161: 22.66507072 | AA161: 21.96809936 | AB161: 22.02991468 | AC161: 21.78484358 | AD161: 23.55789147 | AE161: 23.56590297 | AF161: 22.81385977
A162: LRKPCMW | B162: 090819 | C162: 1 | D162: 2400 | E162: 60 | F162: 1 | G162: 1 | H162: KW | I162: 21.07614316 | J162: 21.08833331 | K162: 21.18058079 | L162: 21.08432756 | M162: 21.22957196 | N162: 21.27954295 | O162: 21.61334569 | P162: 26.62384502 | Q162: 27.14098999 | R162: 24.72846331 | S162: 23.93189579 | T162: 24.25817694 | U162: 23.47953443 | V162: 27.10833882 | W162: 22.59302489 | X162: 26.73764861 | Y162: 25.05779921 | Z162: 23.14074611 | AA162: 22.88319668 | AB162: 24.52831999 | AC162: 24.38048195 | AD162: 23.92313501 | AE162: 22.09170119 | AF162: 21.75847481
A163: LRKPCMW | B163: 090919 | C163: 1 | D163: 2400 | E163: 60 | F163: 1 | G163: 1 | H163: KW | I163: 21.43115619 | J163: 21.84271079 | K163: 21.93570755 | L163: 21.6080143 | M163: 22.59230443 | N163: 24.56970312 | O163: 25.44163057 | P163: 24.2672259 | Q163: 24.13881141 | R163: 24.85852044 | S163: 24.66679208 | T163: 25.99868894 | U163: 27.23825186 | V163: 25.83330053 | W163: 24.47967465 | X163: 24.44195145 | Y163: 22.35311228 | Z163: 22.13000075 | AA163: 24.17313405 | AB163: 24.51944394 | AC163: 24.42791692 | AD163: 21.61922463 | AE163: 21.18689201 | AF163: 21.78092429
A164: LRKPCMW | B164: 091019 | C164: 1 | D164: 2400 | E164: 60 | F164: 1 | G164: 1 | H164: KW | I164: 21.87691816 | J164: 21.65161643 | K164: 21.72726456 | L164: 23.67160861 | M164: 24.33091441 | N164: 21.81302791 | O164: 23.4637708 | P164: 25.04952835 | Q164: 25.15837519 | R164: 26.47612225 | S164: 27.76891263 | T164: 26.40272195 | U164: 24.89892374 | V164: 24.85281441 | W164: 24.82719491 | X164: 24.91857785 | Y164: 24.40889682 | Z164: 24.38189404 | AA164: 25.0464736 | AB164: 22.72898978 | AC164: 21.9950445 | AD164: 22.12043306 | AE164: 22.32899133 | AF164: 24.99241041
A165: LRKPCMW | B165: 091119 | C165: 1 | D165: 2400 | E165: 60 | F165: 1 | G165: 1 | H165: KW | I165: 23.02498287 | J165: 21.48810122 | K165: 21.13184899 | L165: 21.93936748 | M165: 21.68746644 | N165: 22.25170057 | O165: 24.42976129 | P165: 27.3829487 | Q165: 27.41410132 | R165: 26.34344264 | S165: 25.06534961 | T165: 24.53736895 | U165: 25.29684727 | V165: 24.66958745 | W165: 27.21231536 | X165: 25.31612674 | Y165: 23.24112036 | Z165: 22.27919325 | AA165: 21.8941227 | AB165: 22.07801248 | AC165: 24.43670651 | AD165: 24.60875196 | AE165: 23.52129219 | AF165: 21.54997418
A166: LRKPCMW | B166: 091219 | C166: 1 | D166: 2400 | E166: 60 | F166: 1 | G166: 1 | H166: KW | I166: 21.05401068 | J166: 21.03542286 | K166: 20.77876679 | L166: 20.95369407 | M166: 20.97928474 | N166: 21.4880724 | O166: 22.71535871 | P166: 26.78323921 | Q166: 26.63992565 | R166: 24.60076928 | S166: 25.32531979 | T166: 26.26773689 | U166: 26.2506188 | V166: 26.17566231 | W166: 27.37145019 | X166: 27.27418832 | Y166: 26.55234673 | Z166: 23.93532517 | AA166: 23.78999432 | AB166: 23.66039828 | AC166: 25.47433938 | AD166: 26.57600658 | AE166: 25.94390529 | AF166: 23.6616951
A167: LRKPCMW | B167: 091319 | C167: 1 | D167: 2400 | E167: 60 | F167: 1 | G167: 1 | H167: KW | I167: 23.64572975 | J167: 24.07956092 | K167: 23.35993835 | L167: 23.42160958 | M167: 24.11621784 | N167: 23.53368407 | O167: 26.79188471 | P167: 28.54524968 | Q167: 26.58318235 | R167: 26.41721757 | S167: 25.86399205 | T167: 26.32260699 | U167: 25.85612465 | V167: 29.01631414 | W167: 28.42744034 | X167: 25.77739296 | Y167: 26.54182804 | Z167: 21.24591195 | AA167: 23.55279063 | AB167: 25.01768409 | AC167: 26.44733273 | AD167: 25.26013272 | AE167: 23.36186918 | AF167: 23.01766302
A168: LRKPCMW | B168: 091419 | C168: 1 | D168: 2400 | E168: 60 | F168: 1 | G168: 1 | H168: KW | I168: 23.34212862 | J168: 22.05668691 | K168: 22.66832719 | L168: 22.55754953 | M168: 23.26100501 | N168: 25.5086332 | O168: 24.01765914 | P168: 22.65852896 | Q168: 24.43990535 | R168: 24.54592799 | S168: 27.55107485 | T168: 27.65764505 | U168: 28.49112885 | V168: 25.1599602 | W168: 25.53235068 | X168: 25.73762366 | Y168: 26.10897669 | Z168: 27.16900141 | AA168: 25.43091015 | AB168: 24.11195273 | AC168: 22.92674118 | AD168: 23.24844022 | AE168: 22.55071958 | AF168: 24.57909789
A169: LRKPCMW | B169: 091519 | C169: 1 | D169: 2400 | E169: 60 | F169: 1 | G169: 1 | H169: KW | I169: 25.43895047 | J169: 23.65800636 | K169: 22.34452441 | L169: 22.81541596 | M169: 22.49622411 | N169: 22.19714746 | O169: 23.24224428 | P169: 23.03711539 | Q169: 26.2698118 | R169: 26.80571751 | S169: 27.72058428 | T169: 24.15713987 | U169: 24.57725352 | V169: 24.69601387 | W169: 25.74745072 | X169: 27.71087251 | Y169: 28.15533764 | Z169: 23.59085964 | AA169: 23.24596184 | AB169: 22.60146866 | AC169: 25.60840226 | AD169: 25.8775943 | AE169: 25.35382112 | AF169: 22.60002775
A170: LRKPCMW | B170: 091619 | C170: 1 | D170: 2400 | E170: 60 | F170: 1 | G170: 1 | H170: KW | I170: 23.12829659 | J170: 23.49518278 | K170: 22.7625055 | L170: 23.27140843 | M170: 22.98754786 | N170: 24.61082688 | O170: 26.57275011 | P170: 27.51133437 | Q170: 25.67673053 | R170: 25.37750979 | S170: 25.26307219 | T170: 25.34511798 | U170: 26.58885956 | V170: 27.54562819 | W170: 26.69407529 | X170: 25.00506166 | Y170: 22.63901895 | Z170: 22.70028672 | AA170: 23.93814937 | AB170: 25.35560785 | AC170: 24.84451473 | AD170: 23.92561339 | AE170: 21.78011738 | AF170: 21.47599752
A171: LRKPCMW | B171: 091719 | C171: 1 | D171: 2400 | E171: 60 | F171: 1 | G171: 1 | H171: KW | I171: 21.18916866 | J171: 21.41533493 | K171: 21.85856088 | L171: 21.98585145 | M171: 25.23373513 | N171: 24.22457477 | O171: 22.27599442 | P171: 23.47959206 | Q171: 24.68976029 | R171: 26.33741961 | S171: 26.93199944 | T171: 21.96948264 | U171: 25.04794334 | V171: 25.46825871 | W171: 25.74373315 | X171: 26.3691486 | Y171: 26.79050143 | Z171: 25.37364813 | AA171: 24.11650602 | AB171: 22.70414838 | AC171: 23.24826731 | AD171: 24.05984918 | AE171: 25.7287188 | AF171: 24.38705253
A172: LRKPCMW | B172: 091819 | C172: 1 | D172: 2400 | E172: 60 | F172: 1 | G172: 1 | H172: KW | I172: 22.89774994 | J172: 22.76048822 | K172: 23.00751896 | L172: 22.56319792 | M172: 22.98895996 | N172: 22.77293774 | O172: 25.01903855 | P172: 27.75427291 | Q172: 27.79721223 | R172: 25.70912233 | S172: 25.30661669 | T172: 25.56693268 | U172: 24.90261249 | V172: 26.28880309 | W172: 27.73427299 | X172: 26.49658326 | Y172: 22.80815374 | Z172: 22.99826828 | AA172: 22.41291032 | AB172: 23.55616237 | AC172: 24.76756978 | AD172: 24.16705338 | AE172: 22.55769362 | AF172: 21.67086708
A173: LRKPCMW | B173: 091919 | C173: 1 | D173: 2400 | E173: 60 | F173: 1 | G173: 1 | H173: KW | I173: 21.77959865 | J173: 21.3967471 | K173: 21.60812957 | L173: 21.3926549 | M173: 21.70908019 | N173: 24.48362276 | O173: 25.17338954 | P173: 25.66405046 | Q173: 24.32503548 | R173: 24.49486191 | S173: 25.73350264 | T173: 25.61621203 | U173: 26.20318382 | V173: 27.84764431 | W173: 26.30664163 | X173: 25.1934471 | Y173: 24.26333543 | Z173: 22.7480387 | AA173: 23.67800628 | AB173: 25.56157247 | AC173: 26.08710358 | AD173: 24.44823385 | AE173: 22.63760685 | AF173: 23.29783484
A174: LRKPCMW | B174: 092019 | C174: 1 | D174: 2400 | E174: 60 | F174: 1 | G174: 1 | H174: KW | I174: 22.62167031 | J174: 23.1499968 | K174: 23.08238899 | L174: 22.77556021 | M174: 23.29498183 | N174: 25.61629849 | O174: 26.76430557 | P174: 25.81488561 | Q174: 25.62145697 | R174: 21.56452743 | S174: 25.97079279 | T174: 28.64709366 | U174: 28.27905474 | V174: 26.86929075 | W174: 26.0777088 | X174: 26.10589313 | Y174: 24.62604295 | Z174: 23.84872608 | AA174: 26.37589209 | AB174: 26.28837081 | AC174: 23.49091767 | AD174: 23.88878356 | AE174: 23.62503819 | AF174: 23.19397357
A175: LRKPCMW | B175: 092119 | C175: 1 | D175: 2400 | E175: 60 | F175: 1 | G175: 1 | H175: KW | I175: 23.68054229 | J175: 26.37056069 | K175: 25.49324421 | L175: 23.16584688 | M175: 23.67313598 | N175: 23.22627892 | O175: 23.57209891 | P175: 23.2190167 | Q175: 26.35920627 | R175: 28.35458759 | S175: 28.19196574 | T175: 26.58352817 | U175: 26.09716118 | V175: 26.37416299 | W175: 26.36909096 | X175: 28.76418255 | Y175: 28.74487427 | Z175: 26.4084568 | AA175: 23.9856708 | AB175: 23.19953551 | AC175: 23.56025458 | AD175: 23.37403051 | AE175: 23.59771841 | AF175: 23.01374372
A176: LRKPCMW | B176: 092219 | C176: 1 | D176: 2400 | E176: 60 | F176: 1 | G176: 1 | H176: KW | I176: 23.45016855 | J176: 23.22552965 | K176: 23.34316608 | L176: 23.17702839 | M176: 23.6022717 | N176: 23.07385876 | O176: 23.41855484 | P176: 23.56351105 | Q176: 22.65043101 | R176: 25.44128475 | S176: 26.25672828 | T176: 25.77145639 | U176: 25.8241363 | V176: 26.11211789 | W176: 25.65050585 | X176: 25.85750793 | Y176: 25.36298535 | Z176: 25.97367462 | AA176: 23.56143613 | AB176: 24.70264208 | AC176: 26.14520134 | AD176: 26.15133964 | AE176: 25.89263747 | AF176: 25.90350198
A177: LRKPCMW | B177: 092319 | C177: 1 | D177: 2400 | E177: 60 | F177: 1 | G177: 1 | H177: KW | I177: 25.91410713 | J177: 25.87912168 | K177: 26.01134018 | L177: 25.93808398 | M177: 25.8133006 | N177: 26.00223359 | O177: 25.53857544 | P177: 24.12399879 | Q177: 25.83079333 | R177: 25.71151426 | S177: 25.06197787 | T177: 25.02255439 | U177: 26.6791474 | V177: 27.26914511 | W177: 25.22459971 | X177: 24.07659263 | Y177: 22.62726107 | Z177: 21.69495921 | AA177: 21.49230869 | AB177: 24.06169356 | AC177: 23.57826603 | AD177: 22.596656 | AE177: 20.00603203 | AF177: 19.80957746
A178: LRKPCMW | B178: 092419 | C178: 1 | D178: 2400 | E178: 60 | F178: 1 | G178: 1 | H178: KW | I178: 20.40554057 | J178: 21.47795716 | K178: 20.99049508 | L178: 21.23092642 | M178: 22.55682907 | N178: 24.21970447 | O178: 23.02103476 | P178: 21.8185034 | Q178: 23.7149802 | R178: 24.26806163 | S178: 24.31437269 | T178: 26.72272071 | U178: 26.66393132 | V178: 23.65140696 | W178: 24.25938731 | X178: 23.7308591 | Y178: 24.27725468 | Z178: 25.1008538 | AA178: 24.71293023 | AB178: 24.91416864 | AC178: 23.28068793 | AD178: 21.99562087 | AE178: 22.64057514 | AF178: 22.12613909
A179: LRKPCMW | B179: 092519 | C179: 1 | D179: 2400 | E179: 60 | F179: 1 | G179: 1 | H179: KW | I179: 21.94671616 | J179: 23.96878325 | K179: 24.59431397 | L179: 22.09357438 | M179: 21.24003301 | N179: 21.25156035 | O179: 20.74798881 | P179: 22.17147033 | Q179: 26.65908984 | R179: 26.68024249 | S179: 24.75390989 | T179: 24.27082819 | U179: 25.04529205 | V179: 25.43148652 | W179: 23.97299073 | X179: 26.09716118 | Y179: 24.62589886 | Z179: 22.66167016 | AA179: 21.51827401 | AB179: 21.74092445 | AC179: 21.53320191 | AD179: 23.87143493 | AE179: 23.88757319 | AF179: 21.53634311
A180: LRKPCMW | B180: 092619 | C180: 1 | D180: 2400 | E180: 60 | F180: 1 | G180: 1 | H180: KW | I180: 20.94695058 | J180: 21.07614316 | K180: 20.7086806 | L180: 20.91427059 | M180: 20.44631851 | N180: 20.76977547 | O180: 22.24417898 | P180: 23.3600248 | Q180: 24.55909797 | R180: 24.34123138 | S180: 24.09134762 | T180: 24.21284571 | U180: 23.61564341 | V180: 25.49304248 | W180: 26.98779173 | X180: 24.80831891 | Y180: 23.75068611 | Z180: 23.50351128 | AA180: 22.38910637 | AB180: 23.05310957 | AC180: 23.4983528 | AD180: 22.55587806 | AE180: 20.71300335 | AF180: 21.58049279
A181: LRKPCMW | B181: 092719 | C181: 1 | D181: 2400 | E181: 60 | F181: 1 | G181: 1 | H181: KW | I181: 20.25977744 | J181: 21.57844669 | K181: 20.8421383 | L181: 21.39334654 | M181: 20.97346344 | N181: 23.31803649 | O181: 23.69374109 | P181: 22.60826979 | Q181: 23.79889918 | R181: 24.66849236 | S181: 24.42667773 | T181: 24.2441136 | U181: 24.23647674 | V181: 25.59485765 | W181: 26.46508482 | X181: 26.1896392 | Y181: 21.87913717 | Z181: 21.20081126 | AA181: 21.20398128 | AB181: 21.31078202 | AC181: 25.66664411 | AD181: 24.18780258 | AE181: 21.46083908 | AF181: 21.15510539
A182: LRKPCMW | B182: 092819 | C182: 1 | D182: 2400 | E182: 60 | F182: 1 | G182: 1 | H182: KW | I182: 21.10631595 | J182: 20.75069773 | K182: 21.35752535 | L182: 20.77190803 | M182: 20.87383847 | N182: 21.85965597 | O182: 23.79108942 | P182: 22.72100711 | Q182: 21.69516093 | R182: 22.34365986 | S182: 24.12982009 | T182: 25.36065106 | U182: 25.78819984 | V182: 25.26681857 | W182: 22.79962352 | X182: 23.00293685 | Y182: 21.86101044 | Z182: 22.5919298 | AA182: 23.42691215 | AB182: 23.92728485 | AC182: 22.47051816 | AD182: 21.22911087 | AE182: 21.13040808 | AF182: 21.49565162
A183: LRKPCMW | B183: 092919 | C183: 1 | D183: 2400 | E183: 60 | F183: 1 | G183: 1 | H183: KW | I183: 21.57812969 | J183: 22.29236323 | K183: 24.04930167 | L183: 21.60467137 | M183: 21.03977442 | N183: 22.55083485 | O183: 22.27997135 | P183: 18.71623875 | Q183: 17.72921088 | R183: 26.9226623 | S183: 27.36562889 | T183: 26.19891871 | U183: 24.41272966 | V183: 24.79439965 | W183: 24.85448587 | X183: 26.70413289 | Y183: 26.95306564 | Z183: 25.74863227 | AA183: 22.55723252 | AB183: 22.53535941 | AC183: 23.0981238 | AD183: 25.27523352 | AE183: 24.97506178 | AF183: 23.24578893
A184: LRKPCMW | B184: 093019 | C184: 1 | D184: 2400 | E184: 60 | F184: 1 | G184: 1 | H184: KW | I184: 22.5188465 | J184: 22.00977067 | K184: 22.32334294 | L184: 22.55273686 | M184: 22.1972051 | N184: 22.31974065 | O184: 23.63797762 | P184: 25.13189114 | Q184: 27.15061531 | R184: 24.80307397 | S184: 24.47716745 | T184: 24.83736778 | U184: 21.25086871 | V184: 23.28048621 | W184: 26.98949201 | X184: 25.36627064 | Y184: 20.61677894 | Z184: 21.66207749 | AA184: 22.39100838 | AB184: 24.82690673 | AC184: 25.23932588 | AD184: 24.28688 | AE184: 22.31276661 | AF184: 22.16902077
A185: LRKPCMW | B185: 100119 | C185: 1 | D185: 2400 | E185: 60 | F185: 1 | G185: 1 | H185: KW | I185: 22.32708932 | J185: 22.23322801 | K185: 21.88492965 | L185: 22.33734865 | M185: 23.6390439 | N185: 24.53370902 | O185: 23.38129273 | P185: 23.04636608 | Q185: 24.22739897 | R185: 24.32921413 | S185: 25.91773824 | T185: 27.13952025 | U185: 26.21822699 | V185: 24.58898258 | W185: 24.41468931 | X185: 24.1950648 | Y185: 22.91711586 | Z185: 23.92250101 | AA185: 25.04952835 | AB185: 24.67255574 | AC185: 22.49440856 | AD185: 22.45628191 | AE185: 22.18513022 | AF185: 22.36293933
A186: LRKPCMW | B186: 100219 | C186: 1 | D186: 2400 | E186: 60 | F186: 1 | G186: 1 | H186: KW | I186: 24.70641728 | J186: 23.97273136 | K186: 22.7431684 | L186: 21.92982861 | M186: 22.3586454 | N186: 22.22585052 | O186: 22.60221794 | P186: 25.43920983 | Q186: 26.63626572 | R186: 25.93730589 | S186: 24.68117242 | T186: 24.75984647 | U186: 25.46984372 | V186: 27.14150872 | W186: 26.67865748 | X186: 24.17886889 | Y186: 23.15273454 | Z186: 22.49593593 | AA186: 22.76285132 | AB186: 24.93535011 | AC186: 25.07321702 | AD186: 23.51789163 | AE186: 22.05709037 | AF186: 22.32250721
A187: LRKPCMW | B187: 100319 | C187: 1 | D187: 2400 | E187: 60 | F187: 1 | G187: 1 | H187: KW | I187: 22.49466792 | J187: 22.05593763 | K187: 24.25045363 | L187: 25.66079399 | M187: 24.78255532 | N187: 22.55818353 | O187: 22.47852966 | P187: 22.5897396 | Q187: 24.23734129 | R187: 26.17254993 | S187: 27.17343943 | T187: 26.1009652 | U187: 24.45399751 | V187: 24.48736914 | W187: 24.98739602 | X187: 25.50393581 | Y187: 26.55727467 | Z187: 25.21606949 | AA187: 22.63556075 | AB187: 23.13746082 | AC187: 22.95659697 | AD187: 24.33535244 | AE187: 25.46534806 | AF187: 24.12786045
A188: LRKPCMW | B188: 100419 | C188: 1 | D188: 2400 | E188: 60 | F188: 1 | G188: 1 | H188: KW | I188: 23.10999695 | J188: 22.50507134 | K188: 22.961669 | L188: 22.55455242 | M188: 22.67169894 | N188: 23.42794961 | O188: 24.26981955 | P188: 25.19258255 | Q188: 27.00756111 | R188: 24.4168795 | S188: 24.63794493 | T188: 24.89431281 | U188: 24.97996089 | V188: 27.25260339 | W188: 27.23940459 | X188: 24.9218055 | Y188: 24.34814778 | Z188: 22.79564659 | AA188: 22.78469562 | AB188: 24.81702204 | AC188: 25.27872054 | AD188: 23.24849786 | AE188: 22.56025845 | AF188: 22.16092282
A189: LRKPCMW | B189: 100519 | C189: 1 | D189: 2400 | E189: 60 | F189: 1 | G189: 1 | H189: KW | I189: 22.8120154 | J189: 22.19187371 | K189: 23.80809223 | L189: 25.03840447 | M189: 23.47143648 | N189: 22.96570356 | O189: 22.39495649 | P189: 22.41247804 | Q189: 23.12161074 | R189: 25.99119617 | S189: 26.87600542 | T189: 26.54439287 | U189: 24.43460277 | V189: 24.64229649 | W189: 24.53382429 | X189: 24.74097046 | Y189: 26.89868545 | Z189: 25.80485683 | AA189: 23.15498237 | AB189: 22.40210344 | AC189: 22.4103743 | AD189: 22.45625309 | AE189: 24.95347685 | AF189: 25.01091178
A190: LRKPCMW | B190: 100619 | C190: 1 | D190: 2400 | E190: 60 | F190: 1 | G190: 1 | H190: KW | I190: 22.17380461 | J190: 22.38806891 | K190: 22.53561877 | L190: 22.53576287 | M190: 22.13184512 | N190: 22.53642569 | O190: 22.57314024 | P190: 22.63178555 | Q190: 25.50405108 | R190: 24.38843581 | S190: 23.12388739 | T190: 22.86573277 | U190: 23.0877492 | V190: 23.29769075 | W190: 25.87358856 | X190: 25.50969948 | Y190: 23.41682574 | Z190: 21.8733735 | AA190: 20.73113009 | AB190: 21.56086751 | AC190: 23.77477824 | AD190: 24.56618728 | AE190: 22.20809843 | AF190: 21.00049504
A191: LRKPCMW | B191: 100719 | C191: 1 | D191: 2400 | E191: 60 | F191: 1 | G191: 1 | H191: KW | I191: 22.62610834 | J191: 22.71236161 | K191: 22.43697362 | L191: 22.52461017 | M191: 22.63063282 | N191: 23.90601693 | O191: 25.0133037 | P191: 24.85388069 | Q191: 25.60949736 | R191: 25.36344644 | S191: 24.58368001 | T191: 25.10537827 | U191: 27.61680947 | V191: 27.50026813 | W191: 25.53969936 | X191: 24.98151708 | Y191: 23.08215844 | Z191: 23.02648143 | AA191: 25.32442642 | AB191: 25.1246001 | AC191: 23.7104269 | AD191: 22.55945153 | AE191: 23.0805158 | AF191: 22.5538896
A192: LRKPCMW | B192: 100819 | C192: 1 | D192: 2400 | E192: 60 | F192: 1 | G192: 1 | H192: KW | I192: 22.49066218 | J192: 23.79941791 | K192: 24.75085515 | L192: 22.98656804 | M192: 22.47368818 | N192: 22.36680098 | O192: 22.65959524 | P192: 22.5562527 | Q192: 24.94771318 | R192: 26.93741729 | S192: 25.05255427 | T192: 23.47417422 | U192: 23.46371316 | V192: 23.22037117 | W192: 23.13423317 | X192: 25.30436886 | Y192: 23.9231062 | Z192: 21.5239224 | AA192: 23.04403179 | AB192: 24.02031043 | AC192: 23.62544164 | AD192: 21.56037759 | AE192: 21.29351984 | AF192: 21.60190481
A193: LRKPCMW | B193: 100919 | C193: 1 | D193: 2400 | E193: 60 | F193: 1 | G193: 1 | H193: KW | I193: 21.74311464 | J193: 21.06588383 | K193: 22.34034576 | L193: 23.95541155 | M193: 22.64011405 | N193: 21.91164425 | O193: 21.45752497 | P193: 21.52735179 | Q193: 23.3397367 | R193: 25.82943887 | S193: 26.01661394 | T193: 22.91296602 | U193: 23.21391586 | V193: 23.29434782 | W193: 23.32734481 | X193: 23.64829458 | Y193: 26.01557648 | Z193: 20.37531014 | AA193: 17.75606956 | AB193: 21.00882353 | AC193: 21.05556687 | AD193: 22.45893319 | AE193: 23.7152972 | AF193: 22.6530823
A194: LRKPCMW | B194: 101019 | C194: 1 | D194: 2400 | E194: 60 | F194: 1 | G194: 1 | H194: KW | I194: 20.93314659 | J194: 21.01409729 | K194: 20.95487562 | L194: 20.82320466 | M194: 20.97744037 | N194: 20.77994834 | O194: 22.53397613 | P194: 23.57495192 | Q194: 24.11523802 | R194: 23.54573014 | S194: 24.04137663 | T194: 24.44996295 | U194: 23.82904316 | V194: 24.42019361 | W194: 25.93327132 | X194: 24.79509129 | Y194: 22.42763648 | Z194: 21.07098468 | AA194: 20.71084198 | AB194: 22.28129699 | AC194: 23.66290547 | AD194: 23.57031217 | AE194: 21.31156011 | AF194: 21.10669059
A195: LRKPCMW | B195: 101119 | C195: 1 | D195: 2400 | E195: 60 | F195: 1 | G195: 1 | H195: KW | I195: 14.90463968 | J195: 18.78067654 | K195: 20.06657935 | L195: 20.09519595 | M195: 12.73355299 | N195: 19.1328942 | O195: 20.680381 | P195: 21.99403586 | Q195: 22.38783837 | R195: 22.71789473 | S195: 22.59533036 | T195: 24.92805908 | U195: 24.57736879 | V195: 22.8697097 | W195: 21.98858919 | X195: 22.20515896 | Y195: 21.76227883 | Z195: 21.65184698 | AA195: 22.78803855 | AB195: 22.21927994 | AC195: 20.2993162 | AD195: 20.59767239 | AE195: 20.21182374 | AF195: 20.36568481
A196: LRKPCMW | B196: 101219 | C196: 1 | D196: 2400 | E196: 60 | F196: 1 | G196: 1 | H196: KW | I196: 21.26444214 | J196: 22.48997054 | K196: 21.30559472 | L196: 20.12251573 | M196: 20.12222754 | N196: 20.19773157 | O196: 19.9844471 | P196: 19.62003929 | Q196: 20.70314748 | R196: 23.97696766 | S196: 24.04376855 | T196: 22.38671445 | U196: 21.67689011 | V196: 21.87743689 | W196: 22.87861456 | X196: 25.06047931 | Y196: 24.07085779 | Z196: 22.22515888 | AA196: 20.1058011 | AB196: 19.88375585 | AC196: 20.5698627 | AD196: 23.22555847 | AE196: 22.30691649 | AF196: 20.25167949
A197: LRKPCMW | B197: 101319 | C197: 1 | D197: 2400 | E197: 60 | F197: 1 | G197: 1 | H197: KW | I197: 19.90338113 | J197: 19.96067197 | K197: 19.90721397 | L197: 19.50116367 | M197: 19.9034964 | N197: 20.21329347 | O197: 21.39735229 | P197: 22.44262202 | Q197: 20.87692203 | R197: 21.48334619 | S197: 21.92083729 | T197: 22.30201737 | U197: 24.66584107 | V197: 25.06635825 | W197: 23.00120775 | X197: 22.2538043 | Y197: 22.50218951 | Z197: 22.63864431 | AA197: 24.03284641 | AB197: 23.22988122 | AC197: 21.359802 | AD197: 20.50983411 | AE197: 20.73527993 | AF197: 20.39830717
A198: LRKPCMW | B198: 101419 | C198: 1 | D198: 2400 | E198: 60 | F198: 1 | G198: 1 | H198: KW | I198: 20.61519394 | J198: 22.11374721 | K198: 22.84449366 | L198: 19.65701321 | M198: 14.66075014 | N198: 20.75343547 | O198: 20.96156147 | P198: 21.81297028 | Q198: 24.2989837 | R198: 26.29537367 | S198: 25.79984244 | T198: 24.93483138 | U198: 25.23163139 | V198: 23.34521218 | W198: 24.17538188 | X198: 25.60981436 | Y198: 19.77280527 | Z198: 21.23741055 | AA198: 20.63657714 | AB198: 20.43804765 | AC198: 21.60732266 | AD198: 23.14674033 | AE198: 22.39020147 | AF198: 20.00496575
A199: LRKPCMW | B199: 101519 | C199: 1 | D199: 2400 | E199: 60 | F199: 1 | G199: 1 | H199: KW | I199: 19.8602689 | J199: 19.42845502 | K199: 19.62952052 | L199: 19.55707123 | M199: 19.58081754 | N199: 19.91064335 | O199: 21.80118358 | P199: 23.51699826 | Q199: 22.97195714 | R199: 23.08792211 | S199: 23.0442047 | T199: 22.90616489 | U199: 23.15985267 | V199: 22.68535883 | W199: 24.57768579 | X199: 23.54694051 | Y199: 21.51245271 | Z199: 20.10758783 | AA199: 20.37882597 | AB199: 20.68752795 | AC199: 22.89066063 | AD199: 22.01671588 | AE199: 19.4210487 | AF199: 19.28718755
A200: LRKPCMW | B200: 101619 | C200: 1 | D200: 2400 | E200: 60 | F200: 1 | G200: 1 | H200: KW | I200: 19.80073023 | J200: 12.55459115 | K200: 12.61153617 | L200: 20.97254125 | M200: 20.54588585 | N200: 22.69233286 | O200: 23.70541251 | P200: 23.27570236 | Q200: 23.96299077 | R200: 25.0192691 | S200: 18.77347196 | T200: 23.33624968 | U200: 23.70313587 | V200: 23.30132186 | W200: 26.07557625 | X200: 26.12808325 | Y200: 23.55944766 | Z200: 22.15164332 | AA200: 21.82570798 | AB200: 21.10179147 | AC200: 23.58901527 | AD200: 23.64797758 | AE200: 21.82423824 | AF200: 21.02680617
... 167 more rows

Sheet Expanded kW
A1: Month | B1: Holiday? | C1: On or Off Peak | D1: Date/Time | E1: Class | F1: Demand | G1: Monthly Weight | H1: Expanded | J1: Load shape in local time.
A2: =MONTH(D2) -> 4 | B2: =IF(ISNA(VLOOKUP(DATE(YEAR(D2),MONTH(D2),DAY(D2)),Holidays,1,FALSE)),FALSE,TRUE) -> FALSE | C2: =IF(OR(HOUR(D2)<PkStart,HOUR(D2)>OPkStart-1,WEEKDAY(D2,2)>5,B2)=TRUE,"OFF","ON") -> OFF | D2: =TYBegin -> 2019-04-01 | E2: ='LR 8760 Loads'!A2 -> LRKPCMW | F2: 22.59331322 | G2: =IF(SUMIF($A$2:$A$8785,A2,$F$2:$F$8785)=0,0,F2/SUMIF($A$2:$A$8785,A2,$F$2:$F$8785)) -> 0.001477084899 | H2: =G2*SUMIF('Manual Inputs'!$B$11:$B$22,'Expanded kW'!A2,'Manual Inputs'!$C$11:$C$22) -> 200.4670083
A3: 4 | B3: FALSE | C3: OFF | D3: =+D2+1/24 -> 2019-04-01T01:00:00 | E3: =+E2 -> LRKPCMW | F3: 21.69784164 | G3: 0.00141854158 | H3: =G3*SUMIF('Manual Inputs'!$B$11:$B$22,'Expanded kW'!A3,'Manual Inputs'!$C$11:$C$22) -> 192.5216261
A4: 4 | B4: FALSE | C4: OFF | D4: =+D3+1/24 -> 2019-04-01T02:00:00 | E4: =+E3 -> LRKPCMW | F4: 22.4336586 | G4: 0.001466647146 | H4: =G4*SUMIF('Manual Inputs'!$B$11:$B$22,'Expanded kW'!A4,'Manual Inputs'!$C$11:$C$22) -> 199.0504173
A5: 4 | B5: FALSE | C5: OFF | D5: 2019-04-01T03:00:00 | E5: LRKPCMW | F5: 22.64331245 | G5: 0.001480353703 | H5: =G5*SUMIF('Manual Inputs'!$B$11:$B$22,'Expanded kW'!A5,'Manual Inputs'!$C$11:$C$22) -> 200.9106438
A6: 4 | B6: FALSE | C6: OFF | D6: 2019-04-01T04:00:00 | E6: LRKPCMW | F6: 22.50187302 | G6: 0.001471106805 | H6: =G6*SUMIF('Manual Inputs'!$B$11:$B$22,'Expanded kW'!A6,'Manual Inputs'!$C$11:$C$22) -> 199.6556734
A7: 4 | B7: FALSE | C7: OFF | D7: 2019-04-01T05:00:00 | E7: LRKPCMW | F7: 23.00207138 | G7: 0.001503808315 | H7: =G7*SUMIF('Manual Inputs'!$B$11:$B$22,'Expanded kW'!A7,'Manual Inputs'!$C$11:$C$22) -> 204.0938569
A8: 4 | B8: FALSE | C8: OFF | D8: 2019-04-01T06:00:00 | E8: LRKPCMW | F8: 23.3801403 | G8: 0.001528525358 | H8: =G8*SUMIF('Manual Inputs'!$B$11:$B$22,'Expanded kW'!A8,'Manual Inputs'!$C$11:$C$22) -> 207.4484045
A9: 4 | B9: FALSE | C9: ON | D9: 2019-04-01T07:00:00 | E9: LRKPCMW | F9: 25.14661789 | G9: 0.001644012508 | H9: =G9*SUMIF('Manual Inputs'!$B$11:$B$22,'Expanded kW'!A9,'Manual Inputs'!$C$11:$C$22) -> 223.1220896
A10: 4 | B10: FALSE | C10: ON | D10: 2019-04-01T08:00:00 | E10: LRKPCMW | F10: 25.52667427 | G10: 0.001668859486 | H10: =G10*SUMIF('Manual Inputs'!$B$11:$B$22,'Expanded kW'!A10,'Manual Inputs'!$C$11:$C$22) -> 226.4942717
A11: 4 | B11: FALSE | C11: ON | D11: 2019-04-01T09:00:00 | E11: LRKPCMW | F11: 24.98039246 | G11: 0.001633145175 | H11: =G11*SUMIF('Manual Inputs'!$B$11:$B$22,'Expanded kW'!A11,'Manual Inputs'!$C$11:$C$22) -> 221.6471968
A12: 4 | B12: FALSE | C12: ON | D12: 2019-04-01T10:00:00 | E12: LRKPCMW | F12: 22.70651054 | G12: 0.00148448541 | H12: =G12*SUMIF('Manual Inputs'!$B$11:$B$22,'Expanded kW'!A12,'Manual Inputs'!$C$11:$C$22) -> 201.4713908
A13: 4 | B13: FALSE | C13: ON | D13: 2019-04-01T11:00:00 | E13: LRKPCMW | F13: 22.3268013 | G13: 0.001459661127 | H13: =G13*SUMIF('Manual Inputs'!$B$11:$B$22,'Expanded kW'!A13,'Manual Inputs'!$C$11:$C$22) -> 198.1022888
A14: 4 | B14: FALSE | C14: ON | D14: 2019-04-01T12:00:00 | E14: LRKPCMW | F14: 22.1253891 | G14: 0.001446493385 | H14: =G14*SUMIF('Manual Inputs'!$B$11:$B$22,'Expanded kW'!A14,'Manual Inputs'!$C$11:$C$22) -> 196.3151892
A15: 4 | B15: FALSE | C15: ON | D15: 2019-04-01T13:00:00 | E15: LRKPCMW | F15: 21.63588142 | G15: 0.001414490801 | H15: =G15*SUMIF('Manual Inputs'!$B$11:$B$22,'Expanded kW'!A15,'Manual Inputs'!$C$11:$C$22) -> 191.9718626
A16: 4 | B16: FALSE | C16: ON | D16: 2019-04-01T14:00:00 | E16: LRKPCMW | F16: 21.12107086 | G16: 0.001380833989 | H16: =G16*SUMIF('Manual Inputs'!$B$11:$B$22,'Expanded kW'!A16,'Manual Inputs'!$C$11:$C$22) -> 187.4040273
A17: 4 | B17: FALSE | C17: ON | D17: 2019-04-01T15:00:00 | E17: LRKPCMW | F17: 22.06245041 | G17: 0.001442378637 | H17: =G17*SUMIF('Manual Inputs'!$B$11:$B$22,'Expanded kW'!A17,'Manual Inputs'!$C$11:$C$22) -> 195.7567439
A18: 4 | B18: FALSE | C18: ON | D18: 2019-04-01T16:00:00 | E18: LRKPCMW | F18: 22.68749046 | G18: 0.001483241932 | H18: =G18*SUMIF('Manual Inputs'!$B$11:$B$22,'Expanded kW'!A18,'Manual Inputs'!$C$11:$C$22) -> 201.3026286
A19: 4 | B19: FALSE | C19: ON | D19: 2019-04-01T17:00:00 | E19: LRKPCMW | F19: 21.02418327 | G19: 0.001374499761 | H19: =G19*SUMIF('Manual Inputs'!$B$11:$B$22,'Expanded kW'!A19,'Manual Inputs'!$C$11:$C$22) -> 186.5443586
A20: 4 | B20: FALSE | C20: ON | D20: 2019-04-01T18:00:00 | E20: LRKPCMW | F20: 21.34634399 | G20: 0.001395561689 | H20: =G20*SUMIF('Manual Inputs'!$B$11:$B$22,'Expanded kW'!A20,'Manual Inputs'!$C$11:$C$22) -> 189.4028413
A21: 4 | B21: FALSE | C21: ON | D21: 2019-04-01T19:00:00 | E21: LRKPCMW | F21: 22.00608253 | G21: 0.00143869347 | H21: =G21*SUMIF('Manual Inputs'!$B$11:$B$22,'Expanded kW'!A21,'Manual Inputs'!$C$11:$C$22) -> 195.2566004
A22: 4 | B22: FALSE | C22: ON | D22: 2019-04-01T20:00:00 | E22: LRKPCMW | F22: 21.50931168 | G22: 0.001406216041 | H22: =G22*SUMIF('Manual Inputs'!$B$11:$B$22,'Expanded kW'!A22,'Manual Inputs'!$C$11:$C$22) -> 190.8488286
A23: 4 | B23: FALSE | C23: OFF | D23: 2019-04-01T21:00:00 | E23: LRKPCMW | F23: 22.40409279 | G23: 0.001464714219 | H23: =G23*SUMIF('Manual Inputs'!$B$11:$B$22,'Expanded kW'!A23,'Manual Inputs'!$C$11:$C$22) -> 198.7880844
A24: 4 | B24: FALSE | C24: OFF | D24: 2019-04-01T22:00:00 | E24: LRKPCMW | F24: 24.28198051 | G24: 0.00158748504 | H24: =G24*SUMIF('Manual Inputs'!$B$11:$B$22,'Expanded kW'!A24,'Manual Inputs'!$C$11:$C$22) -> 215.4502946
A25: 4 | B25: FALSE | C25: OFF | D25: 2019-04-01T23:00:00 | E25: LRKPCMW | F25: 19.282547 | G25: 0.001260636663 | H25: =G25*SUMIF('Manual Inputs'!$B$11:$B$22,'Expanded kW'!A25,'Manual Inputs'!$C$11:$C$22) -> 171.0910866
A26: 4 | B26: FALSE | C26: OFF | D26: 2019-04-02 | E26: LRKPCMW | F26: 12.02906036 | G26: 0.0007864248699 | H26: =G26*SUMIF('Manual Inputs'!$B$11:$B$22,'Expanded kW'!A26,'Manual Inputs'!$C$11:$C$22) -> 106.7320105
A27: 4 | B27: FALSE | C27: OFF | D27: 2019-04-02T01:00:00 | E27: LRKPCMW | F27: 12.1514225 | G27: 0.0007944245494 | H27: =G27*SUMIF('Manual Inputs'!$B$11:$B$22,'Expanded kW'!A27,'Manual Inputs'!$C$11:$C$22) -> 107.817711
A28: 4 | B28: FALSE | C28: OFF | D28: 2019-04-02T02:00:00 | E28: LRKPCMW | F28: 11.52690029 | G28: 0.0007535951095 | H28: =G28*SUMIF('Manual Inputs'!$B$11:$B$22,'Expanded kW'!A28,'Manual Inputs'!$C$11:$C$22) -> 102.2764211
A29: 4 | B29: FALSE | C29: OFF | D29: 2019-04-02T03:00:00 | E29: LRKPCMW | F29: 11.58857155 | G29: 0.0007576269964 | H29: =G29*SUMIF('Manual Inputs'!$B$11:$B$22,'Expanded kW'!A29,'Manual Inputs'!$C$11:$C$22) -> 102.8236207
A30: 4 | B30: FALSE | C30: OFF | D30: 2019-04-02T04:00:00 | E30: LRKPCMW | F30: 12.3698082 | G30: 0.0008087019691 | H30: =G30*SUMIF('Manual Inputs'!$B$11:$B$22,'Expanded kW'!A30,'Manual Inputs'!$C$11:$C$22) -> 109.7554138
A31: 4 | B31: FALSE | C31: OFF | D31: 2019-04-02T05:00:00 | E31: LRKPCMW | F31: 22.57527351 | G31: 0.001475905515 | H31: =G31*SUMIF('Manual Inputs'!$B$11:$B$22,'Expanded kW'!A31,'Manual Inputs'!$C$11:$C$22) -> 200.3069447
A32: 4 | B32: FALSE | C32: OFF | D32: 2019-04-02T06:00:00 | E32: LRKPCMW | F32: 22.58613777 | G32: 0.001476615789 | H32: =G32*SUMIF('Manual Inputs'!$B$11:$B$22,'Expanded kW'!A32,'Manual Inputs'!$C$11:$C$22) -> 200.4033416
A33: 4 | B33: FALSE | C33: ON | D33: 2019-04-02T07:00:00 | E33: LRKPCMW | F33: 24.01186752 | G33: 0.00156982584 | H33: =G33*SUMIF('Manual Inputs'!$B$11:$B$22,'Expanded kW'!A33,'Manual Inputs'!$C$11:$C$22) -> 213.0536234
A34: 4 | B34: FALSE | C34: ON | D34: 2019-04-02T08:00:00 | E34: LRKPCMW | F34: 25.33307266 | G34: 0.001656202377 | H34: =G34*SUMIF('Manual Inputs'!$B$11:$B$22,'Expanded kW'!A34,'Manual Inputs'!$C$11:$C$22) -> 224.7764743
A35: 4 | B35: FALSE | C35: ON | D35: 2019-04-02T09:00:00 | E35: LRKPCMW | F35: 24.28523827 | G35: 0.001587698022 | H35: =G35*SUMIF('Manual Inputs'!$B$11:$B$22,'Expanded kW'!A35,'Manual Inputs'!$C$11:$C$22) -> 215.4792001
A36: 4 | B36: FALSE | C36: ON | D36: 2019-04-02T10:00:00 | E36: LRKPCMW | F36: 23.14581871 | G36: 0.001513206096 | H36: =G36*SUMIF('Manual Inputs'!$B$11:$B$22,'Expanded kW'!A36,'Manual Inputs'!$C$11:$C$22) -> 205.3693049
A37: 4 | B37: FALSE | C37: ON | D37: 2019-04-02T11:00:00 | E37: LRKPCMW | F37: 23.10599136 | G37: 0.0015106023 | H37: =G37*SUMIF('Manual Inputs'!$B$11:$B$22,'Expanded kW'!A37,'Manual Inputs'!$C$11:$C$22) -> 205.015923
A38: 4 | B38: FALSE | C38: ON | D38: 2019-04-02T12:00:00 | E38: LRKPCMW | F38: 22.87092018 | G38: 0.001495234032 | H38: =G38*SUMIF('Manual Inputs'!$B$11:$B$22,'Expanded kW'!A38,'Manual Inputs'!$C$11:$C$22) -> 202.9301724
A39: 4 | B39: FALSE | C39: ON | D39: 2019-04-02T13:00:00 | E39: LRKPCMW | F39: 22.64801025 | G39: 0.001480660831 | H39: =G39*SUMIF('Manual Inputs'!$B$11:$B$22,'Expanded kW'!A39,'Manual Inputs'!$C$11:$C$22) -> 200.9523267
A40: 4 | B40: FALSE | C40: ON | D40: 2019-04-02T14:00:00 | E40: LRKPCMW | F40: 23.70230103 | G40: 0.001549587286 | H40: =G40*SUMIF('Manual Inputs'!$B$11:$B$22,'Expanded kW'!A40,'Manual Inputs'!$C$11:$C$22) -> 210.3068873
A41: 4 | B41: FALSE | C41: ON | D41: 2019-04-02T15:00:00 | E41: LRKPCMW | F41: 25.16670418 | G41: 0.001645325691 | H41: =G41*SUMIF('Manual Inputs'!$B$11:$B$22,'Expanded kW'!A41,'Manual Inputs'!$C$11:$C$22) -> 223.3003122
A42: 4 | B42: FALSE | C42: ON | D42: 2019-04-02T16:00:00 | E42: LRKPCMW | F42: 23.26717186 | G42: 0.001521139811 | H42: =G42*SUMIF('Manual Inputs'!$B$11:$B$22,'Expanded kW'!A42,'Manual Inputs'!$C$11:$C$22) -> 206.4460528
A43: 4 | B43: FALSE | C43: ON | D43: 2019-04-02T17:00:00 | E43: LRKPCMW | F43: 21.92204857 | G43: 0.001433199574 | H43: =G43*SUMIF('Manual Inputs'!$B$11:$B$22,'Expanded kW'!A43,'Manual Inputs'!$C$11:$C$22) -> 194.5109798
A44: 4 | B44: FALSE | C44: ON | D44: 2019-04-02T18:00:00 | E44: LRKPCMW | F44: 20.7206974 | G44: 0.00135465874 | H44: =G44*SUMIF('Manual Inputs'!$B$11:$B$22,'Expanded kW'!A44,'Manual Inputs'!$C$11:$C$22) -> 183.8515749
A45: 4 | B45: FALSE | C45: ON | D45: 2019-04-02T19:00:00 | E45: LRKPCMW | F45: 18.68275261 | G45: 0.001221423856 | H45: =G45*SUMIF('Manual Inputs'!$B$11:$B$22,'Expanded kW'!A45,'Manual Inputs'!$C$11:$C$22) -> 165.7692029
A46: 4 | B46: FALSE | C46: ON | D46: 2019-04-02T20:00:00 | E46: LRKPCMW | F46: 19.59156609 | G46: 0.001280839429 | H46: =G46*SUMIF('Manual Inputs'!$B$11:$B$22,'Expanded kW'!A46,'Manual Inputs'!$C$11:$C$22) -> 173.8329657
A47: 4 | B47: FALSE | C47: OFF | D47: 2019-04-02T21:00:00 | E47: LRKPCMW | F47: 21.67968559 | G47: 0.00141735459 | H47: =G47*SUMIF('Manual Inputs'!$B$11:$B$22,'Expanded kW'!A47,'Manual Inputs'!$C$11:$C$22) -> 192.3605303
A48: 4 | B48: FALSE | C48: OFF | D48: 2019-04-02T22:00:00 | E48: LRKPCMW | F48: 21.8079567 | G48: 0.001425740581 | H48: =G48*SUMIF('Manual Inputs'!$B$11:$B$22,'Expanded kW'!A48,'Manual Inputs'!$C$11:$C$22) -> 193.4986601
A49: 4 | B49: FALSE | C49: OFF | D49: 2019-04-02T23:00:00 | E49: LRKPCMW | F49: 19.41243172 | G49: 0.001269128147 | H49: =G49*SUMIF('Manual Inputs'!$B$11:$B$22,'Expanded kW'!A49,'Manual Inputs'!$C$11:$C$22) -> 172.2435338
A50: 4 | B50: FALSE | C50: OFF | D50: 2019-04-03 | E50: LRKPCMW | F50: 19.37289238 | G50: 0.00126654318 | H50: =G50*SUMIF('Manual Inputs'!$B$11:$B$22,'Expanded kW'!A50,'Manual Inputs'!$C$11:$C$22) -> 171.8927074
A51: 4 | B51: FALSE | C51: OFF | D51: 2019-04-03T01:00:00 | E51: LRKPCMW | F51: 19.05012703 | G51: 0.001245441723 | H51: =G51*SUMIF('Manual Inputs'!$B$11:$B$22,'Expanded kW'!A51,'Manual Inputs'!$C$11:$C$22) -> 169.0288598
A52: 4 | B52: FALSE | C52: OFF | D52: 2019-04-03T02:00:00 | E52: LRKPCMW | F52: 19.58116341 | G52: 0.001280159332 | H52: =G52*SUMIF('Manual Inputs'!$B$11:$B$22,'Expanded kW'!A52,'Manual Inputs'!$C$11:$C$22) -> 173.7406643
A53: 4 | B53: FALSE | C53: OFF | D53: 2019-04-03T03:00:00 | E53: LRKPCMW | F53: 19.56222916 | G53: 0.001278921466 | H53: =G53*SUMIF('Manual Inputs'!$B$11:$B$22,'Expanded kW'!A53,'Manual Inputs'!$C$11:$C$22) -> 173.5726636
A54: 4 | B54: FALSE | C54: OFF | D54: 2019-04-03T04:00:00 | E54: LRKPCMW | F54: 19.07940674 | G54: 0.001247355945 | H54: =G54*SUMIF('Manual Inputs'!$B$11:$B$22,'Expanded kW'!A54,'Manual Inputs'!$C$11:$C$22) -> 169.2886542
A55: 4 | B55: FALSE | C55: OFF | D55: 2019-04-03T05:00:00 | E55: LRKPCMW | F55: 20.18038368 | G55: 0.001319334606 | H55: =G55*SUMIF('Manual Inputs'!$B$11:$B$22,'Expanded kW'!A55,'Manual Inputs'!$C$11:$C$22) -> 179.057454
A56: 4 | B56: FALSE | C56: OFF | D56: 2019-04-03T06:00:00 | E56: LRKPCMW | F56: 20.94620132 | G56: 0.001369401529 | H56: =G56*SUMIF('Manual Inputs'!$B$11:$B$22,'Expanded kW'!A56,'Manual Inputs'!$C$11:$C$22) -> 185.8524367
A57: 4 | B57: FALSE | C57: ON | D57: 2019-04-03T07:00:00 | E57: LRKPCMW | F57: 23.62696838 | G57: 0.001544662258 | H57: =G57*SUMIF('Manual Inputs'!$B$11:$B$22,'Expanded kW'!A57,'Manual Inputs'!$C$11:$C$22) -> 209.6384723
A58: 4 | B58: FALSE | C58: ON | D58: 2019-04-03T08:00:00 | E58: LRKPCMW | F58: 23.85111809 | G58: 0.001559316511 | H58: =G58*SUMIF('Manual Inputs'!$B$11:$B$22,'Expanded kW'!A58,'Manual Inputs'!$C$11:$C$22) -> 211.6273183
A59: 4 | B59: FALSE | C59: ON | D59: 2019-04-03T09:00:00 | E59: LRKPCMW | F59: 21.76792717 | G59: 0.001423123567 | H59: =G59*SUMIF('Manual Inputs'!$B$11:$B$22,'Expanded kW'!A59,'Manual Inputs'!$C$11:$C$22) -> 193.1434843
A60: 4 | B60: FALSE | C60: ON | D60: 2019-04-03T10:00:00 | E60: LRKPCMW | F60: 22.43697357 | G60: 0.001466863869 | H60: =G60*SUMIF('Manual Inputs'!$B$11:$B$22,'Expanded kW'!A60,'Manual Inputs'!$C$11:$C$22) -> 199.0798305
A61: 4 | B61: FALSE | C61: ON | D61: 2019-04-03T11:00:00 | E61: LRKPCMW | F61: 22.30611038 | G61: 0.001458308415 | H61: =G61*SUMIF('Manual Inputs'!$B$11:$B$22,'Expanded kW'!A61,'Manual Inputs'!$C$11:$C$22) -> 197.9187015
A62: 4 | B62: FALSE | C62: ON | D62: 2019-04-03T12:00:00 | E62: LRKPCMW | F62: 21.43697739 | G62: 0.001401487036 | H62: =G62*SUMIF('Manual Inputs'!$B$11:$B$22,'Expanded kW'!A62,'Manual Inputs'!$C$11:$C$22) -> 190.2070175
A63: 4 | B63: FALSE | C63: ON | D63: 2019-04-03T13:00:00 | E63: LRKPCMW | F63: 21.99204826 | G63: 0.00143777595 | H63: =G63*SUMIF('Manual Inputs'!$B$11:$B$22,'Expanded kW'!A63,'Manual Inputs'!$C$11:$C$22) -> 195.1320764
A64: 4 | B64: FALSE | C64: ON | D64: 2019-04-03T14:00:00 | E64: LRKPCMW | F64: 23.99592972 | G64: 0.001568783873 | H64: =G64*SUMIF('Manual Inputs'!$B$11:$B$22,'Expanded kW'!A64,'Manual Inputs'!$C$11:$C$22) -> 212.9122097
A65: 4 | B65: FALSE | C65: ON | D65: 2019-04-03T15:00:00 | E65: LRKPCMW | F65: 24.19664955 | G65: 0.00158190635 | H65: =G65*SUMIF('Manual Inputs'!$B$11:$B$22,'Expanded kW'!A65,'Manual Inputs'!$C$11:$C$22) -> 214.693166
A66: =MONTH(D66) -> 4 | B66: =IF(ISNA(VLOOKUP(DATE(YEAR(D66),MONTH(D66),DAY(D66)),Holidays,1,FALSE)),FALSE,TRUE) -> FALSE | C66: =IF(OR(HOUR(D66)<PkStart,HOUR(D66)>OPkStart-1,WEEKDAY(D66,2)>5,B66)=TRUE,"OFF","ON") -> ON | D66: 2019-04-03T16:00:00 | E66: LRKPCMW | F66: 20.08963394 | G66: =IF(SUMIF($A$2:$A$8785,A66,$F$2:$F$8785)=0,0,F66/SUMIF($A$2:$A$8785,A66,$F$2:$F$8785)) -> 0.001313401652 | H66: =G66*SUMIF('Manual Inputs'!$B$11:$B$22,'Expanded kW'!A66,'Manual Inputs'!$C$11:$C$22) -> 178.2522455
A67: 4 | B67: FALSE | C67: ON | D67: 2019-04-03T17:00:00 | E67: LRKPCMW | F67: 18.88004303 | G67: 0.001234322128 | H67: =G67*SUMIF('Manual Inputs'!$B$11:$B$22,'Expanded kW'!A67,'Manual Inputs'!$C$11:$C$22) -> 167.5197305
A68: 4 | B68: FALSE | C68: ON | D68: =+D67+1/24 -> 2019-04-03T18:00:00 | E68: =+E67 -> LRKPCMW | F68: 18.59151268 | G68: 0.001215458855 | H68: =G68*SUMIF('Manual Inputs'!$B$11:$B$22,'Expanded kW'!A68,'Manual Inputs'!$C$11:$C$22) -> 164.9596449
A69: 4 | B69: FALSE | C69: ON | D69: 2019-04-03T19:00:00 | E69: LRKPCMW | F69: 18.39001465 | G69: 0.001202285502 | H69: =G69*SUMIF('Manual Inputs'!$B$11:$B$22,'Expanded kW'!A69,'Manual Inputs'!$C$11:$C$22) -> 163.1717838
A70: 4 | B70: FALSE | C70: ON | D70: 2019-04-03T20:00:00 | E70: LRKPCMW | F70: 19.46485329 | G70: 0.001272555316 | H70: =G70*SUMIF('Manual Inputs'!$B$11:$B$22,'Expanded kW'!A70,'Manual Inputs'!$C$11:$C$22) -> 172.7086624
A71: 4 | B71: FALSE | C71: OFF | D71: 2019-04-03T21:00:00 | E71: LRKPCMW | F71: 21.24640274 | G71: 0.001389027821 | H71: =G71*SUMIF('Manual Inputs'!$B$11:$B$22,'Expanded kW'!A71,'Manual Inputs'!$C$11:$C$22) -> 188.5160779
A72: 4 | B72: FALSE | C72: OFF | D72: 2019-04-03T22:00:00 | E72: LRKPCMW | F72: 20.37199593 | G72: 0.001331861655 | H72: =G72*SUMIF('Manual Inputs'!$B$11:$B$22,'Expanded kW'!A72,'Manual Inputs'!$C$11:$C$22) -> 180.7576001
A73: 4 | B73: FALSE | C73: OFF | D73: 2019-04-03T23:00:00 | E73: LRKPCMW | F73: 19.69534111 | G73: 0.001287623938 | H73: =G73*SUMIF('Manual Inputs'!$B$11:$B$22,'Expanded kW'!A73,'Manual Inputs'!$C$11:$C$22) -> 174.7537456
A74: 4 | B74: FALSE | C74: OFF | D74: 2019-04-04 | E74: LRKPCMW | F74: 19.80139351 | G74: 0.001294557334 | H74: =G74*SUMIF('Manual Inputs'!$B$11:$B$22,'Expanded kW'!A74,'Manual Inputs'!$C$11:$C$22) -> 175.6947323
A75: 4 | B75: FALSE | C75: OFF | D75: 2019-04-04T01:00:00 | E75: LRKPCMW | F75: 20.12366867 | G75: 0.001315626744 | H75: =G75*SUMIF('Manual Inputs'!$B$11:$B$22,'Expanded kW'!A75,'Manual Inputs'!$C$11:$C$22) -> 178.5542304
A76: 4 | B76: FALSE | C76: OFF | D76: 2019-04-04T02:00:00 | E76: LRKPCMW | F76: 18.1469326 | G76: 0.001186393507 | H76: =G76*SUMIF('Manual Inputs'!$B$11:$B$22,'Expanded kW'!A76,'Manual Inputs'!$C$11:$C$22) -> 161.014954
A77: 4 | B77: FALSE | C77: OFF | D77: 2019-04-04T03:00:00 | E77: LRKPCMW | F77: 11.66485405 | G77: 0.0007626141237 | H77: =G77*SUMIF('Manual Inputs'!$B$11:$B$22,'Expanded kW'!A77,'Manual Inputs'!$C$11:$C$22) -> 103.5004636
A78: 4 | B78: FALSE | C78: OFF | D78: 2019-04-04T04:00:00 | E78: LRKPCMW | F78: 11.17404938 | G78: 0.0007305267463 | H78: =G78*SUMIF('Manual Inputs'!$B$11:$B$22,'Expanded kW'!A78,'Manual Inputs'!$C$11:$C$22) -> 99.14562895
A79: 4 | B79: FALSE | C79: OFF | D79: 2019-04-04T05:00:00 | E79: LRKPCMW | F79: 11.70946503 | G79: 0.0007655306593 | H79: =G79*SUMIF('Manual Inputs'!$B$11:$B$22,'Expanded kW'!A79,'Manual Inputs'!$C$11:$C$22) -> 103.89629
A80: 4 | B80: FALSE | C80: OFF | D80: 2019-04-04T06:00:00 | E80: LRKPCMW | F80: 12.4608736 | G80: 0.0008146555597 | H80: =G80*SUMIF('Manual Inputs'!$B$11:$B$22,'Expanded kW'!A80,'Manual Inputs'!$C$11:$C$22) -> 110.5634232
A81: 4 | B81: FALSE | C81: ON | D81: 2019-04-04T07:00:00 | E81: LRKPCMW | F81: 16.8584938 | G81: 0.001102159138 | H81: =G81*SUMIF('Manual Inputs'!$B$11:$B$22,'Expanded kW'!A81,'Manual Inputs'!$C$11:$C$22) -> 149.5828338
A82: 4 | B82: FALSE | C82: ON | D82: 2019-04-04T08:00:00 | E82: LRKPCMW | F82: 23.49745941 | G82: 0.001536195339 | H82: =G82*SUMIF('Manual Inputs'!$B$11:$B$22,'Expanded kW'!A82,'Manual Inputs'!$C$11:$C$22) -> 208.489359
A83: 4 | B83: FALSE | C83: ON | D83: 2019-04-04T09:00:00 | E83: LRKPCMW | F83: 21.74210548 | G83: 0.001421435421 | H83: =G83*SUMIF('Manual Inputs'!$B$11:$B$22,'Expanded kW'!A83,'Manual Inputs'!$C$11:$C$22) -> 192.9143724
A84: 4 | B84: FALSE | C84: ON | D84: 2019-04-04T10:00:00 | E84: LRKPCMW | F84: 22.16417885 | G84: 0.001449029346 | H84: =G84*SUMIF('Manual Inputs'!$B$11:$B$22,'Expanded kW'!A84,'Manual Inputs'!$C$11:$C$22) -> 196.6593647
A85: 4 | B85: FALSE | C85: ON | D85: 2019-04-04T11:00:00 | E85: LRKPCMW | F85: 22.15279579 | G85: 0.001448285155 | H85: =G85*SUMIF('Manual Inputs'!$B$11:$B$22,'Expanded kW'!A85,'Manual Inputs'!$C$11:$C$22) -> 196.5583646
A86: 4 | B86: FALSE | C86: ON | D86: 2019-04-04T12:00:00 | E86: LRKPCMW | F86: 22.3628521 | G86: 0.001462018023 | H86: =G86*SUMIF('Manual Inputs'!$B$11:$B$22,'Expanded kW'!A86,'Manual Inputs'!$C$11:$C$22) -> 198.422162
A87: 4 | B87: FALSE | C87: ON | D87: 2019-04-04T13:00:00 | E87: LRKPCMW | F87: 23.48970795 | G87: 0.001535688571 | H87: =G87*SUMIF('Manual Inputs'!$B$11:$B$22,'Expanded kW'!A87,'Manual Inputs'!$C$11:$C$22) -> 208.4205814
A88: 4 | B88: FALSE | C88: ON | D88: 2019-04-04T14:00:00 | E88: LRKPCMW | F88: 24.4180603 | G88: 0.001596381539 | H88: =G88*SUMIF('Manual Inputs'!$B$11:$B$22,'Expanded kW'!A88,'Manual Inputs'!$C$11:$C$22) -> 216.6577097
A89: 4 | B89: FALSE | C89: ON | D89: 2019-04-04T15:00:00 | E89: LRKPCMW | F89: 21.96089554 | G89: 0.001435739276 | H89: =G89*SUMIF('Manual Inputs'!$B$11:$B$22,'Expanded kW'!A89,'Manual Inputs'!$C$11:$C$22) -> 194.8556631
A90: 4 | B90: FALSE | C90: ON | D90: 2019-04-04T16:00:00 | E90: LRKPCMW | F90: 19.85557175 | G90: 0.001298099349 | H90: =G90*SUMIF('Manual Inputs'!$B$11:$B$22,'Expanded kW'!A90,'Manual Inputs'!$C$11:$C$22) -> 176.1754475
A91: 4 | B91: FALSE | C91: ON | D91: 2019-04-04T17:00:00 | E91: LRKPCMW | F91: 20.10418701 | G91: 0.00131435309 | H91: =G91*SUMIF('Manual Inputs'!$B$11:$B$22,'Expanded kW'!A91,'Manual Inputs'!$C$11:$C$22) -> 178.3813726
A92: 4 | B92: FALSE | C92: ON | D92: 2019-04-04T18:00:00 | E92: LRKPCMW | F92: 20.18995094 | G92: 0.001319960085 | H92: =G92*SUMIF('Manual Inputs'!$B$11:$B$22,'Expanded kW'!A92,'Manual Inputs'!$C$11:$C$22) -> 179.1423429
A93: 4 | B93: FALSE | C93: ON | D93: 2019-04-04T19:00:00 | E93: LRKPCMW | F93: 19.62499619 | G93: 0.001283024992 | H93: =G93*SUMIF('Manual Inputs'!$B$11:$B$22,'Expanded kW'!A93,'Manual Inputs'!$C$11:$C$22) -> 174.1295858
A94: 4 | B94: FALSE | C94: ON | D94: 2019-04-04T20:00:00 | E94: LRKPCMW | F94: 21.05023575 | G94: 0.001376202996 | H94: =G94*SUMIF('Manual Inputs'!$B$11:$B$22,'Expanded kW'!A94,'Manual Inputs'!$C$11:$C$22) -> 186.7755182
A95: 4 | B95: FALSE | C95: OFF | D95: 2019-04-04T21:00:00 | E95: LRKPCMW | F95: 21.88069344 | G95: 0.001430495896 | H95: =G95*SUMIF('Manual Inputs'!$B$11:$B$22,'Expanded kW'!A95,'Manual Inputs'!$C$11:$C$22) -> 194.1440421
A96: 4 | B96: FALSE | C96: OFF | D96: 2019-04-04T22:00:00 | E96: LRKPCMW | F96: 20.82579803 | G96: 0.001361529913 | H96: =G96*SUMIF('Manual Inputs'!$B$11:$B$22,'Expanded kW'!A96,'Manual Inputs'!$C$11:$C$22) -> 184.7841167
A97: 4 | B97: FALSE | C97: OFF | D97: 2019-04-04T23:00:00 | E97: LRKPCMW | F97: 18.94822693 | G97: 0.001238779792 | H97: =G97*SUMIF('Manual Inputs'!$B$11:$B$22,'Expanded kW'!A97,'Manual Inputs'!$C$11:$C$22) -> 168.1247158
A98: 4 | B98: FALSE | C98: OFF | D98: 2019-04-05 | E98: LRKPCMW | F98: 19.28851318 | G98: 0.001261026715 | H98: =G98*SUMIF('Manual Inputs'!$B$11:$B$22,'Expanded kW'!A98,'Manual Inputs'!$C$11:$C$22) -> 171.1440237
A99: 4 | B99: FALSE | C99: OFF | D99: 2019-04-05T01:00:00 | E99: LRKPCMW | F99: 18.69577789 | G99: 0.001222275411 | H99: =G99*SUMIF('Manual Inputs'!$B$11:$B$22,'Expanded kW'!A99,'Manual Inputs'!$C$11:$C$22) -> 165.8847742
A100: 4 | B100: FALSE | C100: OFF | D100: 2019-04-05T02:00:00 | E100: LRKPCMW | F100: 19.56741714 | G100: 0.001279260642 | H100: =G100*SUMIF('Manual Inputs'!$B$11:$B$22,'Expanded kW'!A100,'Manual Inputs'!$C$11:$C$22) -> 173.6186958
A101: 4 | B101: FALSE | C101: OFF | D101: 2019-04-05T03:00:00 | E101: LRKPCMW | F101: 19.19957924 | G101: 0.001255212473 | H101: =G101*SUMIF('Manual Inputs'!$B$11:$B$22,'Expanded kW'!A101,'Manual Inputs'!$C$11:$C$22) -> 170.3549264
A102: 4 | B102: FALSE | C102: OFF | D102: 2019-04-05T04:00:00 | E102: LRKPCMW | F102: 18.86724663 | G102: 0.001233485536 | H102: =G102*SUMIF('Manual Inputs'!$B$11:$B$22,'Expanded kW'!A102,'Manual Inputs'!$C$11:$C$22) -> 167.40619
A103: 4 | B103: FALSE | C103: OFF | D103: 2019-04-05T05:00:00 | E103: LRKPCMW | F103: 11.70909023 | G103: 0.0007655061563 | H103: =G103*SUMIF('Manual Inputs'!$B$11:$B$22,'Expanded kW'!A103,'Manual Inputs'!$C$11:$C$22) -> 103.8929645
A104: 4 | B104: FALSE | C104: OFF | D104: 2019-04-05T06:00:00 | E104: LRKPCMW | F104: 13.01689529 | G104: 0.0008510066355 | H104: =G104*SUMIF('Manual Inputs'!$B$11:$B$22,'Expanded kW'!A104,'Manual Inputs'!$C$11:$C$22) -> 115.4969186
A105: 4 | B105: FALSE | C105: ON | D105: 2019-04-05T07:00:00 | E105: LRKPCMW | F105: 14.21331692 | G105: 0.0009292251905 | H105: =G105*SUMIF('Manual Inputs'!$B$11:$B$22,'Expanded kW'!A105,'Manual Inputs'!$C$11:$C$22) -> 126.1125844
A106: 4 | B106: FALSE | C106: ON | D106: 2019-04-05T08:00:00 | E106: LRKPCMW | F106: 22.14155769 | G106: 0.001447550441 | H106: =G106*SUMIF('Manual Inputs'!$B$11:$B$22,'Expanded kW'!A106,'Manual Inputs'!$C$11:$C$22) -> 196.4586507
A107: 4 | B107: FALSE | C107: ON | D107: 2019-04-05T09:00:00 | E107: LRKPCMW | F107: 20.49703789 | G107: 0.001340036534 | H107: =G107*SUMIF('Manual Inputs'!$B$11:$B$22,'Expanded kW'!A107,'Manual Inputs'!$C$11:$C$22) -> 181.8670783
A108: 4 | B108: FALSE | C108: ON | D108: 2019-04-05T10:00:00 | E108: LRKPCMW | F108: 20.68190765 | G108: 0.00135212278 | H108: =G108*SUMIF('Manual Inputs'!$B$11:$B$22,'Expanded kW'!A108,'Manual Inputs'!$C$11:$C$22) -> 183.5073994
A109: 4 | B109: FALSE | C109: ON | D109: 2019-04-05T11:00:00 | E109: LRKPCMW | F109: 20.61193657 | G109: 0.001347548274 | H109: =G109*SUMIF('Manual Inputs'!$B$11:$B$22,'Expanded kW'!A109,'Manual Inputs'!$C$11:$C$22) -> 182.8865567
A110: 4 | B110: FALSE | C110: ON | D110: 2019-04-05T12:00:00 | E110: LRKPCMW | F110: 20.55484772 | G110: 0.001343815972 | H110: =G110*SUMIF('Manual Inputs'!$B$11:$B$22,'Expanded kW'!A110,'Manual Inputs'!$C$11:$C$22) -> 182.3800161
A111: 4 | B111: FALSE | C111: ON | D111: 2019-04-05T13:00:00 | E111: LRKPCMW | F111: 22.95878792 | G111: 0.001500978568 | H111: =G111*SUMIF('Manual Inputs'!$B$11:$B$22,'Expanded kW'!A111,'Manual Inputs'!$C$11:$C$22) -> 203.7098093
A112: 4 | B112: FALSE | C112: ON | D112: 2019-04-05T14:00:00 | E112: LRKPCMW | F112: 22.91380119 | G112: 0.001498037467 | H112: =G112*SUMIF('Manual Inputs'!$B$11:$B$22,'Expanded kW'!A112,'Manual Inputs'!$C$11:$C$22) -> 203.310649
A113: 4 | B113: FALSE | C113: ON | D113: 2019-04-05T15:00:00 | E113: LRKPCMW | F113: 20.3348484 | G113: 0.001329433059 | H113: =G113*SUMIF('Manual Inputs'!$B$11:$B$22,'Expanded kW'!A113,'Manual Inputs'!$C$11:$C$22) -> 180.4279958
A114: 4 | B114: FALSE | C114: ON | D114: 2019-04-05T16:00:00 | E114: LRKPCMW | F114: 19.53292084 | G114: 0.001277005374 | H114: =G114*SUMIF('Manual Inputs'!$B$11:$B$22,'Expanded kW'!A114,'Manual Inputs'!$C$11:$C$22) -> 173.3126154
A115: 4 | B115: FALSE | C115: ON | D115: 2019-04-05T17:00:00 | E115: LRKPCMW | F115: 18.79986954 | G115: 0.001229080619 | H115: =G115*SUMIF('Manual Inputs'!$B$11:$B$22,'Expanded kW'!A115,'Manual Inputs'!$C$11:$C$22) -> 166.8083634
A116: 4 | B116: FALSE | C116: ON | D116: 2019-04-05T18:00:00 | E116: LRKPCMW | F116: 18.87214661 | G116: 0.001233805883 | H116: =G116*SUMIF('Manual Inputs'!$B$11:$B$22,'Expanded kW'!A116,'Manual Inputs'!$C$11:$C$22) -> 167.4496668
A117: 4 | B117: FALSE | C117: ON | D117: 2019-04-05T19:00:00 | E117: LRKPCMW | F117: 20.98196411 | G117: 0.001371739595 | H117: =G117*SUMIF('Manual Inputs'!$B$11:$B$22,'Expanded kW'!A117,'Manual Inputs'!$C$11:$C$22) -> 186.1697544
A118: 4 | B118: FALSE | C118: ON | D118: 2019-04-05T20:00:00 | E118: LRKPCMW | F118: 23.46273422 | G118: 0.001533925107 | H118: =G118*SUMIF('Manual Inputs'!$B$11:$B$22,'Expanded kW'!A118,'Manual Inputs'!$C$11:$C$22) -> 208.1812477
A119: 4 | B119: FALSE | C119: OFF | D119: 2019-04-05T21:00:00 | E119: LRKPCMW | F119: 24.00621796 | G119: 0.001569456488 | H119: =G119*SUMIF('Manual Inputs'!$B$11:$B$22,'Expanded kW'!A119,'Manual Inputs'!$C$11:$C$22) -> 213.0034957
A120: 4 | B120: FALSE | C120: OFF | D120: 2019-04-05T22:00:00 | E120: LRKPCMW | F120: 22.57976913 | G120: 0.001476199426 | H120: =G120*SUMIF('Manual Inputs'!$B$11:$B$22,'Expanded kW'!A120,'Manual Inputs'!$C$11:$C$22) -> 200.3468337
A121: 4 | B121: FALSE | C121: OFF | D121: 2019-04-05T23:00:00 | E121: LRKPCMW | F121: 21.08937073 | G121: 0.001378761527 | H121: =G121*SUMIF('Manual Inputs'!$B$11:$B$22,'Expanded kW'!A121,'Manual Inputs'!$C$11:$C$22) -> 187.1227569
A122: 4 | B122: FALSE | C122: OFF | D122: 2019-04-06 | E122: LRKPCMW | F122: 20.17173767 | G122: 0.001318769355 | H122: =G122*SUMIF('Manual Inputs'!$B$11:$B$22,'Expanded kW'!A122,'Manual Inputs'!$C$11:$C$22) -> 178.9807393
A123: 4 | B123: FALSE | C123: OFF | D123: 2019-04-06T01:00:00 | E123: LRKPCMW | F123: 19.39698601 | G123: 0.001268118351 | H123: =G123*SUMIF('Manual Inputs'!$B$11:$B$22,'Expanded kW'!A123,'Manual Inputs'!$C$11:$C$22) -> 172.1064864
A124: 4 | B124: FALSE | C124: OFF | D124: 2019-04-06T02:00:00 | E124: LRKPCMW | F124: 19.12955093 | G124: 0.001250634227 | H124: =G124*SUMIF('Manual Inputs'!$B$11:$B$22,'Expanded kW'!A124,'Manual Inputs'!$C$11:$C$22) -> 169.733576
A125: 4 | B125: FALSE | C125: OFF | D125: 2019-04-06T03:00:00 | E125: LRKPCMW | F125: 19.84090233 | G125: 0.001297140305 | H125: =G125*SUMIF('Manual Inputs'!$B$11:$B$22,'Expanded kW'!A125,'Manual Inputs'!$C$11:$C$22) -> 176.045288
A126: 4 | B126: FALSE | C126: OFF | D126: 2019-04-06T04:00:00 | E126: LRKPCMW | F126: 19.46949196 | G126: 0.001272858579 | H126: =G126*SUMIF('Manual Inputs'!$B$11:$B$22,'Expanded kW'!A126,'Manual Inputs'!$C$11:$C$22) -> 172.7498206
A127: 4 | B127: FALSE | C127: OFF | D127: 2019-04-06T05:00:00 | E127: LRKPCMW | F127: 19.40724564 | G127: 0.001268789096 | H127: =G127*SUMIF('Manual Inputs'!$B$11:$B$22,'Expanded kW'!A127,'Manual Inputs'!$C$11:$C$22) -> 172.1975185
A128: 4 | B128: FALSE | C128: OFF | D128: 2019-04-06T06:00:00 | E128: LRKPCMW | F128: 12.28586006 | G128: 0.0008032136849 | H128: =G128*SUMIF('Manual Inputs'!$B$11:$B$22,'Expanded kW'!A128,'Manual Inputs'!$C$11:$C$22) -> 109.0105549
A129: 4 | B129: FALSE | C129: OFF | D129: 2019-04-06T07:00:00 | E129: LRKPCMW | F129: 14.05962849 | G129: 0.0009191774893 | H129: =G129*SUMIF('Manual Inputs'!$B$11:$B$22,'Expanded kW'!A129,'Manual Inputs'!$C$11:$C$22) -> 124.7489305
A130: =MONTH(D130) -> 4 | B130: =IF(ISNA(VLOOKUP(DATE(YEAR(D130),MONTH(D130),DAY(D130)),Holidays,1,FALSE)),FALSE,TRUE) -> FALSE | C130: =IF(OR(HOUR(D130)<PkStart,HOUR(D130)>OPkStart-1,WEEKDAY(D130,2)>5,B130)=TRUE,"OFF","ON") -> OFF | D130: 2019-04-06T08:00:00 | E130: LRKPCMW | F130: 15.25867271 | G130: =IF(SUMIF($A$2:$A$8785,A130,$F$2:$F$8785)=0,0,F130/SUMIF($A$2:$A$8785,A130,$F$2:$F$8785)) -> 0.0009975675025 | H130: =G130*SUMIF('Manual Inputs'!$B$11:$B$22,'Expanded kW'!A130,'Manual Inputs'!$C$11:$C$22) -> 135.3878663
A131: 4 | B131: FALSE | C131: OFF | D131: 2019-04-06T09:00:00 | E131: LRKPCMW | F131: 15.93541336 | G131: 0.001041810831 | H131: =G131*SUMIF('Manual Inputs'!$B$11:$B$22,'Expanded kW'!A131,'Manual Inputs'!$C$11:$C$22) -> 141.3924824
A132: 4 | B132: FALSE | C132: OFF | D132: =+D131+1/24 -> 2019-04-06T10:00:00 | E132: =+E131 -> LRKPCMW | F132: 20.61427116 | G132: 0.001347700903 | H132: =G132*SUMIF('Manual Inputs'!$B$11:$B$22,'Expanded kW'!A132,'Manual Inputs'!$C$11:$C$22) -> 182.9072712
A133: 4 | B133: FALSE | C133: OFF | D133: 2019-04-06T11:00:00 | E133: LRKPCMW | F133: 20.66649055 | G133: 0.001351114855 | H133: =G133*SUMIF('Manual Inputs'!$B$11:$B$22,'Expanded kW'!A133,'Manual Inputs'!$C$11:$C$22) -> 183.3706059
A134: 4 | B134: FALSE | C134: OFF | D134: 2019-04-06T12:00:00 | E134: LRKPCMW | F134: 20.56669235 | G134: 0.001344590339 | H134: =G134*SUMIF('Manual Inputs'!$B$11:$B$22,'Expanded kW'!A134,'Manual Inputs'!$C$11:$C$22) -> 182.4851117
A135: 4 | B135: FALSE | C135: OFF | D135: 2019-04-06T13:00:00 | E135: LRKPCMW | F135: 24.54068375 | G135: 0.001604398302 | H135: =G135*SUMIF('Manual Inputs'!$B$11:$B$22,'Expanded kW'!A135,'Manual Inputs'!$C$11:$C$22) -> 217.7457288
A136: 4 | B136: FALSE | C136: OFF | D136: 2019-04-06T14:00:00 | E136: LRKPCMW | F136: 25.29676056 | G136: 0.001653828398 | H136: =G136*SUMIF('Manual Inputs'!$B$11:$B$22,'Expanded kW'!A136,'Manual Inputs'!$C$11:$C$22) -> 224.4542825
A137: 4 | B137: FALSE | C137: OFF | D137: 2019-04-06T15:00:00 | E137: LRKPCMW | F137: 22.91515541 | G137: 0.001498126002 | H137: =G137*SUMIF('Manual Inputs'!$B$11:$B$22,'Expanded kW'!A137,'Manual Inputs'!$C$11:$C$22) -> 203.3226648
A138: 4 | B138: FALSE | C138: OFF | D138: 2019-04-06T16:00:00 | E138: LRKPCMW | F138: 22.51973915 | G138: 0.001472274841 | H138: =G138*SUMIF('Manual Inputs'!$B$11:$B$22,'Expanded kW'!A138,'Manual Inputs'!$C$11:$C$22) -> 199.8141969
A139: 4 | B139: FALSE | C139: OFF | D139: 2019-04-06T17:00:00 | E139: LRKPCMW | F139: 21.66184616 | G139: 0.0014161883 | H139: =G139*SUMIF('Manual Inputs'!$B$11:$B$22,'Expanded kW'!A139,'Manual Inputs'!$C$11:$C$22) -> 192.2022437
A140: 4 | B140: FALSE | C140: OFF | D140: 2019-04-06T18:00:00 | E140: LRKPCMW | F140: 20.35695267 | G140: 0.001330878171 | H140: =G140*SUMIF('Manual Inputs'!$B$11:$B$22,'Expanded kW'!A140,'Manual Inputs'!$C$11:$C$22) -> 180.6241236
A141: 4 | B141: FALSE | C141: OFF | D141: 2019-04-06T19:00:00 | E141: LRKPCMW | F141: 21.80314255 | G141: 0.001425425846 | H141: =G141*SUMIF('Manual Inputs'!$B$11:$B$22,'Expanded kW'!A141,'Manual Inputs'!$C$11:$C$22) -> 193.4559449
A142: 4 | B142: FALSE | C142: OFF | D142: 2019-04-06T20:00:00 | E142: LRKPCMW | F142: 21.62527657 | G142: 0.001413797487 | H142: =G142*SUMIF('Manual Inputs'!$B$11:$B$22,'Expanded kW'!A142,'Manual Inputs'!$C$11:$C$22) -> 191.8777673
A143: 4 | B143: FALSE | C143: OFF | D143: 2019-04-06T21:00:00 | E143: LRKPCMW | F143: 20.7640686 | G143: 0.001357494223 | H143: =G143*SUMIF('Manual Inputs'!$B$11:$B$22,'Expanded kW'!A143,'Manual Inputs'!$C$11:$C$22) -> 184.2364009
A144: 4 | B144: FALSE | C144: OFF | D144: 2019-04-06T22:00:00 | E144: LRKPCMW | F144: 19.32341194 | G144: 0.001263308294 | H144: =G144*SUMIF('Manual Inputs'!$B$11:$B$22,'Expanded kW'!A144,'Manual Inputs'!$C$11:$C$22) -> 171.453675
A145: 4 | B145: FALSE | C145: OFF | D145: 2019-04-06T23:00:00 | E145: LRKPCMW | F145: 18.8802433 | G145: 0.001234335221 | H145: =G145*SUMIF('Manual Inputs'!$B$11:$B$22,'Expanded kW'!A145,'Manual Inputs'!$C$11:$C$22) -> 167.5215075
A146: 4 | B146: FALSE | C146: OFF | D146: 2019-04-07 | E146: LRKPCMW | F146: 19.92162323 | G146: 0.001302417602 | H146: =G146*SUMIF('Manual Inputs'!$B$11:$B$22,'Expanded kW'!A146,'Manual Inputs'!$C$11:$C$22) -> 176.7615122
A147: 4 | B147: FALSE | C147: OFF | D147: 2019-04-07T01:00:00 | E147: LRKPCMW | F147: 19.21496964 | G147: 0.001256218652 | H147: =G147*SUMIF('Manual Inputs'!$B$11:$B$22,'Expanded kW'!A147,'Manual Inputs'!$C$11:$C$22) -> 170.491483
A148: 4 | B148: FALSE | C148: OFF | D148: 2019-04-07T02:00:00 | E148: LRKPCMW | F148: 18.77606583 | G148: 0.001227524402 | H148: =G148*SUMIF('Manual Inputs'!$B$11:$B$22,'Expanded kW'!A148,'Manual Inputs'!$C$11:$C$22) -> 166.5971567
A149: 4 | B149: FALSE | C149: OFF | D149: 2019-04-07T03:00:00 | E149: LRKPCMW | F149: 19.40393066 | G149: 0.001268572373 | H149: =G149*SUMIF('Manual Inputs'!$B$11:$B$22,'Expanded kW'!A149,'Manual Inputs'!$C$11:$C$22) -> 172.1681053
A150: 4 | B150: FALSE | C150: OFF | D150: 2019-04-07T04:00:00 | E150: LRKPCMW | F150: 21.22493172 | G150: 0.001387624109 | H150: =G150*SUMIF('Manual Inputs'!$B$11:$B$22,'Expanded kW'!A150,'Manual Inputs'!$C$11:$C$22) -> 188.3255688
A151: 4 | B151: FALSE | C151: OFF | D151: 2019-04-07T05:00:00 | E151: LRKPCMW | F151: 22.63841438 | G151: 0.001480033481 | H151: =G151*SUMIF('Manual Inputs'!$B$11:$B$22,'Expanded kW'!A151,'Manual Inputs'!$C$11:$C$22) -> 200.867184
A152: 4 | B152: FALSE | C152: OFF | D152: 2019-04-07T06:00:00 | E152: LRKPCMW | F152: 19.71511078 | G152: 0.001288916421 | H152: =G152*SUMIF('Manual Inputs'!$B$11:$B$22,'Expanded kW'!A152,'Manual Inputs'!$C$11:$C$22) -> 174.9291588
A153: 4 | B153: FALSE | C153: OFF | D153: 2019-04-07T07:00:00 | E153: LRKPCMW | F153: 19.06344223 | G153: 0.001246312232 | H153: =G153*SUMIF('Manual Inputs'!$B$11:$B$22,'Expanded kW'!A153,'Manual Inputs'!$C$11:$C$22) -> 169.1470036
A154: 4 | B154: FALSE | C154: OFF | D154: 2019-04-07T08:00:00 | E154: LRKPCMW | F154: 19.5059185 | G154: 0.00127524004 | H154: =G154*SUMIF('Manual Inputs'!$B$11:$B$22,'Expanded kW'!A154,'Manual Inputs'!$C$11:$C$22) -> 173.0730278
A155: 4 | B155: FALSE | C155: OFF | D155: 2019-04-07T09:00:00 | E155: LRKPCMW | F155: 20.75775909 | G155: 0.001357081726 | H155: =G155*SUMIF('Manual Inputs'!$B$11:$B$22,'Expanded kW'!A155,'Manual Inputs'!$C$11:$C$22) -> 184.1804176
A156: 4 | B156: FALSE | C156: OFF | D156: 2019-04-07T10:00:00 | E156: LRKPCMW | F156: 22.22657013 | G156: 0.001453108306 | H156: =G156*SUMIF('Manual Inputs'!$B$11:$B$22,'Expanded kW'!A156,'Manual Inputs'!$C$11:$C$22) -> 197.212953
A157: 4 | B157: FALSE | C157: OFF | D157: 2019-04-07T11:00:00 | E157: LRKPCMW | F157: 23.35437584 | G157: 0.001526840952 | H157: =G157*SUMIF('Manual Inputs'!$B$11:$B$22,'Expanded kW'!A157,'Manual Inputs'!$C$11:$C$22) -> 207.2198004
A158: 4 | B158: FALSE | C158: OFF | D158: 2019-04-07T12:00:00 | E158: LRKPCMW | F158: 22.57855797 | G158: 0.001476120244 | H158: =G158*SUMIF('Manual Inputs'!$B$11:$B$22,'Expanded kW'!A158,'Manual Inputs'!$C$11:$C$22) -> 200.3360872
A159: 4 | B159: FALSE | C159: OFF | D159: 2019-04-07T13:00:00 | E159: LRKPCMW | F159: 20.12240028 | G159: 0.00131554382 | H159: =G159*SUMIF('Manual Inputs'!$B$11:$B$22,'Expanded kW'!A159,'Manual Inputs'!$C$11:$C$22) -> 178.5429762
A160: 4 | B160: FALSE | C160: OFF | D160: 2019-04-07T14:00:00 | E160: LRKPCMW | F160: 19.92949104 | G160: 0.001302931977 | H160: =G160*SUMIF('Manual Inputs'!$B$11:$B$22,'Expanded kW'!A160,'Manual Inputs'!$C$11:$C$22) -> 176.8313221
A161: 4 | B161: FALSE | C161: OFF | D161: 2019-04-07T15:00:00 | E161: LRKPCMW | F161: 19.86424637 | G161: 0.001298666471 | H161: =G161*SUMIF('Manual Inputs'!$B$11:$B$22,'Expanded kW'!A161,'Manual Inputs'!$C$11:$C$22) -> 176.252416
A162: 4 | B162: FALSE | C162: OFF | D162: 2019-04-07T16:00:00 | E162: LRKPCMW | F162: 20.32095909 | G162: 0.001328525016 | H162: =G162*SUMIF('Manual Inputs'!$B$11:$B$22,'Expanded kW'!A162,'Manual Inputs'!$C$11:$C$22) -> 180.3047581
A163: 4 | B163: FALSE | C163: OFF | D163: 2019-04-07T17:00:00 | E163: LRKPCMW | F163: 22.99250412 | G163: 0.001503182835 | H163: =G163*SUMIF('Manual Inputs'!$B$11:$B$22,'Expanded kW'!A163,'Manual Inputs'!$C$11:$C$22) -> 204.008968
A164: 4 | B164: FALSE | C164: OFF | D164: 2019-04-07T18:00:00 | E164: LRKPCMW | F164: 22.85463715 | G164: 0.001494169495 | H164: =G164*SUMIF('Manual Inputs'!$B$11:$B$22,'Expanded kW'!A164,'Manual Inputs'!$C$11:$C$22) -> 202.7856955
A165: 4 | B165: FALSE | C165: OFF | D165: 2019-04-07T19:00:00 | E165: LRKPCMW | F165: 20.9552784 | G165: 0.001369994961 | H165: =G165*SUMIF('Manual Inputs'!$B$11:$B$22,'Expanded kW'!A165,'Manual Inputs'!$C$11:$C$22) -> 185.9329762
A166: 4 | B166: FALSE | C166: OFF | D166: 2019-04-07T20:00:00 | E166: LRKPCMW | F166: 19.12520027 | G166: 0.001250349793 | H166: =G166*SUMIF('Manual Inputs'!$B$11:$B$22,'Expanded kW'!A166,'Manual Inputs'!$C$11:$C$22) -> 169.6949732
A167: 4 | B167: FALSE | C167: OFF | D167: 2019-04-07T21:00:00 | E167: LRKPCMW | F167: 18.99842834 | G167: 0.001242061814 | H167: =G167*SUMIF('Manual Inputs'!$B$11:$B$22,'Expanded kW'!A167,'Manual Inputs'!$C$11:$C$22) -> 168.5701453
A168: 4 | B168: FALSE | C168: OFF | D168: 2019-04-07T22:00:00 | E168: LRKPCMW | F168: 20.25441742 | G168: 0.001324174715 | H168: =G168*SUMIF('Manual Inputs'!$B$11:$B$22,'Expanded kW'!A168,'Manual Inputs'!$C$11:$C$22) -> 179.714344
A169: 4 | B169: FALSE | C169: OFF | D169: 2019-04-07T23:00:00 | E169: LRKPCMW | F169: 20.82032204 | G169: 0.001361171908 | H169: =G169*SUMIF('Manual Inputs'!$B$11:$B$22,'Expanded kW'!A169,'Manual Inputs'!$C$11:$C$22) -> 184.735529
A170: 4 | B170: FALSE | C170: OFF | D170: 2019-04-08 | E170: LRKPCMW | F170: 13.85677624 | G170: 0.0009059156011 | H170: =G170*SUMIF('Manual Inputs'!$B$11:$B$22,'Expanded kW'!A170,'Manual Inputs'!$C$11:$C$22) -> 122.9490536
A171: 4 | B171: FALSE | C171: OFF | D171: 2019-04-08T01:00:00 | E171: LRKPCMW | F171: 11.89551544 | G171: 0.0007776940926 | H171: =G171*SUMIF('Manual Inputs'!$B$11:$B$22,'Expanded kW'!A171,'Manual Inputs'!$C$11:$C$22) -> 105.5470869
A172: 4 | B172: FALSE | C172: OFF | D172: 2019-04-08T02:00:00 | E172: LRKPCMW | F172: 15.72506905 | G172: 0.001028059134 | H172: =G172*SUMIF('Manual Inputs'!$B$11:$B$22,'Expanded kW'!A172,'Manual Inputs'!$C$11:$C$22) -> 139.5261295
A173: 4 | B173: FALSE | C173: OFF | D173: 2019-04-08T03:00:00 | E173: LRKPCMW | F173: 19.86787605 | G173: 0.001298903769 | H173: =G173*SUMIF('Manual Inputs'!$B$11:$B$22,'Expanded kW'!A173,'Manual Inputs'!$C$11:$C$22) -> 176.2846217
A174: 4 | B174: FALSE | C174: OFF | D174: 2019-04-08T04:00:00 | E174: LRKPCMW | F174: 20.29231262 | G174: 0.001326652193 | H174: =G174*SUMIF('Manual Inputs'!$B$11:$B$22,'Expanded kW'!A174,'Manual Inputs'!$C$11:$C$22) -> 180.0505824
A175: 4 | B175: FALSE | C175: OFF | D175: 2019-04-08T05:00:00 | E175: LRKPCMW | F175: 20.6044445 | G175: 0.001347058465 | H175: =G175*SUMIF('Manual Inputs'!$B$11:$B$22,'Expanded kW'!A175,'Manual Inputs'!$C$11:$C$22) -> 182.8200808
A176: 4 | B176: FALSE | C176: OFF | D176: 2019-04-08T06:00:00 | E176: LRKPCMW | F176: 20.62153435 | G176: 0.001348175749 | H176: =G176*SUMIF('Manual Inputs'!$B$11:$B$22,'Expanded kW'!A176,'Manual Inputs'!$C$11:$C$22) -> 182.9717163
A177: 4 | B177: FALSE | C177: ON | D177: 2019-04-08T07:00:00 | E177: LRKPCMW | F177: 22.59654045 | G177: 0.001477295886 | H177: =G177*SUMIF('Manual Inputs'!$B$11:$B$22,'Expanded kW'!A177,'Manual Inputs'!$C$11:$C$22) -> 200.495643
A178: 4 | B178: FALSE | C178: ON | D178: 2019-04-08T08:00:00 | E178: LRKPCMW | F178: 22.41803932 | G178: 0.001465626003 | H178: =G178*SUMIF('Manual Inputs'!$B$11:$B$22,'Expanded kW'!A178,'Manual Inputs'!$C$11:$C$22) -> 198.9118298
A179: 4 | B179: FALSE | C179: ON | D179: 2019-04-08T09:00:00 | E179: LRKPCMW | F179: 20.86902618 | G179: 0.001364356043 | H179: =G179*SUMIF('Manual Inputs'!$B$11:$B$22,'Expanded kW'!A179,'Manual Inputs'!$C$11:$C$22) -> 185.1676735
A180: 4 | B180: FALSE | C180: ON | D180: 2019-04-08T10:00:00 | E180: LRKPCMW | F180: 20.42162132 | G180: 0.001335106019 | H180: =G180*SUMIF('Manual Inputs'!$B$11:$B$22,'Expanded kW'!A180,'Manual Inputs'!$C$11:$C$22) -> 181.1979187
A181: 4 | B181: FALSE | C181: ON | D181: 2019-04-08T11:00:00 | E181: LRKPCMW | F181: 19.33831215 | G181: 0.001264282426 | H181: =G181*SUMIF('Manual Inputs'!$B$11:$B$22,'Expanded kW'!A181,'Manual Inputs'!$C$11:$C$22) -> 171.5858823
A182: 4 | B182: FALSE | C182: ON | D182: 2019-04-08T12:00:00 | E182: LRKPCMW | F182: 23.19155312 | G182: 0.001516196078 | H182: =G182*SUMIF('Manual Inputs'!$B$11:$B$22,'Expanded kW'!A182,'Manual Inputs'!$C$11:$C$22) -> 205.7750993
A183: 4 | B183: FALSE | C183: ON | D183: 2019-04-08T13:00:00 | E183: LRKPCMW | F183: 17.39728165 | G183: 0.001137383515 | H183: =G183*SUMIF('Manual Inputs'!$B$11:$B$22,'Expanded kW'!A183,'Manual Inputs'!$C$11:$C$22) -> 154.3634159
A184: 4 | B184: FALSE | C184: ON | D184: 2019-04-08T14:00:00 | E184: LRKPCMW | F184: 24.4190979 | G184: 0.001596449374 | H184: =G184*SUMIF('Manual Inputs'!$B$11:$B$22,'Expanded kW'!A184,'Manual Inputs'!$C$11:$C$22) -> 216.6669162
A185: 4 | B185: FALSE | C185: ON | D185: 2019-04-08T15:00:00 | E185: LRKPCMW | F185: 24.34734154 | G185: 0.001591758153 | H185: =G185*SUMIF('Manual Inputs'!$B$11:$B$22,'Expanded kW'!A185,'Manual Inputs'!$C$11:$C$22) -> 216.0302329
A186: 4 | B186: FALSE | C186: ON | D186: 2019-04-08T16:00:00 | E186: LRKPCMW | F186: 22.57705879 | G186: 0.001476022232 | H186: =G186*SUMIF('Manual Inputs'!$B$11:$B$22,'Expanded kW'!A186,'Manual Inputs'!$C$11:$C$22) -> 200.3227852
A187: 4 | B187: FALSE | C187: ON | D187: 2019-04-08T17:00:00 | E187: LRKPCMW | F187: 22.83530045 | G187: 0.001492905318 | H187: =G187*SUMIF('Manual Inputs'!$B$11:$B$22,'Expanded kW'!A187,'Manual Inputs'!$C$11:$C$22) -> 202.6141239
A188: 4 | B188: FALSE | C188: ON | D188: 2019-04-08T18:00:00 | E188: LRKPCMW | F188: 22.9456749 | G188: 0.001500121277 | H188: =G188*SUMIF('Manual Inputs'!$B$11:$B$22,'Expanded kW'!A188,'Manual Inputs'!$C$11:$C$22) -> 203.5934595
A189: 4 | B189: FALSE | C189: ON | D189: 2019-04-08T19:00:00 | E189: LRKPCMW | F189: 23.00985336 | G189: 0.001504317078 | H189: =G189*SUMIF('Manual Inputs'!$B$11:$B$22,'Expanded kW'!A189,'Manual Inputs'!$C$11:$C$22) -> 204.1629052
A190: 4 | B190: FALSE | C190: ON | D190: 2019-04-08T20:00:00 | E190: LRKPCMW | F190: 23.10328293 | G190: 0.00151042523 | H190: =G190*SUMIF('Manual Inputs'!$B$11:$B$22,'Expanded kW'!A190,'Manual Inputs'!$C$11:$C$22) -> 204.9918914
A191: 4 | B191: FALSE | C191: OFF | D191: 2019-04-08T21:00:00 | E191: LRKPCMW | F191: 23.94812012 | G191: 0.001565658221 | H191: =G191*SUMIF('Manual Inputs'!$B$11:$B$22,'Expanded kW'!A191,'Manual Inputs'!$C$11:$C$22) -> 212.4880024
A192: 4 | B192: FALSE | C192: OFF | D192: 2019-04-08T22:00:00 | E192: LRKPCMW | F192: 14.6392231 | G192: 0.000957069694 | H192: =G192*SUMIF('Manual Inputs'!$B$11:$B$22,'Expanded kW'!A192,'Manual Inputs'!$C$11:$C$22) -> 129.8915847
A193: 4 | B193: FALSE | C193: OFF | D193: 2019-04-08T23:00:00 | E193: LRKPCMW | F193: 11.87759113 | G193: 0.0007765222536 | H193: =G193*SUMIF('Manual Inputs'!$B$11:$B$22,'Expanded kW'!A193,'Manual Inputs'!$C$11:$C$22) -> 105.3880472
A194: =MONTH(D194) -> 4 | B194: =IF(ISNA(VLOOKUP(DATE(YEAR(D194),MONTH(D194),DAY(D194)),Holidays,1,FALSE)),FALSE,TRUE) -> FALSE | C194: =IF(OR(HOUR(D194)<PkStart,HOUR(D194)>OPkStart-1,WEEKDAY(D194,2)>5,B194)=TRUE,"OFF","ON") -> OFF | D194: 2019-04-09 | E194: LRKPCMW | F194: 13.44994831 | G194: =IF(SUMIF($A$2:$A$8785,A194,$F$2:$F$8785)=0,0,F194/SUMIF($A$2:$A$8785,A194,$F$2:$F$8785)) -> 0.0008793183782 | H194: =G194*SUMIF('Manual Inputs'!$B$11:$B$22,'Expanded kW'!A194,'Manual Inputs'!$C$11:$C$22) -> 119.3393317
A195: 4 | B195: FALSE | C195: OFF | D195: 2019-04-09T01:00:00 | E195: LRKPCMW | F195: 21.79046249 | G195: 0.001424596861 | H195: =G195*SUMIF('Manual Inputs'!$B$11:$B$22,'Expanded kW'!A195,'Manual Inputs'!$C$11:$C$22) -> 193.3434368
A196: 4 | B196: FALSE | C196: OFF | D196: =+D195+1/24 -> 2019-04-09T02:00:00 | E196: =+E195 -> LRKPCMW | F196: 21.94501495 | G196: 0.00143470105 | H196: =G196*SUMIF('Manual Inputs'!$B$11:$B$22,'Expanded kW'!A196,'Manual Inputs'!$C$11:$C$22) -> 194.7147571
A197: 4 | B197: FALSE | C197: OFF | D197: 2019-04-09T03:00:00 | E197: LRKPCMW | F197: 21.33890915 | G197: 0.001395075621 | H197: =G197*SUMIF('Manual Inputs'!$B$11:$B$22,'Expanded kW'!A197,'Manual Inputs'!$C$11:$C$22) -> 189.3368731
A198: 4 | B198: FALSE | C198: OFF | D198: 2019-04-09T04:00:00 | E198: LRKPCMW | F198: 22.46112251 | G198: 0.001468442656 | H198: =G198*SUMIF('Manual Inputs'!$B$11:$B$22,'Expanded kW'!A198,'Manual Inputs'!$C$11:$C$22) -> 199.2941004
A199: 4 | B199: FALSE | C199: OFF | D199: 2019-04-09T05:00:00 | E199: LRKPCMW | F199: 21.00481796 | G199: 0.001373233714 | H199: =G199*SUMIF('Manual Inputs'!$B$11:$B$22,'Expanded kW'!A199,'Manual Inputs'!$C$11:$C$22) -> 186.3725331
A200: 4 | B200: FALSE | C200: OFF | D200: 2019-04-09T06:00:00 | E200: LRKPCMW | F200: 21.90366173 | G200: 0.001431997496 | H200: =G200*SUMIF('Manual Inputs'!$B$11:$B$22,'Expanded kW'!A200,'Manual Inputs'!$C$11:$C$22) -> 194.3478362
... 8585 more rows

Sheet Monthly Data
A1: ='Manual Inputs'!D1 -> Kentucky Power Co.
A2: =+'Manual Inputs'!D2 -> Kentucky
A3: Monthly Summary of Sample Data
A4: =CustClass & " Customers" -> Municipal Waterworks Customers
A5: ="For the Test Year Ended " & TEXT(+DATE(YEAR(ReportYr)+1,MONTH(ReportYr),DAY(ReportYr))-1,"Mmmm d, yyyy") -> For the Test Year Ended March 31, 2020
A6: ="Based on Sample Period Ended " & TEXT(+DATE(YEAR(TYBegin)+1,MONTH(TYBegin),DAY(TYBegin))-1,"Mmmm d, yyyy") -> Based on Sample Period Ended March 31, 2020
C8: ON | E8: OFF
C9: NCP | H9: SNCP | N9: Energy
A10: Year | B10: Month | C10: On-Peak | D10: LF | E10: Off-Peak | F10: LF | H10: On-Peak | I10: LF | J10: Off-Peak | K10: LF | M10: CP | N10: On-Peak | O10: Off-Peak | P10: Total
A11: =+'Manual Inputs'!A11 -> 2019 | B11: =+'Manual Inputs'!B11 -> 4 | C11: =MAX(IF('Expanded kW'!$A$2:$A$8785=$B11,IF('Expanded kW'!$C$2:$C$8785=C$8,'Expanded kW'!$F$2:$F$8785,0),0)) -> 28.23784447 | D11: =IF(C11=0,0,$P11/C11/COUNTIF('Expanded kW'!$A$2:$A$8785,'Monthly Data'!$B11)) -> 0.7523335455 | E11: =MAX(IF('Expanded kW'!$A$2:$A$8785=$B11,IF('Expanded kW'!$C$2:$C$8785=E$8,'Expanded kW'!$F$2:$F$8785,0),0)) -> 26.90591812 | F11: =IF(E11=0,0,$P11/E11/COUNTIF('Expanded kW'!$A$2:$A$8785,'Monthly Data'!$B11)) -> 0.7895763879 | H11: =+'LR Monthly'!G2 -> 32.3163211 | I11: =IF(H11=0,0,$P11/H11/COUNTIF('Expanded kW'!$A$2:$A$8785,'Monthly Data'!$B11)) -> 0.6573853991 | J11: =+'LR Monthly'!H2 -> 32.6935815 | K11: =IF(J11=0,0,$P11/J11/COUNTIF('Expanded kW'!$A$2:$A$8785,'Monthly Data'!$B11)) -> 0.6497996448 | M11: =VLOOKUP('Manual Inputs'!E27,'Expanded kW'!$D$2:$F$8785,3) -> 23.3801403 | N11: =SUMIFS('Expanded kW'!$F$2:$F$8785,'Expanded kW'!$A$2:$A$8785,$B11,'Expanded kW'!$C$2:$C$8785,C$8) -> 6651.477646 | O11: =SUMIFS('Expanded kW'!$F$2:$F$8785,'Expanded kW'!$A$2:$A$8785,$B11,'Expanded kW'!$C$2:$C$8785,E$8) -> 8644.402258 | P11: =SUM(N11:O11) -> 15295.8799
A12: =+'Manual Inputs'!A12 -> 2019 | B12: =+'Manual Inputs'!B12 -> 5 | C12: =MAX(IF('Expanded kW'!$A$2:$A$8785=$B12,IF('Expanded kW'!$C$2:$C$8785=C$8,'Expanded kW'!$F$2:$F$8785,0),0)) -> 28.43444252 | D12: =IF(C12=0,0,$P12/C12/COUNTIF('Expanded kW'!$A$2:$A$8785,'Monthly Data'!$B12)) -> 0.755408384 | E12: =MAX(IF('Expanded kW'!$A$2:$A$8785=$B12,IF('Expanded kW'!$C$2:$C$8785=E$8,'Expanded kW'!$F$2:$F$8785,0),0)) -> 26.60349846 | F12: =IF(E12=0,0,$P12/E12/COUNTIF('Expanded kW'!$A$2:$A$8785,'Monthly Data'!$B12)) -> 0.8073981814 | H12: =+'LR Monthly'!G3 -> 34.38944942 | I12: =IF(H12=0,0,$P12/H12/COUNTIF('Expanded kW'!$A$2:$A$8785,'Monthly Data'!$B12)) -> 0.6245990161 | J12: =+'LR Monthly'!H3 -> 32.14300924 | K12: =IF(J12=0,0,$P12/J12/COUNTIF('Expanded kW'!$A$2:$A$8785,'Monthly Data'!$B12)) -> 0.6682515665 | M12: =VLOOKUP('Manual Inputs'!E28,'Expanded kW'!$D$2:$F$8785,3) -> 22.45731926 | N12: =SUMIFS('Expanded kW'!$F$2:$F$8785,'Expanded kW'!$A$2:$A$8785,$B12,'Expanded kW'!$C$2:$C$8785,C$8) -> 6747.836072 | O12: =SUMIFS('Expanded kW'!$F$2:$F$8785,'Expanded kW'!$A$2:$A$8785,$B12,'Expanded kW'!$C$2:$C$8785,E$8) -> 9232.998436 | P12: =SUM(N12:O12) -> 15980.83451
A13: =+'Manual Inputs'!A13 -> 2019 | B13: =+'Manual Inputs'!B13 -> 6 | C13: =MAX(IF('Expanded kW'!$A$2:$A$8785=$B13,IF('Expanded kW'!$C$2:$C$8785=C$8,'Expanded kW'!$F$2:$F$8785,0),0)) -> 30.46282196 | D13: =IF(C13=0,0,$P13/C13/COUNTIF('Expanded kW'!$A$2:$A$8785,'Monthly Data'!$B13)) -> 0.7577785188 | E13: =MAX(IF('Expanded kW'!$A$2:$A$8785=$B13,IF('Expanded kW'!$C$2:$C$8785=E$8,'Expanded kW'!$F$2:$F$8785,0),0)) -> 29.17296982 | F13: =IF(E13=0,0,$P13/E13/COUNTIF('Expanded kW'!$A$2:$A$8785,'Monthly Data'!$B13)) -> 0.7912828981 | H13: =+'LR Monthly'!G4 -> 34.56565316 | I13: =IF(H13=0,0,$P13/H13/COUNTIF('Expanded kW'!$A$2:$A$8785,'Monthly Data'!$B13)) -> 0.6678326602 | J13: =+'LR Monthly'!H4 -> 36.06109435 | K13: =IF(J13=0,0,$P13/J13/COUNTIF('Expanded kW'!$A$2:$A$8785,'Monthly Data'!$B13)) -> 0.6401378694 | M13: =VLOOKUP('Manual Inputs'!E29,'Expanded kW'!$D$2:$F$8785,3) -> 27.0059185 | N13: =SUMIFS('Expanded kW'!$F$2:$F$8785,'Expanded kW'!$A$2:$A$8785,$B13,'Expanded kW'!$C$2:$C$8785,C$8) -> 6365.302217 | O13: =SUMIFS('Expanded kW'!$F$2:$F$8785,'Expanded kW'!$A$2:$A$8785,$B13,'Expanded kW'!$C$2:$C$8785,E$8) -> 10255.2297 | P13: 16620.53191
A14: =+'Manual Inputs'!A14 -> 2019 | B14: =+'Manual Inputs'!B14 -> 7 | C14: =MAX(IF('Expanded kW'!$A$2:$A$8785=$B14,IF('Expanded kW'!$C$2:$C$8785=C$8,'Expanded kW'!$F$2:$F$8785,0),0)) -> 28.75888062 | D14: =IF(C14=0,0,$P14/C14/COUNTIF('Expanded kW'!$A$2:$A$8785,'Monthly Data'!$B14)) -> 0.8174349433 | E14: =MAX(IF('Expanded kW'!$A$2:$A$8785=$B14,IF('Expanded kW'!$C$2:$C$8785=E$8,'Expanded kW'!$F$2:$F$8785,0),0)) -> 31.57970428 | F14: =IF(E14=0,0,$P14/E14/COUNTIF('Expanded kW'!$A$2:$A$8785,'Monthly Data'!$B14)) -> 0.7444184319 | H14: =+'LR Monthly'!G5 -> 32.58354721 | I14: =IF(H14=0,0,$P14/H14/COUNTIF('Expanded kW'!$A$2:$A$8785,'Monthly Data'!$B14)) -> 0.7214841831 | J14: =+'LR Monthly'!H5 -> 33.06185132 | K14: =IF(J14=0,0,$P14/J14/COUNTIF('Expanded kW'!$A$2:$A$8785,'Monthly Data'!$B14)) -> 0.7110465085 | M14: =VLOOKUP('Manual Inputs'!E30,'Expanded kW'!$D$2:$F$8785,3) -> 23.55368423 | N14: =SUMIFS('Expanded kW'!$F$2:$F$8785,'Expanded kW'!$A$2:$A$8785,$B14,'Expanded kW'!$C$2:$C$8785,C$8) -> 7732.567088 | O14: =SUMIFS('Expanded kW'!$F$2:$F$8785,'Expanded kW'!$A$2:$A$8785,$B14,'Expanded kW'!$C$2:$C$8785,E$8) -> 9757.767286 | P14: 17490.33437
A15: =+'Manual Inputs'!A15 -> 2019 | B15: =+'Manual Inputs'!B15 -> 8 | C15: =MAX(IF('Expanded kW'!$A$2:$A$8785=$B15,IF('Expanded kW'!$C$2:$C$8785=C$8,'Expanded kW'!$F$2:$F$8785,0),0)) -> 29.58827209 | D15: =IF(C15=0,0,$P15/C15/COUNTIF('Expanded kW'!$A$2:$A$8785,'Monthly Data'!$B15)) -> 0.810657233 | E15: =MAX(IF('Expanded kW'!$A$2:$A$8785=$B15,IF('Expanded kW'!$C$2:$C$8785=E$8,'Expanded kW'!$F$2:$F$8785,0),0)) -> 29.92103767 | F15: =IF(E15=0,0,$P15/E15/COUNTIF('Expanded kW'!$A$2:$A$8785,'Monthly Data'!$B15)) -> 0.8016415422 | H15: =+'LR Monthly'!G6 -> 32.3588402 | I15: =IF(H15=0,0,$P15/H15/COUNTIF('Expanded kW'!$A$2:$A$8785,'Monthly Data'!$B15)) -> 0.7412486552 | J15: =+'LR Monthly'!H6 -> 33.28443953 | K15: =IF(J15=0,0,$P15/J15/COUNTIF('Expanded kW'!$A$2:$A$8785,'Monthly Data'!$B15)) -> 0.7206354418 | M15: =VLOOKUP('Manual Inputs'!E31,'Expanded kW'!$D$2:$F$8785,3) -> 24.55967522 | N15: =SUMIFS('Expanded kW'!$F$2:$F$8785,'Expanded kW'!$A$2:$A$8785,$B15,'Expanded kW'!$C$2:$C$8785,C$8) -> 7544.071578 | O15: =SUMIFS('Expanded kW'!$F$2:$F$8785,'Expanded kW'!$A$2:$A$8785,$B15,'Expanded kW'!$C$2:$C$8785,E$8) -> 10301.47283 | P15: 17845.54441
A16: =+'Manual Inputs'!A16 -> 2019 | B16: =+'Manual Inputs'!B16 -> 9 | C16: =MAX(IF('Expanded kW'!$A$2:$A$8785=$B16,IF('Expanded kW'!$C$2:$C$8785=C$8,'Expanded kW'!$F$2:$F$8785,0),0)) -> 29.01631355 | D16: =IF(C16=0,0,$P16/C16/COUNTIF('Expanded kW'!$A$2:$A$8785,'Monthly Data'!$B16)) -> 0.825386141 | E16: =MAX(IF('Expanded kW'!$A$2:$A$8785=$B16,IF('Expanded kW'!$C$2:$C$8785=E$8,'Expanded kW'!$F$2:$F$8785,0),0)) -> 28.76418304 | F16: =IF(E16=0,0,$P16/E16/COUNTIF('Expanded kW'!$A$2:$A$8785,'Monthly Data'!$B16)) -> 0.8326210076 | H16: =+'LR Monthly'!G7 -> 31.53545852 | I16: =IF(H16=0,0,$P16/H16/COUNTIF('Expanded kW'!$A$2:$A$8785,'Monthly Data'!$B16)) -> 0.759451874 | J16: =+'LR Monthly'!H7 -> 30.94680518 | K16: =IF(J16=0,0,$P16/J16/COUNTIF('Expanded kW'!$A$2:$A$8785,'Monthly Data'!$B16)) -> 0.7738977556 | M16: =VLOOKUP('Manual Inputs'!E32,'Expanded kW'!$D$2:$F$8785,3) -> 25.31612587 | N16: =SUMIFS('Expanded kW'!$F$2:$F$8785,'Expanded kW'!$A$2:$A$8785,$B16,'Expanded kW'!$C$2:$C$8785,C$8) -> 7293.413923 | O16: =SUMIFS('Expanded kW'!$F$2:$F$8785,'Expanded kW'!$A$2:$A$8785,$B16,'Expanded kW'!$C$2:$C$8785,E$8) -> 9950.343487 | P16: 17243.75741
A17: =+'Manual Inputs'!A17 -> 2019 | B17: =+'Manual Inputs'!B17 -> 10 | C17: =MAX(IF('Expanded kW'!$A$2:$A$8785=$B17,IF('Expanded kW'!$C$2:$C$8785=C$8,'Expanded kW'!$F$2:$F$8785,0),0)) -> 29.40956879 | D17: =IF(C17=0,0,$P17/C17/COUNTIF('Expanded kW'!$A$2:$A$8785,'Monthly Data'!$B17)) -> 0.7665910806 | E17: =MAX(IF('Expanded kW'!$A$2:$A$8785=$B17,IF('Expanded kW'!$C$2:$C$8785=E$8,'Expanded kW'!$F$2:$F$8785,0),0)) -> 27.47712708 | F17: =IF(E17=0,0,$P17/E17/COUNTIF('Expanded kW'!$A$2:$A$8785,'Monthly Data'!$B17)) -> 0.820504744 | H17: =+'LR Monthly'!G8 -> 32.11798453 | I17: =IF(H17=0,0,$P17/H17/COUNTIF('Expanded kW'!$A$2:$A$8785,'Monthly Data'!$B17)) -> 0.7019466959 | J17: =+'LR Monthly'!H8 -> 32.09370426 | K17: =IF(J17=0,0,$P17/J17/COUNTIF('Expanded kW'!$A$2:$A$8785,'Monthly Data'!$B17)) -> 0.7024777488 | M17: =VLOOKUP('Manual Inputs'!E33,'Expanded kW'!$D$2:$F$8785,3) -> 24.19506454 | N17: =SUMIFS('Expanded kW'!$F$2:$F$8785,'Expanded kW'!$A$2:$A$8785,$B17,'Expanded kW'!$C$2:$C$8785,C$8) -> 7458.809198 | O17: =SUMIFS('Expanded kW'!$F$2:$F$8785,'Expanded kW'!$A$2:$A$8785,$B17,'Expanded kW'!$C$2:$C$8785,E$8) -> 9314.754961 | P17: 16773.56416
A18: =+'Manual Inputs'!A18 -> 2019 | B18: =+'Manual Inputs'!B18 -> 11 | C18: =MAX(IF('Expanded kW'!$A$2:$A$8785=$B18,IF('Expanded kW'!$C$2:$C$8785=C$8,'Expanded kW'!$F$2:$F$8785,0),0)) -> 29.63161469 | D18: =IF(C18=0,0,$P18/C18/COUNTIF('Expanded kW'!$A$2:$A$8785,'Monthly Data'!$B18)) -> 0.8090813693 | E18: =MAX(IF('Expanded kW'!$A$2:$A$8785=$B18,IF('Expanded kW'!$C$2:$C$8785=E$8,'Expanded kW'!$F$2:$F$8785,0),0)) -> 29.77942276 | F18: =IF(E18=0,0,$P18/E18/COUNTIF('Expanded kW'!$A$2:$A$8785,'Monthly Data'!$B18)) -> 0.8050655507 | H18: =+'LR Monthly'!G9 -> 33.09632472 | I18: =IF(H18=0,0,$P18/H18/COUNTIF('Expanded kW'!$A$2:$A$8785,'Monthly Data'!$B18)) -> 0.724382166 | J18: =+'LR Monthly'!H9 -> 33.12343959 | K18: =IF(J18=0,0,$P18/J18/COUNTIF('Expanded kW'!$A$2:$A$8785,'Monthly Data'!$B18)) -> 0.7237891861 | M18: =VLOOKUP('Manual Inputs'!E34,'Expanded kW'!$D$2:$F$8785,3) -> 27.82188034 | N18: =SUMIFS('Expanded kW'!$F$2:$F$8785,'Expanded kW'!$A$2:$A$8785,$B18,'Expanded kW'!$C$2:$C$8785,C$8) -> 7202.853369 | O18: =SUMIFS('Expanded kW'!$F$2:$F$8785,'Expanded kW'!$A$2:$A$8785,$B18,'Expanded kW'!$C$2:$C$8785,E$8) -> 10058.70555 | P18: 17261.55892
A19: =+'Manual Inputs'!A19 -> 2019 | B19: =+'Manual Inputs'!B19 -> 12 | C19: =MAX(IF('Expanded kW'!$A$2:$A$8785=$B19,IF('Expanded kW'!$C$2:$C$8785=C$8,'Expanded kW'!$F$2:$F$8785,0),0)) -> 32.02748489 | D19: =IF(C19=0,0,$P19/C19/COUNTIF('Expanded kW'!$A$2:$A$8785,'Monthly Data'!$B19)) -> 0.7847506562 | E19: =MAX(IF('Expanded kW'!$A$2:$A$8785=$B19,IF('Expanded kW'!$C$2:$C$8785=E$8,'Expanded kW'!$F$2:$F$8785,0),0)) -> 30.01965332 | F19: =IF(E19=0,0,$P19/E19/COUNTIF('Expanded kW'!$A$2:$A$8785,'Monthly Data'!$B19)) -> 0.8372378427 | H19: =+'LR Monthly'!G10 -> 35.09343404 | I19: =IF(H19=0,0,$P19/H19/COUNTIF('Expanded kW'!$A$2:$A$8785,'Monthly Data'!$B19)) -> 0.7161906629 | J19: =+'LR Monthly'!H10 -> 35.02740774 | K19: =IF(J19=0,0,$P19/J19/COUNTIF('Expanded kW'!$A$2:$A$8785,'Monthly Data'!$B19)) -> 0.7175406747 | M19: =VLOOKUP('Manual Inputs'!E35,'Expanded kW'!$D$2:$F$8785,3) -> 28.83740997 | N19: =SUMIFS('Expanded kW'!$F$2:$F$8785,'Expanded kW'!$A$2:$A$8785,$B19,'Expanded kW'!$C$2:$C$8785,C$8) -> 7926.582266 | O19: =SUMIFS('Expanded kW'!$F$2:$F$8785,'Expanded kW'!$A$2:$A$8785,$B19,'Expanded kW'!$C$2:$C$8785,E$8) -> 10772.80853 | P19: 18699.3908
A20: =+'Manual Inputs'!A20 -> 2020 | B20: =+'Manual Inputs'!B20 -> 1 | C20: =MAX(IF('Expanded kW'!$A$2:$A$8785=$B20,IF('Expanded kW'!$C$2:$C$8785=C$8,'Expanded kW'!$F$2:$F$8785,0),0)) -> 29.18346024 | D20: =IF(C20=0,0,$P20/C20/COUNTIF('Expanded kW'!$A$2:$A$8785,'Monthly Data'!$B20)) -> 0.786072763 | E20: =MAX(IF('Expanded kW'!$A$2:$A$8785=$B20,IF('Expanded kW'!$C$2:$C$8785=E$8,'Expanded kW'!$F$2:$F$8785,0),0)) -> 29.62392044 | F20: =IF(E20=0,0,$P20/E20/COUNTIF('Expanded kW'!$A$2:$A$8785,'Monthly Data'!$B20)) -> 0.7743851212 | H20: =+'LR Monthly'!G11 -> 33.53399946 | I20: =IF(H20=0,0,$P20/H20/COUNTIF('Expanded kW'!$A$2:$A$8785,'Monthly Data'!$B20)) -> 0.6840914771 | J20: =+'LR Monthly'!H11 -> 34.51706399 | K20: =IF(J20=0,0,$P20/J20/COUNTIF('Expanded kW'!$A$2:$A$8785,'Monthly Data'!$B20)) -> 0.6646081841 | M20: =VLOOKUP('Manual Inputs'!E36,'Expanded kW'!$D$2:$F$8785,3) -> 25.55612564 | N20: =SUMIFS('Expanded kW'!$F$2:$F$8785,'Expanded kW'!$A$2:$A$8785,$B20,'Expanded kW'!$C$2:$C$8785,C$8) -> 7602.48456 | O20: =SUMIFS('Expanded kW'!$F$2:$F$8785,'Expanded kW'!$A$2:$A$8785,$B20,'Expanded kW'!$C$2:$C$8785,E$8) -> 9465.115916 | P20: 17067.60048
A21: =+'Manual Inputs'!A21 -> 2020 | B21: =+'Manual Inputs'!B21 -> 2 | C21: =MAX(IF('Expanded kW'!$A$2:$A$8785=$B21,IF('Expanded kW'!$C$2:$C$8785=C$8,'Expanded kW'!$F$2:$F$8785,0),0)) -> 31.68471909 | D21: =IF(C21=0,0,$P21/C21/COUNTIF('Expanded kW'!$A$2:$A$8785,'Monthly Data'!$B21)) -> 0.7974947658 | E21: =MAX(IF('Expanded kW'!$A$2:$A$8785=$B21,IF('Expanded kW'!$C$2:$C$8785=E$8,'Expanded kW'!$F$2:$F$8785,0),0)) -> 30.70025635 | F21: =IF(E21=0,0,$P21/E21/COUNTIF('Expanded kW'!$A$2:$A$8785,'Monthly Data'!$B21)) -> 0.8230679686 | H21: =+'LR Monthly'!G12 -> 35.43484668 | I21: =IF(H21=0,0,$P21/H21/COUNTIF('Expanded kW'!$A$2:$A$8785,'Monthly Data'!$B21)) -> 0.7130945947 | J21: =+'LR Monthly'!H12 -> 35.46528291 | K21: =IF(J21=0,0,$P21/J21/COUNTIF('Expanded kW'!$A$2:$A$8785,'Monthly Data'!$B21)) -> 0.7124826183 | M21: =VLOOKUP('Manual Inputs'!E37,'Expanded kW'!$D$2:$F$8785,3) -> 29.74449539 | N21: =SUMIFS('Expanded kW'!$F$2:$F$8785,'Expanded kW'!$A$2:$A$8785,$B21,'Expanded kW'!$C$2:$C$8785,C$8) -> 7237.060371 | O21: =SUMIFS('Expanded kW'!$F$2:$F$8785,'Expanded kW'!$A$2:$A$8785,$B21,'Expanded kW'!$C$2:$C$8785,E$8) -> 10349.74438 | P21: 17586.80475
A22: =+'Manual Inputs'!A22 -> 2020 | B22: =+'Manual Inputs'!B22 -> 3 | C22: =MAX(IF('Expanded kW'!$A$2:$A$8785=$B22,IF('Expanded kW'!$C$2:$C$8785=C$8,'Expanded kW'!$F$2:$F$8785,0),0)) -> 28.22712326 | D22: =IF(C22=0,0,$P22/C22/COUNTIF('Expanded kW'!$A$2:$A$8785,'Monthly Data'!$B22)) -> 0.8082716076 | E22: =MAX(IF('Expanded kW'!$A$2:$A$8785=$B22,IF('Expanded kW'!$C$2:$C$8785=E$8,'Expanded kW'!$F$2:$F$8785,0),0)) -> 29.17663002 | F22: =IF(E22=0,0,$P22/E22/COUNTIF('Expanded kW'!$A$2:$A$8785,'Monthly Data'!$B22)) -> 0.7819677009 | H22: =+'LR Monthly'!G13 -> 31.97141531 | I22: =IF(H22=0,0,$P22/H22/COUNTIF('Expanded kW'!$A$2:$A$8785,'Monthly Data'!$B22)) -> 0.7136118959 | J22: =+'LR Monthly'!H13 -> 32.86483183 | K22: =IF(J22=0,0,$P22/J22/COUNTIF('Expanded kW'!$A$2:$A$8785,'Monthly Data'!$B22)) -> 0.6942126591 | M22: =VLOOKUP('Manual Inputs'!E38,'Expanded kW'!$D$2:$F$8785,3) -> 26.88223076 | N22: =SUMIFS('Expanded kW'!$F$2:$F$8785,'Expanded kW'!$A$2:$A$8785,$B22,'Expanded kW'!$C$2:$C$8785,C$8) -> 7158.930177 | O22: =SUMIFS('Expanded kW'!$F$2:$F$8785,'Expanded kW'!$A$2:$A$8785,$B22,'Expanded kW'!$C$2:$C$8785,E$8) -> 9815.565452 | P22: 16974.49563
A24: NOTE: The data above is not expanded but instead is the output from Load Research data.

Sheet Summary
A1: ='Manual Inputs'!D1 -> Kentucky Power Co.
A2: =+'Manual Inputs'!D2 -> Kentucky
A3: Annual Summary of Sample Data
A4: =CustClass & " Customers" -> Municipal Waterworks Customers
A5: =+'Monthly Data'!A5 -> For the Test Year Ended March 31, 2020
A6: =+'Monthly Data'!A6 -> Based on Sample Period Ended March 31, 2020
A8: On-Peak SNCP | B8: =+'Manual Inputs'!H11 -> 39.28787899
A9: Off-Peak SNCP | B9: =+'Manual Inputs'!I11 -> 40.34701979
A10: Total SNCP | B10: =+'Manual Inputs'!G11 -> 40.90237366
A12: On-Peak Energy | B12: =SUMIF('Expanded kW'!C2:C8785,"ON",'Expanded kW'!F2:F8785) -> 86921.38846 | C12: =+B12/$B$14 -> 0.4243373478 | E12: Off-Peak SNCP LF | F12: =+B$14/B8/(TYDays*24) -> 0.5935598095
A13: Off-Peak Energy | B13: =SUMIF('Expanded kW'!C2:C8785,"OFF",'Expanded kW'!F2:F8785) -> 117918.9088 | C13: =+B13/$B$14 -> 0.5756626522 | E13: On-Peak SNCP LF | F13: =+B$14/B9/(TYDays*24) -> 0.5779784006
A14: Total Energy | B14: =SUM('Expanded kW'!F2:F8785) -> 204840.2972 | E14: Total SNCP LF | F14: =+B$14/B10/(TYDays*24) -> 0.5701308722
A16: NOTE: The data above is not expanded but instead is the output from Load Research data.

Sheet Peaks
A1: ='Manual Inputs'!D1 -> Kentucky Power Co.
A2: =+'Manual Inputs'!D2 -> Kentucky
A3: Peak and Off-Peak Statistics (kW)
A4: =CustClass & " Customers" -> Municipal Waterworks Customers
A5: =+'Monthly Data'!A5 -> For the Test Year Ended March 31, 2020
A6: =+'Monthly Data'!A6 -> Based on Sample Period Ended March 31, 2020
A9: Year | B9: Month | C9: Total Sample | D9: Total Expanded | F9: Customers | G9: Coincident Peak | H9: NCP Peak | I9: NCP Off-Peak | J9: NCP Total | K9: SNCP Peak | L9: SNCP Off-Peak | M9: SNCP Total
A10: =+'Manual Inputs'!A11 -> 2019 | B10: =+'Manual Inputs'!B11 -> 4 | C10: =SUMIF('Expanded kW'!$A$2:$A$8785,B10,'Expanded kW'!$F$2:$F$8785) -> 15295.8799 | D10: =SUMIF('Expanded kW'!$A$2:$A$8785,B10,'Expanded kW'!$H$2:$H$8785) -> 135718 | F10: =+'Manual Inputs'!D11 -> 9 | G10: =ROUND(VLOOKUP('Manual Inputs'!E27,'Expanded kW'!$D$2:$H$8785,5),0) -> 207 | H10: =IF(C10=0,0,ROUND(+$D10/C10*'Monthly Data'!C11,0)) -> 251 | I10: =IF(C10=0,0,ROUND(+$D10/C10*'Monthly Data'!E11,0)) -> 239 | J10: =MAX(H10:I10) -> 251 | K10: =IF($C10=0,0,+$D10/$C10*'LR Monthly'!G2) -> 286.7377683 | L10: =IF($C10=0,0,+$D10/$C10*'LR Monthly'!H2) -> 290.085142 | M10: =IF($C10=0,0,+$D10/$C10*'LR Monthly'!F2) -> 298.2594814
A11: =+'Manual Inputs'!A12 -> 2019 | B11: =+'Manual Inputs'!B12 -> 5 | C11: =SUMIF('Expanded kW'!$A$2:$A$8785,B11,'Expanded kW'!$F$2:$F$8785) -> 15980.83451 | D11: =SUMIF('Expanded kW'!$A$2:$A$8785,B11,'Expanded kW'!$H$2:$H$8785) -> 140566 | F11: =+'Manual Inputs'!D12 -> 9 | G11: =ROUND(VLOOKUP('Manual Inputs'!E28,'Expanded kW'!$D$2:$H$8785,5),0) -> 198 | H11: =IF(C11=0,0,ROUND(+$D11/C11*'Monthly Data'!C12,0)) -> 250 | I11: =IF(C11=0,0,ROUND(+$D11/C11*'Monthly Data'!E12,0)) -> 234 | J11: =MAX(H11:I11) -> 250 | K11: =IF($C11=0,0,+$D11/$C11*'LR Monthly'!G3) -> 302.4865407 | L11: =IF($C11=0,0,+$D11/$C11*'LR Monthly'!H3) -> 282.7270525 | M11: =IF($C11=0,0,+$D11/$C11*'LR Monthly'!F3) -> 304.3421566
A12: =+'Manual Inputs'!A13 -> 2019 | B12: =+'Manual Inputs'!B13 -> 6 | C12: =SUMIF('Expanded kW'!$A$2:$A$8785,B12,'Expanded kW'!$F$2:$F$8785) -> 16620.53191 | D12: =SUMIF('Expanded kW'!$A$2:$A$8785,B12,'Expanded kW'!$H$2:$H$8785) -> 145779 | F12: =+'Manual Inputs'!D13 -> 9 | G12: =ROUND(VLOOKUP('Manual Inputs'!E29,'Expanded kW'!$D$2:$H$8785,5),0) -> 237 | H12: =IF(C12=0,0,ROUND(+$D12/C12*'Monthly Data'!C13,0)) -> 267 | I12: =IF(C12=0,0,ROUND(+$D12/C12*'Monthly Data'!E13,0)) -> 256 | J12: 267 | K12: =IF($C12=0,0,+$D12/$C12*'LR Monthly'!G4) -> 303.1759981 | L12: =IF($C12=0,0,+$D12/$C12*'LR Monthly'!H4) -> 316.2925411 | M12: =IF($C12=0,0,+$D12/$C12*'LR Monthly'!F4) -> 320.995802
A13: =+'Manual Inputs'!A14 -> 2019 | B13: =+'Manual Inputs'!B14 -> 7 | C13: =SUMIF('Expanded kW'!$A$2:$A$8785,B13,'Expanded kW'!$F$2:$F$8785) -> 17490.33437 | D13: =SUMIF('Expanded kW'!$A$2:$A$8785,B13,'Expanded kW'!$H$2:$H$8785) -> 149253 | F13: =+'Manual Inputs'!D14 -> 9 | G13: =ROUND(VLOOKUP('Manual Inputs'!E30,'Expanded kW'!$D$2:$H$8785,5),0) -> 201 | H13: =IF(C13=0,0,ROUND(+$D13/C13*'Monthly Data'!C14,0)) -> 245 | I13: =IF(C13=0,0,ROUND(+$D13/C13*'Monthly Data'!E14,0)) -> 269 | J13: 269 | K13: =IF($C13=0,0,+$D13/$C13*'LR Monthly'!G5) -> 278.0502687 | L13: =IF($C13=0,0,+$D13/$C13*'LR Monthly'!H5) -> 282.1318557 | M13: =IF($C13=0,0,+$D13/$C13*'LR Monthly'!F5) -> 285.9160892
A14: =+'Manual Inputs'!A15 -> 2019 | B14: =+'Manual Inputs'!B15 -> 8 | C14: =SUMIF('Expanded kW'!$A$2:$A$8785,B14,'Expanded kW'!$F$2:$F$8785) -> 17845.54441 | D14: =SUMIF('Expanded kW'!$A$2:$A$8785,B14,'Expanded kW'!$H$2:$H$8785) -> 151953 | F14: =+'Manual Inputs'!D15 -> 9 | G14: =ROUND(VLOOKUP('Manual Inputs'!E31,'Expanded kW'!$D$2:$H$8785,5),0) -> 209 | H14: =IF(C14=0,0,ROUND(+$D14/C14*'Monthly Data'!C15,0)) -> 252 | I14: =IF(C14=0,0,ROUND(+$D14/C14*'Monthly Data'!E15,0)) -> 255 | J14: 255 | K14: =IF($C14=0,0,+$D14/$C14*'LR Monthly'!G6) -> 275.5322412 | L14: =IF($C14=0,0,+$D14/$C14*'LR Monthly'!H6) -> 283.4136255 | M14: =IF($C14=0,0,+$D14/$C14*'LR Monthly'!F6) -> 284.3527505
A15: =+'Manual Inputs'!A16 -> 2019 | B15: =+'Manual Inputs'!B16 -> 9 | C15: =SUMIF('Expanded kW'!$A$2:$A$8785,B15,'Expanded kW'!$F$2:$F$8785) -> 17243.75741 | D15: =SUMIF('Expanded kW'!$A$2:$A$8785,B15,'Expanded kW'!$H$2:$H$8785) -> 157446 | F15: =+'Manual Inputs'!D16 -> 9 | G15: =ROUND(VLOOKUP('Manual Inputs'!E32,'Expanded kW'!$D$2:$H$8785,5),0) -> 231 | H15: =IF(C15=0,0,ROUND(+$D15/C15*'Monthly Data'!C16,0)) -> 265 | I15: =IF(C15=0,0,ROUND(+$D15/C15*'Monthly Data'!E16,0)) -> 263 | J15: 265 | K15: =IF($C15=0,0,+$D15/$C15*'LR Monthly'!G7) -> 287.9379293 | L15: =IF($C15=0,0,+$D15/$C15*'LR Monthly'!H7) -> 282.563166 | M15: =IF($C15=0,0,+$D15/$C15*'LR Monthly'!F7) -> 289.6999753
A16: =+'Manual Inputs'!A17 -> 2019 | B16: =+'Manual Inputs'!B17 -> 10 | C16: =SUMIF('Expanded kW'!$A$2:$A$8785,B16,'Expanded kW'!$F$2:$F$8785) -> 16773.56416 | D16: =SUMIF('Expanded kW'!$A$2:$A$8785,B16,'Expanded kW'!$H$2:$H$8785) -> 144711 | F16: =+'Manual Inputs'!D17 -> 9 | G16: =ROUND(VLOOKUP('Manual Inputs'!E33,'Expanded kW'!$D$2:$H$8785,5),0) -> 209 | H16: =IF(C16=0,0,ROUND(+$D16/C16*'Monthly Data'!C17,0)) -> 254 | I16: =IF(C16=0,0,ROUND(+$D16/C16*'Monthly Data'!E17,0)) -> 237 | J16: 254 | K16: =IF($C16=0,0,+$D16/$C16*'LR Monthly'!G8) -> 277.0923111 | L16: =IF($C16=0,0,+$D16/$C16*'LR Monthly'!H8) -> 276.8828373 | M16: =IF($C16=0,0,+$D16/$C16*'LR Monthly'!F8) -> 283.8695784
A17: =+'Manual Inputs'!A18 -> 2019 | B17: =+'Manual Inputs'!B18 -> 11 | C17: =SUMIF('Expanded kW'!$A$2:$A$8785,B17,'Expanded kW'!$F$2:$F$8785) -> 17261.55892 | D17: =SUMIF('Expanded kW'!$A$2:$A$8785,B17,'Expanded kW'!$H$2:$H$8785) -> 136456 | F17: =+'Manual Inputs'!D18 -> 9 | G17: =ROUND(VLOOKUP('Manual Inputs'!E34,'Expanded kW'!$D$2:$H$8785,5),0) -> 220 | H17: =IF(C17=0,0,ROUND(+$D17/C17*'Monthly Data'!C18,0)) -> 234 | I17: =IF(C17=0,0,ROUND(+$D17/C17*'Monthly Data'!E18,0)) -> 235 | J17: 235 | K17: =IF($C17=0,0,+$D17/$C17*'LR Monthly'!G9) -> 261.6329213 | L17: =IF($C17=0,0,+$D17/$C17*'LR Monthly'!H9) -> 261.8472697 | M17: =IF($C17=0,0,+$D17/$C17*'LR Monthly'!F9) -> 265.8264088
A18: =+'Manual Inputs'!A19 -> 2019 | B18: =+'Manual Inputs'!B19 -> 12 | C18: =SUMIF('Expanded kW'!$A$2:$A$8785,B18,'Expanded kW'!$F$2:$F$8785) -> 18699.3908 | D18: =SUMIF('Expanded kW'!$A$2:$A$8785,B18,'Expanded kW'!$H$2:$H$8785) -> 170968 | F18: =+'Manual Inputs'!D19 -> 9 | G18: =ROUND(VLOOKUP('Manual Inputs'!E35,'Expanded kW'!$D$2:$H$8785,5),0) -> 264 | H18: =IF(C18=0,0,ROUND(+$D18/C18*'Monthly Data'!C19,0)) -> 293 | I18: =IF(C18=0,0,ROUND(+$D18/C18*'Monthly Data'!E19,0)) -> 274 | J18: 293 | K18: =IF($C18=0,0,+$D18/$C18*'LR Monthly'!G10) -> 320.8582726 | L18: =IF($C18=0,0,+$D18/$C18*'LR Monthly'!H10) -> 320.254596 | M18: =IF($C18=0,0,+$D18/$C18*'LR Monthly'!F10) -> 325.2808708
A19: =+'Manual Inputs'!A20 -> 2020 | B19: =+'Manual Inputs'!B20 -> 1 | C19: =SUMIF('Expanded kW'!$A$2:$A$8785,B19,'Expanded kW'!$F$2:$F$8785) -> 17067.60048 | D19: =SUMIF('Expanded kW'!$A$2:$A$8785,B19,'Expanded kW'!$H$2:$H$8785) -> 183678 | F19: =+'Manual Inputs'!D20 -> 9 | G19: =ROUND(VLOOKUP('Manual Inputs'!E36,'Expanded kW'!$D$2:$H$8785,5),0) -> 275 | H19: =IF(C19=0,0,ROUND(+$D19/C19*'Monthly Data'!C20,0)) -> 314 | I19: =IF(C19=0,0,ROUND(+$D19/C19*'Monthly Data'!E20,0)) -> 319 | J19: 319 | K19: =IF($C19=0,0,+$D19/$C19*'LR Monthly'!G11) -> 360.8859934 | L19: =IF($C19=0,0,+$D19/$C19*'LR Monthly'!H11) -> 371.4655314 | M19: =IF($C19=0,0,+$D19/$C19*'LR Monthly'!F11) -> 371.4655314
A20: =+'Manual Inputs'!A21 -> 2020 | B20: =+'Manual Inputs'!B21 -> 2 | C20: =SUMIF('Expanded kW'!$A$2:$A$8785,B20,'Expanded kW'!$F$2:$F$8785) -> 17586.80475 | D20: =SUMIF('Expanded kW'!$A$2:$A$8785,B20,'Expanded kW'!$H$2:$H$8785) -> 154351 | F20: =+'Manual Inputs'!D21 -> 9 | G20: =ROUND(VLOOKUP('Manual Inputs'!E37,'Expanded kW'!$D$2:$H$8785,5),0) -> 261 | H20: =IF(C20=0,0,ROUND(+$D20/C20*'Monthly Data'!C21,0)) -> 278 | I20: =IF(C20=0,0,ROUND(+$D20/C20*'Monthly Data'!E21,0)) -> 269 | J20: 278 | K20: =IF($C20=0,0,+$D20/$C20*'LR Monthly'!G12) -> 310.9947542 | L20: =IF($C20=0,0,+$D20/$C20*'LR Monthly'!H12) -> 311.2618785 | M20: =IF($C20=0,0,+$D20/$C20*'LR Monthly'!F12) -> 314.0512291
A21: =+'Manual Inputs'!A22 -> 2020 | B21: =+'Manual Inputs'!B22 -> 3 | C21: =SUMIF('Expanded kW'!$A$2:$A$8785,B21,'Expanded kW'!$F$2:$F$8785) -> 16974.49563 | D21: =SUMIF('Expanded kW'!$A$2:$A$8785,B21,'Expanded kW'!$H$2:$H$8785) -> 161943 | F21: =+'Manual Inputs'!D22 -> 9 | G21: =ROUND(VLOOKUP('Manual Inputs'!E38,'Expanded kW'!$D$2:$H$8785,5),0) -> 256 | H21: =IF(C21=0,0,ROUND(+$D21/C21*'Monthly Data'!C22,0)) -> 269 | I21: =IF(C21=0,0,ROUND(+$D21/C21*'Monthly Data'!E22,0)) -> 278 | J21: 278 | K21: =IF($C21=0,0,+$D21/$C21*'LR Monthly'!G13) -> 305.0191902 | L21: =IF($C21=0,0,+$D21/$C21*'LR Monthly'!H13) -> 313.5427159 | M21: =IF($C21=0,0,+$D21/$C21*'LR Monthly'!F13) -> 315.982887
A23: Total | C23: =SUM(C10:C21) -> 204840.2972 | D23: =SUM(D10:D21) -> 1832822 | F23: =SUM(F10:F21) -> 108 | G23: 2768 | H23: 3172 | I23: 3128 | J23: 3214 | K23: 3570.404189 | L23: 3592.468212 | M23: 3660.04276
A24: Average | C24: =+C23/12 -> 17070.02477 | D24: =+D23/12 -> 152735.1667 | F24: =+F23/12 -> 9 | G24: 230.6666667 | H24: 264.3333333 | I24: 260.6666667 | J24: 267.8333333 | K24: 297.5336824 | L24: 299.372351 | M24: 305.0035634
A25: Maximum | C25: =MAX(C10:C21) -> 18699.3908 | D25: =MAX(D10:D21) -> 183678 | G25: =MAX(G10:G21) -> 275 | H25: 314 | I25: 319 | J25: 319 | K25: 360.8859934 | L25: 371.4655314 | M25: 371.4655314
A27: Annual SNCP | K27: =MAX(+Summary!B8*Peaks!D23/Peaks!C23,K25) -> 360.8859934 | L27: =MAX(+Summary!B9*Peaks!D23/Peaks!C23,L25) -> 371.4655314 | M27: =MAX(+Summary!B10*Peaks!D23/Peaks!C23,M25) -> 371.4655314

Sheet Load Factors
A1: ='Manual Inputs'!D1 -> Kentucky Power Co.
A2: =+'Manual Inputs'!D2 -> Kentucky
A3: Load Factor Report
A4: =CustClass & " Customers" -> Municipal Waterworks Customers
A5: =+'Monthly Data'!A5 -> For the Test Year Ended March 31, 2020
A6: =+'Monthly Data'!A6 -> Based on Sample Period Ended March 31, 2020
D8: NCP | H8: SNCP
A9: Year | B9: Month | C9: Coincidence Ratio | D9: Peak LF | E9: Off-Peak LF | F9: Total LF | H9: Peak LF | I9: Off-Peak LF | J9: Total LF
A10: =+'Manual Inputs'!A11 -> 2019 | B10: =+'Manual Inputs'!B11 -> 4 | C10: =IF(Peaks!J10=0,0,+Peaks!G10/Peaks!J10) -> 0.8247011952 | D10: =IF(Peaks!H10=0,0,Peaks!$D10/Peaks!H10/COUNTIF('Expanded kW'!$A$2:$A$8785,'Load Factors'!$B10)) -> 0.7509849491 | E10: =IF(Peaks!I10=0,0,Peaks!$D10/Peaks!I10/COUNTIF('Expanded kW'!$A$2:$A$8785,'Load Factors'!$B10)) -> 0.7886913064 | F10: =IF(Peaks!J10=0,0,Peaks!$D10/Peaks!J10/COUNTIF('Expanded kW'!$A$2:$A$8785,'Load Factors'!$B10)) -> 0.7509849491 | H10: =IF(Peaks!K10=0,0,Peaks!$D10/Peaks!K10/COUNTIF('Expanded kW'!$A$2:$A$8785,'Load Factors'!$B10)) -> 0.6573853991 | I10: =IF(Peaks!L10=0,0,Peaks!$D10/Peaks!L10/COUNTIF('Expanded kW'!$A$2:$A$8785,'Load Factors'!$B10)) -> 0.6497996448 | J10: =IF(Peaks!M10=0,0,Peaks!$D10/Peaks!M10/COUNTIF('Expanded kW'!$A$2:$A$8785,'Load Factors'!$B10)) -> 0.6319907128
A11: =+'Manual Inputs'!A12 -> 2019 | B11: =+'Manual Inputs'!B12 -> 5 | C11: =IF(Peaks!J11=0,0,+Peaks!G11/Peaks!J11) -> 0.792 | D11: =IF(Peaks!H11=0,0,Peaks!$D11/Peaks!H11/COUNTIF('Expanded kW'!$A$2:$A$8785,'Load Factors'!$B11)) -> 0.7557311828 | E11: =IF(Peaks!I11=0,0,Peaks!$D11/Peaks!I11/COUNTIF('Expanded kW'!$A$2:$A$8785,'Load Factors'!$B11)) -> 0.8074051098 | F11: =IF(Peaks!J11=0,0,Peaks!$D11/Peaks!J11/COUNTIF('Expanded kW'!$A$2:$A$8785,'Load Factors'!$B11)) -> 0.7557311828 | H11: =IF(Peaks!K11=0,0,Peaks!$D11/Peaks!K11/COUNTIF('Expanded kW'!$A$2:$A$8785,'Load Factors'!$B11)) -> 0.6245990161 | I11: =IF(Peaks!L11=0,0,Peaks!$D11/Peaks!L11/COUNTIF('Expanded kW'!$A$2:$A$8785,'Load Factors'!$B11)) -> 0.6682515665 | J11: =IF(Peaks!M11=0,0,Peaks!$D11/Peaks!M11/COUNTIF('Expanded kW'!$A$2:$A$8785,'Load Factors'!$B11)) -> 0.6207907503
A12: =+'Manual Inputs'!A13 -> 2019 | B12: =+'Manual Inputs'!B13 -> 6 | C12: =IF(Peaks!J12=0,0,+Peaks!G12/Peaks!J12) -> 0.8876404494 | D12: =IF(Peaks!H12=0,0,Peaks!$D12/Peaks!H12/COUNTIF('Expanded kW'!$A$2:$A$8785,'Load Factors'!$B12)) -> 0.7583177278 | E12: =IF(Peaks!I12=0,0,Peaks!$D12/Peaks!I12/COUNTIF('Expanded kW'!$A$2:$A$8785,'Load Factors'!$B12)) -> 0.7909016927 | F12: =IF(Peaks!J12=0,0,Peaks!$D12/Peaks!J12/COUNTIF('Expanded kW'!$A$2:$A$8785,'Load Factors'!$B12)) -> 0.7583177278 | H12: =IF(Peaks!K12=0,0,Peaks!$D12/Peaks!K12/COUNTIF('Expanded kW'!$A$2:$A$8785,'Load Factors'!$B12)) -> 0.6678326602 | I12: =IF(Peaks!L12=0,0,Peaks!$D12/Peaks!L12/COUNTIF('Expanded kW'!$A$2:$A$8785,'Load Factors'!$B12)) -> 0.6401378694 | J12: =IF(Peaks!M12=0,0,Peaks!$D12/Peaks!M12/COUNTIF('Expanded kW'!$A$2:$A$8785,'Load Factors'!$B12)) -> 0.6307585086
A13: =+'Manual Inputs'!A14 -> 2019 | B13: =+'Manual Inputs'!B14 -> 7 | C13: =IF(Peaks!J13=0,0,+Peaks!G13/Peaks!J13) -> 0.7472118959 | D13: =IF(Peaks!H13=0,0,Peaks!$D13/Peaks!H13/COUNTIF('Expanded kW'!$A$2:$A$8785,'Load Factors'!$B13)) -> 0.8188117182 | E13: =IF(Peaks!I13=0,0,Peaks!$D13/Peaks!I13/COUNTIF('Expanded kW'!$A$2:$A$8785,'Load Factors'!$B13)) -> 0.7457578846 | F13: =IF(Peaks!J13=0,0,Peaks!$D13/Peaks!J13/COUNTIF('Expanded kW'!$A$2:$A$8785,'Load Factors'!$B13)) -> 0.7457578846 | H13: =IF(Peaks!K13=0,0,Peaks!$D13/Peaks!K13/COUNTIF('Expanded kW'!$A$2:$A$8785,'Load Factors'!$B13)) -> 0.7214841831 | I13: =IF(Peaks!L13=0,0,Peaks!$D13/Peaks!L13/COUNTIF('Expanded kW'!$A$2:$A$8785,'Load Factors'!$B13)) -> 0.7110465085 | J13: =IF(Peaks!M13=0,0,Peaks!$D13/Peaks!M13/COUNTIF('Expanded kW'!$A$2:$A$8785,'Load Factors'!$B13)) -> 0.7016354746
A14: =+'Manual Inputs'!A15 -> 2019 | B14: =+'Manual Inputs'!B15 -> 8 | C14: =IF(Peaks!J14=0,0,+Peaks!G14/Peaks!J14) -> 0.8196078431 | D14: =IF(Peaks!H14=0,0,Peaks!$D14/Peaks!H14/COUNTIF('Expanded kW'!$A$2:$A$8785,'Load Factors'!$B14)) -> 0.8104678699 | E14: =IF(Peaks!I14=0,0,Peaks!$D14/Peaks!I14/COUNTIF('Expanded kW'!$A$2:$A$8785,'Load Factors'!$B14)) -> 0.8009329538 | F14: =IF(Peaks!J14=0,0,Peaks!$D14/Peaks!J14/COUNTIF('Expanded kW'!$A$2:$A$8785,'Load Factors'!$B14)) -> 0.8009329538 | H14: =IF(Peaks!K14=0,0,Peaks!$D14/Peaks!K14/COUNTIF('Expanded kW'!$A$2:$A$8785,'Load Factors'!$B14)) -> 0.7412486552 | I14: =IF(Peaks!L14=0,0,Peaks!$D14/Peaks!L14/COUNTIF('Expanded kW'!$A$2:$A$8785,'Load Factors'!$B14)) -> 0.7206354418 | J14: =IF(Peaks!M14=0,0,Peaks!$D14/Peaks!M14/COUNTIF('Expanded kW'!$A$2:$A$8785,'Load Factors'!$B14)) -> 0.7182554165
A15: =+'Manual Inputs'!A16 -> 2019 | B15: =+'Manual Inputs'!B16 -> 9 | C15: =IF(Peaks!J15=0,0,+Peaks!G15/Peaks!J15) -> 0.8716981132 | D15: =IF(Peaks!H15=0,0,Peaks!$D15/Peaks!H15/COUNTIF('Expanded kW'!$A$2:$A$8785,'Load Factors'!$B15)) -> 0.8251886792 | E15: =IF(Peaks!I15=0,0,Peaks!$D15/Peaks!I15/COUNTIF('Expanded kW'!$A$2:$A$8785,'Load Factors'!$B15)) -> 0.8314638783 | F15: =IF(Peaks!J15=0,0,Peaks!$D15/Peaks!J15/COUNTIF('Expanded kW'!$A$2:$A$8785,'Load Factors'!$B15)) -> 0.8251886792 | H15: =IF(Peaks!K15=0,0,Peaks!$D15/Peaks!K15/COUNTIF('Expanded kW'!$A$2:$A$8785,'Load Factors'!$B15)) -> 0.759451874 | I15: =IF(Peaks!L15=0,0,Peaks!$D15/Peaks!L15/COUNTIF('Expanded kW'!$A$2:$A$8785,'Load Factors'!$B15)) -> 0.7738977556 | J15: =IF(Peaks!M15=0,0,Peaks!$D15/Peaks!M15/COUNTIF('Expanded kW'!$A$2:$A$8785,'Load Factors'!$B15)) -> 0.7548326498
A16: =+'Manual Inputs'!A17 -> 2019 | B16: =+'Manual Inputs'!B17 -> 10 | C16: =IF(Peaks!J16=0,0,+Peaks!G16/Peaks!J16) -> 0.8228346457 | D16: =IF(Peaks!H16=0,0,Peaks!$D16/Peaks!H16/COUNTIF('Expanded kW'!$A$2:$A$8785,'Load Factors'!$B16)) -> 0.7657639065 | E16: =IF(Peaks!I16=0,0,Peaks!$D16/Peaks!I16/COUNTIF('Expanded kW'!$A$2:$A$8785,'Load Factors'!$B16)) -> 0.8206921192 | F16: =IF(Peaks!J16=0,0,Peaks!$D16/Peaks!J16/COUNTIF('Expanded kW'!$A$2:$A$8785,'Load Factors'!$B16)) -> 0.7657639065 | H16: =IF(Peaks!K16=0,0,Peaks!$D16/Peaks!K16/COUNTIF('Expanded kW'!$A$2:$A$8785,'Load Factors'!$B16)) -> 0.7019466959 | I16: =IF(Peaks!L16=0,0,Peaks!$D16/Peaks!L16/COUNTIF('Expanded kW'!$A$2:$A$8785,'Load Factors'!$B16)) -> 0.7024777488 | J16: =IF(Peaks!M16=0,0,Peaks!$D16/Peaks!M16/COUNTIF('Expanded kW'!$A$2:$A$8785,'Load Factors'!$B16)) -> 0.6851880127
A17: =+'Manual Inputs'!A18 -> 2019 | B17: =+'Manual Inputs'!B18 -> 11 | C17: =IF(Peaks!J17=0,0,+Peaks!G17/Peaks!J17) -> 0.9361702128 | D17: =IF(Peaks!H17=0,0,Peaks!$D17/Peaks!H17/COUNTIF('Expanded kW'!$A$2:$A$8785,'Load Factors'!$B17)) -> 0.8099240266 | E17: =IF(Peaks!I17=0,0,Peaks!$D17/Peaks!I17/COUNTIF('Expanded kW'!$A$2:$A$8785,'Load Factors'!$B17)) -> 0.8064775414 | F17: =IF(Peaks!J17=0,0,Peaks!$D17/Peaks!J17/COUNTIF('Expanded kW'!$A$2:$A$8785,'Load Factors'!$B17)) -> 0.8064775414 | H17: =IF(Peaks!K17=0,0,Peaks!$D17/Peaks!K17/COUNTIF('Expanded kW'!$A$2:$A$8785,'Load Factors'!$B17)) -> 0.724382166 | I17: =IF(Peaks!L17=0,0,Peaks!$D17/Peaks!L17/COUNTIF('Expanded kW'!$A$2:$A$8785,'Load Factors'!$B17)) -> 0.7237891861 | J17: =IF(Peaks!M17=0,0,Peaks!$D17/Peaks!M17/COUNTIF('Expanded kW'!$A$2:$A$8785,'Load Factors'!$B17)) -> 0.7129548306
A18: =+'Manual Inputs'!A19 -> 2019 | B18: =+'Manual Inputs'!B19 -> 12 | C18: =IF(Peaks!J18=0,0,+Peaks!G18/Peaks!J18) -> 0.9010238908 | D18: =IF(Peaks!H18=0,0,Peaks!$D18/Peaks!H18/COUNTIF('Expanded kW'!$A$2:$A$8785,'Load Factors'!$B18)) -> 0.7842856619 | E18: =IF(Peaks!I18=0,0,Peaks!$D18/Peaks!I18/COUNTIF('Expanded kW'!$A$2:$A$8785,'Load Factors'!$B18)) -> 0.838670434 | F18: =IF(Peaks!J18=0,0,Peaks!$D18/Peaks!J18/COUNTIF('Expanded kW'!$A$2:$A$8785,'Load Factors'!$B18)) -> 0.7842856619 | H18: =IF(Peaks!K18=0,0,Peaks!$D18/Peaks!K18/COUNTIF('Expanded kW'!$A$2:$A$8785,'Load Factors'!$B18)) -> 0.7161906629 | I18: =IF(Peaks!L18=0,0,Peaks!$D18/Peaks!L18/COUNTIF('Expanded kW'!$A$2:$A$8785,'Load Factors'!$B18)) -> 0.7175406747 | J18: =IF(Peaks!M18=0,0,Peaks!$D18/Peaks!M18/COUNTIF('Expanded kW'!$A$2:$A$8785,'Load Factors'!$B18)) -> 0.7064531595
A19: =+'Manual Inputs'!A20 -> 2020 | B19: =+'Manual Inputs'!B20 -> 1 | C19: =IF(Peaks!J19=0,0,+Peaks!G19/Peaks!J19) -> 0.8620689655 | D19: =IF(Peaks!H19=0,0,Peaks!$D19/Peaks!H19/COUNTIF('Expanded kW'!$A$2:$A$8785,'Load Factors'!$B19)) -> 0.7862389562 | E19: =IF(Peaks!I19=0,0,Peaks!$D19/Peaks!I19/COUNTIF('Expanded kW'!$A$2:$A$8785,'Load Factors'!$B19)) -> 0.7739154616 | F19: =IF(Peaks!J19=0,0,Peaks!$D19/Peaks!J19/COUNTIF('Expanded kW'!$A$2:$A$8785,'Load Factors'!$B19)) -> 0.7739154616 | H19: =IF(Peaks!K19=0,0,Peaks!$D19/Peaks!K19/COUNTIF('Expanded kW'!$A$2:$A$8785,'Load Factors'!$B19)) -> 0.6840914771 | I19: =IF(Peaks!L19=0,0,Peaks!$D19/Peaks!L19/COUNTIF('Expanded kW'!$A$2:$A$8785,'Load Factors'!$B19)) -> 0.6646081841 | J19: =IF(Peaks!M19=0,0,Peaks!$D19/Peaks!M19/COUNTIF('Expanded kW'!$A$2:$A$8785,'Load Factors'!$B19)) -> 0.6646081841
A20: =+'Manual Inputs'!A21 -> 2020 | B20: =+'Manual Inputs'!B21 -> 2 | C20: =IF(Peaks!J20=0,0,+Peaks!G20/Peaks!J20) -> 0.9388489209 | D20: =IF(Peaks!H20=0,0,Peaks!$D20/Peaks!H20/COUNTIF('Expanded kW'!$A$2:$A$8785,'Load Factors'!$B20)) -> 0.7977290581 | E20: =IF(Peaks!I20=0,0,Peaks!$D20/Peaks!I20/COUNTIF('Expanded kW'!$A$2:$A$8785,'Load Factors'!$B20)) -> 0.8244188779 | F20: =IF(Peaks!J20=0,0,Peaks!$D20/Peaks!J20/COUNTIF('Expanded kW'!$A$2:$A$8785,'Load Factors'!$B20)) -> 0.7977290581 | H20: =IF(Peaks!K20=0,0,Peaks!$D20/Peaks!K20/COUNTIF('Expanded kW'!$A$2:$A$8785,'Load Factors'!$B20)) -> 0.7130945947 | I20: =IF(Peaks!L20=0,0,Peaks!$D20/Peaks!L20/COUNTIF('Expanded kW'!$A$2:$A$8785,'Load Factors'!$B20)) -> 0.7124826183 | J20: =IF(Peaks!M20=0,0,Peaks!$D20/Peaks!M20/COUNTIF('Expanded kW'!$A$2:$A$8785,'Load Factors'!$B20)) -> 0.7061544666
A21: =+'Manual Inputs'!A22 -> 2020 | B21: =+'Manual Inputs'!B22 -> 3 | C21: =IF(Peaks!J21=0,0,+Peaks!G21/Peaks!J21) -> 0.9208633094 | D21: =IF(Peaks!H21=0,0,Peaks!$D21/Peaks!H21/COUNTIF('Expanded kW'!$A$2:$A$8785,'Load Factors'!$B21)) -> 0.809164768 | E21: =IF(Peaks!I21=0,0,Peaks!$D21/Peaks!I21/COUNTIF('Expanded kW'!$A$2:$A$8785,'Load Factors'!$B21)) -> 0.7829687863 | F21: =IF(Peaks!J21=0,0,Peaks!$D21/Peaks!J21/COUNTIF('Expanded kW'!$A$2:$A$8785,'Load Factors'!$B21)) -> 0.7829687863 | H21: =IF(Peaks!K21=0,0,Peaks!$D21/Peaks!K21/COUNTIF('Expanded kW'!$A$2:$A$8785,'Load Factors'!$B21)) -> 0.7136118959 | I21: =IF(Peaks!L21=0,0,Peaks!$D21/Peaks!L21/COUNTIF('Expanded kW'!$A$2:$A$8785,'Load Factors'!$B21)) -> 0.6942126591 | J21: =IF(Peaks!M21=0,0,Peaks!$D21/Peaks!M21/COUNTIF('Expanded kW'!$A$2:$A$8785,'Load Factors'!$B21)) -> 0.6888516169
A23: Average | C23: =AVERAGE(Peaks!G10:G21)/AVERAGE(Peaks!J10:J21) -> 0.8612321095 | D23: =+Peaks!$D24/Peaks!H24/(TYDays*24/12) -> 0.7893616618 | E23: =+Peaks!$D24/Peaks!I24/(TYDays*24/12) -> 0.8004652146 | F23: =+Peaks!$D24/Peaks!J24/(TYDays*24/12) -> 0.7790464192 | H23: =+Peaks!$D24/Peaks!K24/(TYDays*24/12) -> 0.7012805998 | I23: =+Peaks!$D24/Peaks!L24/(TYDays*24/12) -> 0.6969735134 | J23: =+Peaks!$D24/Peaks!M24/(TYDays*24/12) -> 0.6841054477

Sheet On,Off Peak kWh
A1: ='Manual Inputs'!D1 -> Kentucky Power Co.
A2: =+'Manual Inputs'!D2 -> Kentucky
A3: On and Off Peak Energy Summary
A4: =CustClass & " Customers" -> Municipal Waterworks Customers
A5: =+'Monthly Data'!A5 -> For the Test Year Ended March 31, 2020
A6: =+'Monthly Data'!A6 -> Based on Sample Period Ended March 31, 2020
C10: TY kWh | E10: kWh Peak | F10: % Peak | H10: kWh Off-Peak | I10: % Off-Peak
A11: =+'Manual Inputs'!A11 -> 2019 | B11: =+'Manual Inputs'!B11 -> 4 | C11: =SUMIF('Expanded kW'!$A$2:$A$8785,B11,'Expanded kW'!$H$2:$H$8785) -> 135718 | E11: =SUMIFS('Expanded kW'!$H$2:$H$8785,'Expanded kW'!$A$2:$A$8785,$B11,'Expanded kW'!$C$2:$C$8785,"ON") -> 59017.54256 | F11: =IF(C11=0,0,+E11/C11) -> 0.4348542018 | H11: =SUMIFS('Expanded kW'!$H$2:$H$8785,'Expanded kW'!$A$2:$A$8785,$B11,'Expanded kW'!$C$2:$C$8785,"OFF") -> 76700.45744 | I11: =IF(C11=0,0,+H11/C11) -> 0.5651457982
A12: =+'Manual Inputs'!A12 -> 2019 | B12: =+'Manual Inputs'!B12 -> 5 | C12: =SUMIF('Expanded kW'!$A$2:$A$8785,B12,'Expanded kW'!$H$2:$H$8785) -> 140566 | E12: =SUMIFS('Expanded kW'!$H$2:$H$8785,'Expanded kW'!$A$2:$A$8785,$B12,'Expanded kW'!$C$2:$C$8785,"ON") -> 59353.36636 | F12: =IF(C12=0,0,+E12/C12) -> 0.4222455385 | H12: =SUMIFS('Expanded kW'!$H$2:$H$8785,'Expanded kW'!$A$2:$A$8785,$B12,'Expanded kW'!$C$2:$C$8785,"OFF") -> 81212.63364 | I12: =IF(C12=0,0,+H12/C12) -> 0.5777544615
A13: =+'Manual Inputs'!A13 -> 2019 | B13: =+'Manual Inputs'!B13 -> 6 | C13: =SUMIF('Expanded kW'!$A$2:$A$8785,B13,'Expanded kW'!$H$2:$H$8785) -> 145779 | E13: =SUMIFS('Expanded kW'!$H$2:$H$8785,'Expanded kW'!$A$2:$A$8785,$B13,'Expanded kW'!$C$2:$C$8785,"ON") -> 55830.18622 | F13: 0.3829782494 | H13: =SUMIFS('Expanded kW'!$H$2:$H$8785,'Expanded kW'!$A$2:$A$8785,$B13,'Expanded kW'!$C$2:$C$8785,"OFF") -> 89948.81378 | I13: 0.6170217506
A14: =+'Manual Inputs'!A14 -> 2019 | B14: =+'Manual Inputs'!B14 -> 7 | C14: =SUMIF('Expanded kW'!$A$2:$A$8785,B14,'Expanded kW'!$H$2:$H$8785) -> 149253 | E14: =SUMIFS('Expanded kW'!$H$2:$H$8785,'Expanded kW'!$A$2:$A$8785,$B14,'Expanded kW'!$C$2:$C$8785,"ON") -> 65985.52154 | F14: 0.4421051606 | H14: =SUMIFS('Expanded kW'!$H$2:$H$8785,'Expanded kW'!$A$2:$A$8785,$B14,'Expanded kW'!$C$2:$C$8785,"OFF") -> 83267.47846 | I14: 0.5578948394
A15: =+'Manual Inputs'!A15 -> 2019 | B15: =+'Manual Inputs'!B15 -> 8 | C15: =SUMIF('Expanded kW'!$A$2:$A$8785,B15,'Expanded kW'!$H$2:$H$8785) -> 151953 | E15: =SUMIFS('Expanded kW'!$H$2:$H$8785,'Expanded kW'!$A$2:$A$8785,$B15,'Expanded kW'!$C$2:$C$8785,"ON") -> 64237.00406 | F15: 0.4227425852 | H15: =SUMIFS('Expanded kW'!$H$2:$H$8785,'Expanded kW'!$A$2:$A$8785,$B15,'Expanded kW'!$C$2:$C$8785,"OFF") -> 87715.99594 | I15: 0.5772574148
A16: =+'Manual Inputs'!A16 -> 2019 | B16: =+'Manual Inputs'!B16 -> 9 | C16: =SUMIF('Expanded kW'!$A$2:$A$8785,B16,'Expanded kW'!$H$2:$H$8785) -> 157446 | E16: =SUMIFS('Expanded kW'!$H$2:$H$8785,'Expanded kW'!$A$2:$A$8785,$B16,'Expanded kW'!$C$2:$C$8785,"ON") -> 66593.30802 | F16: 0.4229596688 | H16: =SUMIFS('Expanded kW'!$H$2:$H$8785,'Expanded kW'!$A$2:$A$8785,$B16,'Expanded kW'!$C$2:$C$8785,"OFF") -> 90852.69198 | I16: 0.5770403312
A17: =+'Manual Inputs'!A17 -> 2019 | B17: =+'Manual Inputs'!B17 -> 10 | C17: =SUMIF('Expanded kW'!$A$2:$A$8785,B17,'Expanded kW'!$H$2:$H$8785) -> 144711 | E17: =SUMIFS('Expanded kW'!$H$2:$H$8785,'Expanded kW'!$A$2:$A$8785,$B17,'Expanded kW'!$C$2:$C$8785,"ON") -> 64349.57578 | F17: 0.444676464 | H17: =SUMIFS('Expanded kW'!$H$2:$H$8785,'Expanded kW'!$A$2:$A$8785,$B17,'Expanded kW'!$C$2:$C$8785,"OFF") -> 80361.42422 | I17: 0.555323536
A18: =+'Manual Inputs'!A18 -> 2019 | B18: =+'Manual Inputs'!B18 -> 11 | C18: =SUMIF('Expanded kW'!$A$2:$A$8785,B18,'Expanded kW'!$H$2:$H$8785) -> 136456 | E18: =SUMIFS('Expanded kW'!$H$2:$H$8785,'Expanded kW'!$A$2:$A$8785,$B18,'Expanded kW'!$C$2:$C$8785,"ON") -> 56939.96493 | F18: 0.4172771071 | H18: =SUMIFS('Expanded kW'!$H$2:$H$8785,'Expanded kW'!$A$2:$A$8785,$B18,'Expanded kW'!$C$2:$C$8785,"OFF") -> 79516.03507 | I18: 0.5827228929
A19: =+'Manual Inputs'!A19 -> 2019 | B19: =+'Manual Inputs'!B19 -> 12 | C19: =SUMIF('Expanded kW'!$A$2:$A$8785,B19,'Expanded kW'!$H$2:$H$8785) -> 170968 | E19: =SUMIFS('Expanded kW'!$H$2:$H$8785,'Expanded kW'!$A$2:$A$8785,$B19,'Expanded kW'!$C$2:$C$8785,"ON") -> 72472.51695 | F19: 0.423895214 | H19: =SUMIFS('Expanded kW'!$H$2:$H$8785,'Expanded kW'!$A$2:$A$8785,$B19,'Expanded kW'!$C$2:$C$8785,"OFF") -> 98495.48305 | I19: 0.576104786
A20: =+'Manual Inputs'!A20 -> 2020 | B20: =+'Manual Inputs'!B20 -> 1 | C20: =SUMIF('Expanded kW'!$A$2:$A$8785,B20,'Expanded kW'!$H$2:$H$8785) -> 183678 | E20: =SUMIFS('Expanded kW'!$H$2:$H$8785,'Expanded kW'!$A$2:$A$8785,$B20,'Expanded kW'!$C$2:$C$8785,"ON") -> 81816.37254 | F20: 0.4454337076 | H20: =SUMIFS('Expanded kW'!$H$2:$H$8785,'Expanded kW'!$A$2:$A$8785,$B20,'Expanded kW'!$C$2:$C$8785,"OFF") -> 101861.6275 | I20: 0.5545662924
A21: =+'Manual Inputs'!A21 -> 2020 | B21: =+'Manual Inputs'!B21 -> 2 | C21: =SUMIF('Expanded kW'!$A$2:$A$8785,B21,'Expanded kW'!$H$2:$H$8785) -> 154351 | E21: =SUMIFS('Expanded kW'!$H$2:$H$8785,'Expanded kW'!$A$2:$A$8785,$B21,'Expanded kW'!$C$2:$C$8785,"ON") -> 63516.22829 | F21: 0.4115051298 | H21: =SUMIFS('Expanded kW'!$H$2:$H$8785,'Expanded kW'!$A$2:$A$8785,$B21,'Expanded kW'!$C$2:$C$8785,"OFF") -> 90834.77171 | I21: 0.5884948702
A22: =+'Manual Inputs'!A22 -> 2020 | B22: =+'Manual Inputs'!B22 -> 3 | C22: =SUMIF('Expanded kW'!$A$2:$A$8785,B22,'Expanded kW'!$H$2:$H$8785) -> 161943 | E22: =SUMIFS('Expanded kW'!$H$2:$H$8785,'Expanded kW'!$A$2:$A$8785,$B22,'Expanded kW'!$C$2:$C$8785,"ON") -> 68298.85582 | F22: 0.4217462677 | H22: =SUMIFS('Expanded kW'!$H$2:$H$8785,'Expanded kW'!$A$2:$A$8785,$B22,'Expanded kW'!$C$2:$C$8785,"OFF") -> 93644.14418 | I22: 0.5782537323
A24: 12-Month Total | C24: =SUM(C11:C22) -> 1832822 | E24: =SUM(E11:E22) -> 778410.4431 | F24: 0.4247059688 | H24: =SUM(H11:H22) -> 1054411.557 | I24: 0.5752940312
